Workbook

Sheet LDC Info
AA3: Algoma Power Inc.
AA4: Atikokan Hydro Inc.
AA5: Attawapiskat Power Corporation
AA6: Bluewater Power Distribution Corp.
AA7: Brant County Power
AA8: Brantford Power Inc.
AA9: Burlington Hydro Inc.
AA10: Cambridge and North Dumfries Hydro
AA11: Canadian Niagara Power Inc. – Eastern Ontario Power/Fort Erie/Port Colborne
AA12: Centre Wellington Hydro Ltd.
N13: Version 1.1 | AA13: Chapleau Public Utilities Corporation
D14: Utility Name | E14: COLLUS Power Corp. | AA14: COLLUS Power Corp.
AA15: Cooperative Hydro Embrun Inc.
D16: Service Territory | AA16: E.L.K. Energy Inc.
AA17: Enersource Hydro Mississauga Inc.
D18: Assigned EB Number | E18: EB-2012-0116 | AA18: Entegrus Powerlines Inc.
AA19: ENWIN Utilities Ltd.
D20: Name of Contact and Title | E20: Cindy Shuttleowrth, Chief Financial Officer | AA20: Erie Thames Powerlines Corp.
AA21: Espanola Regional Hydro Distribution Corporation
D22: Phone Number | E22: 705.445.1800 ext. 2270 | AA22: Essex Powerlines Corporation
AA23: Festival Hydro Inc.
D24: Email Address | E24: cshuttleworth@collus.com | AA24: Fort Albany Power Corporation
AA25: Fort Frances Power Corporation
D26: Bridge Year | E26: 2012 | AA26: Greater Sudbury Hydro Inc.
AA27: Grimsby Power Inc.
D28: Test Year | E28: 2013 | AA28: Guelph Hydro Electric Systems Inc.
AA29: Haldimand County Hydro Inc.
D30: Last Rebasing Year | E30: 2009 | AA30: Guelph Hydro Electric Systems Inc.
AA31: Halton Hills Hydro Inc.
B32: Notes | AA32: Hearst Power Distribution Co. Ltd.
AA33: Horizon Utilities Corporation
C34: Pale green cells represent input cells. | AA34: Hydro 2000 Inc.
AA35: Hydro Hawkesbury Inc.
C36: Pale blue cells represent drop-down lists. The applicant should select the appropriate item from the drop-down list. | AA36: Hydro One Brampton Networks Inc.
AA37: Hydro One Networks Inc.
C38: White cells contain fixed values, automatically generated values or formulae. | AA38: Hydro One Remote Communities Inc.
AA39: Hydro Ottawa Limited
AA40: Innisfil Hydro Dist. Systems Limited
AA41: Kashechewan Power Corporation
AA42: Kenora Hydro Electric Corporation Ltd.
AA43: Kingston Hydro Corporation
AA44: Kitchener-Wilmot Hydro Inc.
AA45: Lakefront Utilities Inc.
AA46: Lakeland Power Distribution Ltd.
AA47: London Hydro Inc.
AA48: Midland Power Utility Corporation
AA49: Milton Hydro Distribution Inc.
AA50: Newmarket – Tay Power Distribution Ltd.
AA51: Niagara Peninsula Energy Inc.
AA52: Niagara-on-the-Lake Hydro Inc.
AA53: Norfolk Power Distribution Ltd.
AA54: North Bay Hydro Distribution Limited
AA55: Northern Ontario Wires Inc.
AA56: Oakville Hydro Distribution Inc.
AA57: Orangeville Hydro Limited
AA58: Orillia Power Distribution Corp.
AA59: Oshawa PUC Networks Inc.
AA60: Ottawa River Power Corporation
AA61: Parry Sound Power Corporation
AA62: Peterborough Distribution Inc.
AA63: PowerStream Inc.
AA64: PUC Distribution Inc.
AA65: Renfrew Hydro Inc.
AA66: Rideau St. Lawrence Distribution Inc.
AA67: St. Thomas Energy Inc.
AA68: Sioux Lookout Hydro Inc.
AA69: Thunder Bay Hydro Electricity Distribution
AA70: Tillsonburg Hydro Inc.
AA71: Toronto Hydro-Electric System Limited
AA72: Veridian Connections Inc.
AA73: Wasaga Distribution Inc.
AA74: Waterloo North Hydro Inc.
AA75: Welland Hydro Electric System Corp.
AA76: Wellington North Power Inc.
AA77: West Coast Huron Energy Inc.
AA78: Westario Power Inc.
AA79: Whitby Hydro Electric Corporation
AA80: Woodstock Hydro Services Inc.

Sheet Index
A15: 1 | B15: LDC Information Sheet | E15: 19 | F15: Appendix 2-H OM&A Detailed Analysis
A16: 2 | B16: Index | E16: 20 | F16: Appendix 2-I OM&A Summary Analysis
A17: 3 | B17: Appendix 2-A Capital Projects | E17: 21 | F17: Appendix 2-J OM&A Cost Drivers
A18: 4 | B18: Appendix 2-B Fixed Asset Continuity | E18: 22 | F18: Appendix 2-K Employee Costs
A19: 5 | B19: Appendix 2-CA CGAAP Depreciation Expense 2011 | E19: 23 | F19: Appendix 2-L OM&A per Cust FTEE
A20: 6 | B20: Appendix 2-CB MIFRS Depreciation Expense 2011 | E20: 24 | F20: Appendix 2-M Regulatory Costs
A21: 7 | B21: Appendix 2-CC MIFRS Depreciation Expense 2012 | E21: 25 | F21: Appendix 2-N Corp Cost Allocation
A22: 8 | B22: Appendix 2-CD MIFRS Depreciation Expense 2013 | E22: 26 | F22: Appendix 2-OA Capital Structure and Cost of Capital
A23: 9 | B23: Appendix 2-CE CGAAP Depreciation Expense 2011 | E23: 27 | F23: Appendix 2-OB Debt Instruments
A24: 10 | B24: Appendix 2-CF CGAAP Depreciation Expense 2012 | E24: 28 | F24: Appendix 2-P Cost Allocation
A25: 11 | B25: Appendix 2-CG MIFRS Depreciation Expense 2012 | E25: 29 | F25: Appendix 2-Q Cost of Service Embedded Distributor
A26: 12 | B26: Appendix 2-CH MIFRS Depreciation Expense 2013 | E26: 30 | F26: Appendix 2-R Loss Factors
A27: 13 | B27: Appendix 2-CI Alternative Accounting Standards Depreciation Expense | E27: 31 | F27: Appendix 2-S Stranded Meters
A28: 14 | B28: Appendix 2-D Overhead | E28: 32 | F28: Appendix 2-T 1592 Tax Variance
A29: 15 | B29: Appendix 2-EA PP&E Deferral Account - 2012 IFRS Adopters | E29: 33 | F29: Appendix 2-U IFRS Transition Costs
A30: 16 | B30: Appendix 2-EB PP&E Deferral Account - 2013 IFRS Adopters | E30: 34 | F30: Appendix 2-V Rev Reconciliation
A31: 17 | B31: Appendix 2-F Other Operating Revenue | E31: 35 | F31: Appendix 2-W Bill Impacts
A32: 18 | B32: Appendix 2-G Detailed OM&A Expenses | E32: 36 | F32: Appendix 2-X CoS Flowchart

Sheet App.2-A_Capital Projects
G1: File Number: | H1: ='LDC Info'!$E$18 -> EB-2012-0116
G2: Exhibit:
G3: Tab:
G4: Schedule:
G5: Page:
G7: Updated: | H7: 2024-05-24
A9: Appendix 2-A
A10: Capital Projects Table
A13: Projects | B13: =IF(ISBLANK('LDC Info'!E26), "Year 1", 'LDC Info'!E26-5) -> 2007 | C13: =IF(ISBLANK('LDC Info'!E26), "Year 2", 'LDC Info'!E26-4) -> 2008 | D13: =IF(ISBLANK('LDC Info'!E26), "Year 3", 'LDC Info'!E26-3) -> 2009 | E13: =IF(ISBLANK('LDC Info'!E26), "Year 4", 'LDC Info'!E26-2) -> 2010 | F13: =IF(ISBLANK('LDC Info'!E26), "Year 5", 'LDC Info'!E26-1) -> 2011 | G13: ='LDC Info'!E26 & " Bridge Year" -> 2012 Bridge Year | H13: ='LDC Info'!E28 & " Test Year" -> 2013 Test Year
A14: Reporting Basis | B14: CGAAP | C14: CGAAP | D14: CGAAP | E14: CGAAP | F14: CGAAP | G14: CGAAP | H14: CGAAP
A15: 1805 Land | F15: 5000 | G15: 361109
A16: 1808 Building and Fixtures 60 year | D16: 175000 | E16: 238474 | G16: 108735
A17: 1808 Building and Fixtures 30 year
A18: 1820 Distribution Stations<50kV | B18: 1075378 | C18: 23649 | D18: 707282 | E18: 1362374 | G18: 1258
A19: 1830 Poles Towers & Fixtures | C19: 35977 | D19: 144497 | E19: 84814 | F19: 379212 | G19: 333695 | H19: 608422
A20: 1835 Overhead Conductor & Devices | B20: 615898 | C20: 864547 | D20: 580265 | E20: 664934 | F20: 184166 | G20: 578191 | H20: 496343
A21: 1845 Underground Conductor & Devices | B21: 93010 | C21: 579249 | D21: 804446 | E21: 129720 | F21: 392128 | G21: 230763 | H21: 214879
A22: 1850 Line Transformers | B22: 316079 | C22: 580684 | D22: 372750 | E22: 163744 | F22: 394582 | G22: 112722 | H22: 206064
A23: 1855 Services | B23: 109678 | C23: 125147 | D23: 202294 | F23: 98627 | G23: 139385 | H23: 150000
A24: 1955 Contributions and grants | B24: -480990 | C24: -609644 | D24: -2615933 | E24: -281963 | F24: -595011 | G24: -339434 | H24: -350000
A25: 1860 Meters | B25: 34098 | C25: 100832 | D25: 87154 | E25: 201829 | F25: 204153 | G25: 50052 | H25: 275500
A26: 1860 Smart Meters | D26: 2134227 | E26: 164675
A27: 1915 Office Furniture & Equipment | C27: 101150 | G27: 16531
A28: 1920 Computer Equipment | F28: 18014
A29: 1925 Computer Software | B29: 5265 | C29: 11342 | D29: 415750 | E29: 42022 | F29: 1050 | G29: 4225 | H29: 105000
A30: 1930 Transportation Equipment | B30: 69206 | C30: 384529 | D30: 131096 | E30: 283098 | F30: 243573 | G30: 263420 | H30: 202000
A31: 1935 Stores Equipment | E31: 12000
A32: 1955 Communications Equipment | B32: 1251
A33: 1960 Miscellaneous Equipment | D33: 32360 | F33: 2999 | H33: 75000
A34: 1980 Systems Supervisory Equipment | B34: 63656 | C34: 68493 | D34: 41604 | E34: 62204 | F34: 30298 | H34: 40000
A35: 2055 Construction Work in Progress | B35: 62815 | C35: 344174 | D35: 542756 | E35: -1032979 | F35: 121872 | G35: -95339
A38: Total | B38: =SUM(B15:B37) -> 1965344 | C38: 2610129 | D38: 3755548 | E38: 2094946 | F38: 1480663 | G38: 1765313 | H38: 2023208
A41: Notes:
A43: 1 Please provide a breakdown of the major components of each capital project. Please ensure that all projects below the materiality threshold are included in the miscellaneous line. Add more projects as required.
A45: 2 Amounts should be reported on a MIFRS basis for the adoption year and any subsequent years, only.

Sheet App.2-B FAC_2009
E1: Schedule 2 B
E2: Fixed Asset Continuity Schedule | J2: [CGAAP]
F3: 2009
E5: Cost | K5: Accumulated Depreciation
A6: CCA Class | B6: OEB AC # | C6: Description | D6: Depreciation Rate | E6: Opening Balance | F6: Additions | G6: Disposals | H6: Closing Balance | J6: Opening Balance | K6: Additions | L6: Disposals | M6: Closing Balance | N6: Net Book Value
A7: N/A | B7: 1805 | C7: Land | D7: NA | E7: 90438.88 | F7: 0 | H7: =E7+F7-G7 -> 90438.88 | J7: 0 | M7: =J7+K7-L7 -> 0 | N7: =H7+M7 -> 90438.88
A8: 1 | B8: 1808 | C8: Buildings & Fixtures Substations - 60 years | D8: 60 years | E8: =80668.44-E9 -> 32803.44 | F8: =255668.44-80668.44 -> 175000 | H8: =E8+F8-G8 -> 207803.44 | J8: -15857.44 | K8: =-16404.44-J8 -> -547 | M8: =J8+K8+L8 -> -16404.44 | N8: =H8+M8 -> 191399
A9: 1 | B9: 1808 | C9: Buildings & fixtures Other - 30 years | D9: 30 years | E9: 47865 | H9: =E9+F9-G9 -> 47865 | J9: -38295 | K9: =-39890-J9 -> -1595 | M9: =J9+K9+L9 -> -39890 | N9: =H9+M9 -> 7975
A10: 47 | B10: 1820 | C10: Dist Stat Equip below 50KV | D10: 30 years | E10: 3150295.98 | F10: =3857577.98-3150295.98 -> 707282 | H10: =E10+F10-G10 -> 3857577.98 | J10: -1308880.98 | K10: =-1405095.98-J10 -> -96215 | M10: =J10+K10+L10 -> -1405095.98 | N10: =H10+M10 -> 2452482
A11: 47 | B11: 1830 | C11: Poles, Towers & Fixtures | D11: 25 years | E11: 35976.77 | F11: =180473.46-E11 -> 144496.69 | H11: 180473.46 | J11: 0 | K11: 0 | M11: 0 | N11: 180473.46
A12: 47 | B12: 1835 | C12: Overhead Conductors & Devices | D12: 25 years | E12: 10177048.59 | F12: =10757313.73-10177048.59 -> 580265.14 | H12: 10757313.73 | J12: =-5145823.36 -> -5145823.36 | K12: =-5562862.19-J12 -> -417038.83 | M12: -5562862.19 | N12: 5194451.54
A13: 47 | B13: 1845 | C13: Underground Conductors & Devices | D13: 25 years | E13: =6998139.5 -> 6998139.5 | F13: =7802585.99-E13 -> 804446.49 | H13: 7802585.99 | J13: -3558215.5 | K13: =-3848179.99-J13 -> -289964.49 | M13: -3848179.99 | N13: 3954406
A14: 47 | B14: 1850 | C14: Line Transformers | D14: 25 years | E14: 4647854.45 | F14: =5020604.67-E14 -> 372750.22 | H14: 5020604.67 | J14: -2194041.05 | K14: =-2378467.27-J14 -> -184426.22 | M14: -2378467.27 | N14: 2642137.4
A15: 47 | B15: 1855 | C15: Services | D15: 25 years | E15: 653559.74 | F15: =855853.58-E15 -> 202293.84 | H15: 855853.58 | J15: -81305.74 | K15: =-111528.58-J15 -> -30222.84 | M15: -111528.58 | N15: 744325
A16: 47 | B16: 1995 | C16: Contributions & Grants | D16: 25 years | E16: -6738873.11 | F16: =-9354805.85-E16 -> -2615932.74 | H16: -9354805.85 | J16: 2780739.39 | K16: =3090028.13-J16 -> 309288.74 | M16: 3090028.13 | N16: -6264777.72
A17: 47 | B17: 2055 | C17: Construction Work in Process (CWIP) | D17: NA | E17: 490223.7 | F17: =1032979.96-E17 -> 542756.26 | H17: 1032979.96 | J17: 0 | M17: 0 | N17: 1032979.96
A18: 47 | B18: 1860 | C18: Meters | D18: 15 years | E18: 1478407.89 | F18: =1565562.36-E18 -> 87154.47 | G18: 0 | H18: =E18+F18-G18 -> 1565562.36 | J18: -805177.89 | K18: =-863275.36-J18 -> -58097.47 | L18: 0 | M18: =J18+K18+L18 -> -863275.36 | N18: =H18+M18 -> 702287
A19: 47 | B19: 1860 | C19: Stranded Meters | D19: 25 years | E19: 0 | F19: 0 | H19: =E19+F19-G19 -> 0 | J19: 0 | K19: 0 | M19: =J19+K19+L19 -> 0 | N19: =H19+M19 -> 0
A20: 8 | B20: 1915 | C20: Office Furniture & Equipment | D20: 10 years | E20: 191477.68 | H20: =E20+F20-G20 -> 191477.68 | J20: -98906.68 | K20: =-110368.68-J20 -> -11462 | M20: =J20+K20+L20 -> -110368.68 | N20: =H20+M20 -> 81109
A21: 12 | B21: 1925 | C21: Computer Software | D21: 5 years | E21: 70195.59 | F21: 415749.57 | G21: 17639 | H21: 468306.16 | J21: -36528.59 | K21: =-130189.36+36528.59 -> -93660.77 | M21: -130189.36 | N21: 338116.8
A22: 10 | B22: 1930 | C22: Transportation Equipment | D22: 5 or 8 years | E22: 1079817.64 | F22: =1210913.56-E22 -> 131095.92 | G22: 0 | H22: 1210913.56 | J22: -572667.64 | K22: =-676802.56-J22 -> -104134.92 | L22: 0 | M22: -676802.56 | N22: 534111
A23: 8 | B23: 1935 | C23: Stores Equipment | D23: 10 years | E23: 6634.96 | F23: 0 | G23: 0 | H23: 6634.96 | J23: -6635 | K23: 0 | L23: 0 | M23: -6635 | N23: -0.04
A24: 8 | B24: 1945 | C24: Measurement & Testing Equipment | E24: 51800 | H24: 51800 | J24: -51800 | M24: -51800 | N24: 0
A25: 8 | B25: 1950 | C25: Power Operated Equipment | D25: 10 years | E25: 37260 | H25: 37260 | J25: 0 | K25: 0 | M25: 0 | N25: 37260
A26: 8 | B26: 1955 | C26: Communication Equipment | D26: 10 years | E26: 71751.41 | H26: 71751.41 | J26: -50041.41 | K26: =-53971.41-J26 -> -3930 | M26: -53971.41 | N26: 17780
A27: 8 | B27: 1960 | C27: Miscellaneous Equipment | D27: 10 years | E27: 203814.49 | F27: =236174.56-E27 -> 32360.07 | H27: 236174.56 | J27: -220184.49 | K27: =-229406.56-J27 -> -9222.07 | L27: 0 | M27: -229406.56 | N27: 6768
A28: 8 | B28: 1970 | C28: Load Management Cntls - Cstmr Premises | D28: 10 years | E28: 878887.18 | G28: 0 | H28: 878887.18 | J28: -875403.18 | K28: =-878887.18-J28 -> -3484 | L28: 0 | M28: -878887.18 | N28: 0
A29: 8 | B29: 1980 | C29: System Supervisory Equipment | D29: 15 years | E29: 538744.49 | F29: =580348.09-E29 -> 41603.6 | H29: 580348.09 | J29: -223062.49 | K29: =-261747.09-J29 -> -38684.6 | M29: -261747.09 | N29: 318601
C30: Sentinel Lights | D30: 10 years | E30: 7063.04 | G30: 7063.04 | H30: 0 | J30: -7063.04 | L30: 7063.04 | M30: =J30+K30+L30 -> 0 | N30: 0
C31: Sub-total | E31: =SUM(E7:E30) -> 24201187.31 | F31: =SUM(F7:F30) -> 1621321.53 | G31: =SUM(G7:G30) -> 24702.04 | H31: =SUM(H7:H30) -> 25797806.8 | J31: =SUM(J7:J30) -> -12509150.09 | K31: =SUM(K7:K30) -> -1033396.47 | L31: =SUM(L7:L30) -> 7063.04 | M31: =SUM(M7:M30) -> -13535483.52 | N31: =SUM(N7:N30) -> 12262323.28
C32: Less AC# 2055 CWIP | E32: =-E17 -> -490223.7 | F32: =-F17 -> -542756.26 | G32: 0 | H32: -1032979.96 | J32: =-J17 -> 0 | K32: 0 | L32: 0 | M32: 0 | N32: -1032979.96
C33: Total | E33: =SUM(E31:E32) -> 23710963.61 | F33: =SUM(F31:F32) -> 1078565.27 | G33: 24702.04 | H33: 24764826.84 | J33: =SUM(J31:J32) -> -12509150.09 | K33: -1033396.47 | L33: 7063.04 | M33: -13535483.52 | N33: 11229343.32
H35: Less: Fully Allocation Depreciation
J36: Transportation | K36: =-K22 -> 104134.92
J37: Other | K37: 1195
H38: Plus: other depreciation and amortization
J39: Deferred charges | K39: -8155
J40: Smart meters | K40: -67939 | L40: Should be account 1566, corrected in 2010
J41: Net Depreciation | K41: =SUM(K33:K40) -> -1004160.55

Sheet App.2-B FAC_2010
F1: Schedule 2-B
E2: Fixed Asset Continuity Schedule | K2: [CGAAP]
F3: 2010
E5: Cost | L5: Accumulated Depreciation
A6: CCA Class | B6: OEB AC# | C6: Description | D6: Depreciation Rate | E6: Opening Balance | F6: Additions | G6: Transfers | H6: Disposals | I6: Closing Balance | K6: Opening Balance | L6: Additions | M6: Disposals | N6: Closing Balance | O6: Net Book Value
A7: N/A | B7: 1805 | C7: Land | D7: NA | E7: 90438.88 | F7: 0 | I7: =E7+F7-H7 -> 90438.88 | K7: 0 | N7: =K7+L7-M7 -> 0 | O7: =I7+N7 -> 90438.88
A8: 1 | B8: 1808 | C8: Buildings & Fixtures Substations - 60 years | D8: 60 years | E8: =255668.44-E9 -> 255668.44 | F8: 238473.8 | G8: -47865 | I8: =E8+F8+G8-H8 -> 446277.24 | K8: -16404.44 | L8: =-23856.24+16404.44 -> -7451.8 | N8: =K8+L8+M8 -> -23856.24 | O8: =I8+N8 -> 422421
A9: 1 | B9: 1808 | C9: Buildings & fixtures Other - 30 years | D9: 30 years | G9: 47865 | I9: 47865 | K9: -39890 | L9: =-41485+39890 -> -1595 | N9: =K9+L9+M9 -> -41485 | O9: =I9+N9 -> 6380
A10: 47 | B10: 1820 | C10: Dist Stat Equip below 50KV | D10: 30 years | E10: 3857577.98 | F10: =5219952.23-3857577.98 -> 1362374.25 | I10: =E10+F10-H10 -> 5219952.23 | K10: -1405095.98 | L10: =-1584151.21+1405095.98 -> -179055.23 | N10: =K10+L10+M10 -> -1584151.21 | O10: =I10+N10 -> 3635801.02
A11: 47 | B11: 1830 | C11: Poles, Towers & Fixtures | D11: 25 years | E11: 180473.46 | F11: =265287.36-180473.46 -> 84813.9 | I11: 265287.36 | L11: 0 | M11: -19257.36 | N11: -19257.36 | O11: 246030
A12: 47 | B12: 1835 | C12: Overhead Conductors & Devices | D12: 25 years | E12: 10757313.73 | F12: =11422247.92-10757313.73 -> 664934.19 | I12: 11422247.92 | K12: =-5562862.19-L11-K11 -> -5562862.19 | L12: =(-36793.83*12)+11.87 -> -441514.09 | M12: 19257.36 | N12: -5985118.92 | O12: 5437129
A13: 47 | B13: 1845 | C13: Underground Conductors & Devices | D13: 25 years | E13: 7802585.99 | F13: =7932306.21-7802585.99 -> 129720.22 | I13: 7932306.21 | K13: -3848179.99 | L13: =-4164836.21-K13 -> -316656.22 | N13: -4164836.21 | O13: 3767470
A14: 47 | B14: 1850 | C14: Line Transformers | D14: 25 years | E14: 5020604.67 | F14: =5184348.93-5020604.67 -> 163744.26 | I14: 5184348.93 | K14: -2378467.27 | L14: =-2573533.53-K14 -> -195066.26 | N14: -2573533.53 | O14: 2610815.4
A15: 47 | B15: 1855 | C15: Services | D15: 25 years | E15: 855853.58 | F15: 0 | I15: 855853.58 | K15: -111528.58 | L15: =-145774.58-K15 -> -34246 | N15: -145774.58 | O15: 710079
A16: 47 | B16: 1995 | C16: Contributions & Grants | D16: 25 years | E16: -9354805.85 | F16: =-9636768.78+9354805.85 -> -281962.93 | I16: -9636768.78 | K16: 3090028.13 | L16: =3475499.06-K16 -> 385470.93 | N16: 3475499.06 | O16: -6161269.72
A17: 47 | B17: 2055 | C17: Construction Work in Process | D17: NA | E17: 1032979.96 | F17: -1032979.96 | I17: 0 | K17: 0 | N17: 0 | O17: 0
A18: 47 | B18: 1860 | C18: Meters | D18: 15 years | E18: 1565562.36 | F18: 201828.93 | G18: -1529891.29 | I18: =E18+F18+G18-H18 -> 237500 | K18: -863275.36 | L18: 0 | M18: =-24500+863275.36 -> 838775.36 | N18: =K18+L18+M18 -> -24500 | O18: =I18+N18 -> 213000
A19: 47 | B19: 1860 | C19: Stranded Meters | D19: 25 years | E19: 0 | G19: 1529891.29 | I19: =E19+F19+G19-H19 -> 1529891.29 | K19: 0 | L19: =-909545.29+838775.36 -> -70769.93 | M19: -838775.36 | N19: =K19+L19+M19 -> -909545.29 | O19: =I19+N19 -> 620346
A20: 8 | B20: 1915 | C20: Office Furniture & Equipment | D20: 10 years | E20: 191477.68 | I20: =E20+F20-H20 -> 191477.68 | K20: -110368.68 | L20: =-120672.68-K20 -> -10304 | N20: =K20+L20+M20 -> -120672.68 | O20: =I20+N20 -> 70805
A21: 12 | B21: 1925 | C21: Computer Software | D21: 5 years | E21: 468306.16 | F21: =510327.98-E21 -> 42021.82 | I21: 510327.98 | K21: -130189.36 | L21: =-232256.18-K21 -> -102066.82 | N21: -232256.18 | O21: 278071.8
A22: 10 | B22: 1930 | C22: Transportation Equipment | D22: 5 or 8 years | E22: 1210913.56 | F22: 283097.99 | H22: 110068.45 | I22: 1383943.1 | K22: -676802.56 | L22: -123586.99 | M22: 110068.45 | N22: -690321.1 | O22: 693622
A23: 8 | B23: 1935 | C23: Stores Equipment | D23: 10 years | E23: 6634.96 | F23: =18634.96-6634.96 -> 12000 | H23: 0 | I23: 18634.96 | K23: -6635 | L23: -1200 | M23: 0 | N23: -7835 | O23: 10799.96
A24: 8 | B24: 1945 | C24: Measurement & Testing Equipment | E24: 51800 | I24: 51800 | K24: -51800 | N24: -51800 | O24: 0
A25: 8 | B25: 1950 | C25: Power Operated Equipment | D25: 10 years | E25: 37260 | I25: 37260 | M25: -26082 | N25: -26082 | O25: 11178
A26: 8 | B26: 1955 | C26: Communication Equipment | D26: 10 years | E26: 71751.41 | I26: 71751.41 | K26: =-57071.41-L26 -> -53971.41 | L26: -3100 | N26: -57071.41 | O26: 14680
A27: 8 | B27: 1960 | C27: Miscellaneous Equipment | D27: 10 years | E27: 236174.56 | F27: 0 | I27: 236174.56 | K27: -229406.56 | L27: -6962 | M27: 26082 | N27: -210286.56 | O27: 25888
A28: 8 | B28: 1970 | C28: Load Management Cntls - Cstmr Premises | D28: 10 years | E28: 878887.18 | H28: 0 | I28: 878887.18 | K28: -878887.18 | M28: 0 | N28: -878887.18 | O28: 0
A29: 8 | B29: 1980 | C29: System Supervisory Equipment | D29: 15 years | E29: 580348.09 | F29: =642552.08-580348.09 -> 62203.99 | I29: 642552.08 | K29: -261747.09 | L29: =-304584.08-K29 -> -42836.99 | N29: -304584.08 | O29: 337968
C30: Sub-total | E30: =SUM(E7:E29) -> 25797806.8 | F30: =SUM(F7:F29) -> 1930270.46 | G30: 0 | H30: 110068.45 | I30: 27618008.81 | K30: =SUM(K7:K29) -> -13535483.52 | L30: -1150940.4 | M30: 110068.45 | N30: -14576355.47 | O30: 13041653.34
C31: Less AC# 2055 CWIP | E31: =-E17 -> -1032979.96 | F31: =-F17 -> 1032979.96 | G31: 0 | H31: 0 | I31: 0 | K31: 0 | L31: 0 | M31: 0 | N31: 0 | O31: 0
C32: Total | E32: =SUM(E30:E31) -> 24764826.84 | F32: =SUM(F30:F31) -> 2963250.42 | G32: 0 | H32: 110068.45 | I32: 27618008.81 | K32: =SUM(K30:K31) -> -13535483.52 | L32: -1150940.4 | M32: 110068.45 | N32: -14576355.47 | O32: 13041653.34
I34: Less: Fully Allocated Depreciation
K35: Transportation | L35: =-L22 -> 123586.99
K36: Other | L36: 364
I37: Plus other amortization and adjustments
K38: Deferred Charges | L38: -8155
K39: Smart Meters | L39: 67939 | M39: correction re 2009 error
K40: Net depreciation | L40: =SUM(L32:L39) -> -967205.41

Sheet App.2-B FAC_2011
E1: Schedule 2-B
E2: Fixed Asset Continuity Schedule | J2: [CGAAP]
F3: 2011
E5: Cost | K5: Accumulated Depreciation
A6: CCA Class | B6: OEB AC# | C6: Description | D6: Depreciation Rate | E6: Opening Balance | F6: Additions | G6: Disposals | H6: Closing Balance | J6: Opening Balance | K6: Additions | L6: Disposals | M6: Closing Balance | N6: Net Book Value
A7: N/A | B7: 1805 | C7: Land | D7: NA | E7: 90438.88 | F7: 5000 | H7: =E7+F7-G7 -> 95438.88 | J7: 0 | M7: =J7+K7-L7 -> 0 | N7: =H7+M7 -> 95438.88
A8: 1 | B8: 1808 | C8: Buildings & Fixtures Substations - 60 years | D8: 60 years | E8: 446277.24 | H8: =E8+F8-G8 -> 446277.24 | J8: -23856.24 | K8: -7438 | M8: =J8+K8+L8 -> -31294.24 | N8: =H8+M8 -> 414983
A9: 1 | B9: 1808 | C9: Buildings & fixtures Other - 30 years | D9: 30 years | E9: 47865 | H9: =E9+F9-G9 -> 47865 | J9: -41485 | K9: -1595 | M9: =J9+K9+L9 -> -43080 | N9: 4785
A10: 47 | B10: 1820 | C10: Dist Stat Equip below 50KV | D10: 30 years | E10: 5219952.23 | H10: =E10+F10-G10 -> 5219952.23 | J10: -1584151.21 | K10: -151367.02 | M10: =J10+K10+L10 -> -1735518.23 | N10: 3484434
A11: 47 | B11: 1830 | C11: Poles, Towers & Fixtures | D11: 25 years | E11: 265287.36 | F11: 379212.46 | H11: 644499.82 | J11: -19257.36 | K11: -25792.46 | M11: -45049.82 | N11: 599450
A12: 47 | B12: 1835 | C12: Overhead Conductors & Devices | D12: 25 years | E12: 11422247.92 | F12: 184165.95 | H12: 11606413.87 | J12: -5985118.92 | K12: -434757.95 | M12: -6419876.87 | N12: 5186537
A13: 47 | B13: 1845 | C13: Underground Conductors & Devices | D13: 25 years | E13: 7932306.21 | F13: 392127.93 | H13: 8324434.14 | J13: -4164836.21 | K13: -331190.93 | M13: -4496027.14 | N13: 3828407
A14: 47 | B14: 1850 | C14: Line Transformers | D14: 25 years | E14: 5184348.93 | F14: 394582.2 | H14: 5578931.13 | J14: -2573533.53 | K14: -209552.2 | M14: -2783085.73 | N14: 2795845.4
A15: 47 | B15: 1855 | C15: Services | D15: 25 years | E15: 855853.58 | F15: 98626.93 | H15: 954480.51 | J15: -145774.58 | K15: -38180.93 | M15: -183955.51 | N15: 770525
A16: 47 | B16: 1995 | C16: Contributions & Grants | D16: 25 years | E16: -9636768.78 | F16: -595010.81 | H16: -10231779.59 | J16: 3475499.06 | K16: 409282.81 | M16: 3884781.87 | N16: -6346997.72
A17: 47 | B17: 2055 | C17: Construction Work in Process | D17: NA | F17: 121871.9 | H17: 121871.9 | J17: 0 | M17: 0 | N17: 121871.9
A18: 47 | B18: 1860 | C18: Meters | D18: 15 years | E18: 237500 | F18: 204153.09 | H18: =E18+F18-G18 -> 441653.09 | J18: -24500 | K18: -29446.42 | M18: =J18+K18+L18 -> -53946.42 | N18: 387706.67
A19: 47 | B19: 1860 | C19: Stranded Meters | D19: 25 years | E19: 1529891.29 | H19: =E19+F19-G19 -> 1529891.29 | J19: -909545.29 | K19: -61082 | M19: =J19+K19+L19 -> -970627.29 | N19: 559264
A20: 8 | B20: 1915 | C20: Office Furniture & Equipment | D20: 10 years | E20: 191477.68 | H20: =E20+F20-G20 -> 191477.68 | J20: -120672.68 | K20: -10115 | M20: =J20+K20+L20 -> -130787.68 | N20: 60690
A21: 8 | B21: 1920 | C21: Computer Equipment | D21: 3 years | F21: 18014.09 | H21: 18014.09 | J21: 0 | K21: -6004.09 | M21: -6004.09 | N21: 12010
A22: 12 | B22: 1925 | C22: Computer Software | D22: 5 years | E22: 510327.98 | F22: 1050 | H22: 511377.98 | J22: -232256.18 | K22: =-323813.98+232256.18 -> -91557.8 | M22: -323813.98 | N22: 187564
A23: 10 | B23: 1930 | C23: Transportation Equipment | D23: 5 or 8 years | E23: 1383943.1 | F23: 243573.46 | G23: 16089 | H23: 1611427.56 | J23: -690321.1 | K23: -152728.46 | L23: 16089 | M23: -826960.56 | N23: 784467
A24: 8 | B24: 1935 | C24: Stores Equipment | D24: 10 years | E24: 18634.96 | G24: 6634.96 | H24: 12000 | J24: -7835 | K24: -1200 | L24: 6635 | M24: -2400 | N24: 9600
A25: 8 | B25: 1945 | C25: Measurement & Testing Equipment | E25: 51800 | H25: 51800 | J25: -51800 | M25: -51800 | N25: 0
A26: 8 | B26: 1950 | C26: Power Operated Equipment | D26: 10 years | E26: 37260 | H26: 37260 | J26: -26082 | K26: -3726 | M26: -29808 | N26: 7452
A27: 8 | B27: 1955 | C27: Communication Equipment | D27: 10 years | E27: 71751.41 | H27: 71751.41 | J27: -57071.41 | K27: -3100 | M27: -60171.41 | N27: 11580
A28: 8 | B28: 1960 | C28: Miscellaneous Equipment | D28: 10 years | E28: 236174.56 | F28: 2999 | H28: 239173.56 | J28: -210286.56 | K28: -3535 | M28: -213821.56 | N28: 25352
A29: 8 | B29: 1970 | C29: Load Management Cntls - Cstmr Premises | D29: 10 years | E29: 878887.18 | G29: 878887.18 | H29: 0 | J29: -878887.18 | L29: 878887.18 | M29: 0 | N29: 0
A30: 8 | B30: 1980 | C30: System Supervisory Equipment | D30: 15 years | E30: 642552.08 | F30: 30298.4 | H30: 672850.48 | J30: -304584.08 | K30: -44856.4 | M30: -349440.48 | N30: 323410
C31: Sub-total | E31: =SUM(E7:E30) -> 27618008.81 | F31: =SUM(F7:F30) -> 1480664.6 | G31: 901611.14 | H31: 28197062.27 | J31: =SUM(J7:J30) -> -14576355.47 | K31: -1197942.85 | L31: 901611.18 | M31: -14872687.14 | N31: 13324375.13
C32: Less AC#2055 CWIP | E32: =-E17 -> 0 | F32: =-F17 -> -121871.9 | G32: 0 | H32: -121871.9 | J32: 0 | K32: 0 | L32: 0 | M32: 0 | N32: -121871.9
C33: Total | E33: =SUM(E31:E32) -> 27618008.81 | F33: =SUM(F31:F32) -> 1358792.7 | G33: 901611.14 | H33: 28075190.37 | J33: =SUM(J31:J32) -> -14576355.47 | K33: -1197942.85 | L33: 901611.18 | M33: -14872687.14 | N33: 13202503.23
G35: Less: Fully Allocated Depreciation
J36: Transportation | K36: =-K23 -> 152728.46
J37: Other | K37: =152929-152728 -> 201
G38: Plus other amortization expense
J39: Deferred Charges | K39: -8155
J40: Net Depreciation | K40: =SUM(K33:K39) -> -1053168.39

Sheet App.2-B FAC_2012
E1: Schedule 2-B
E2: Fixed Asset Continuity Schedule | J2: [CGAAP]
F3: 2012-12-31
E5: Cost | K5: Accumulated Depreciation
A6: CCA Class | B6: OEB AC# | C6: Description | D6: Depreciation Rate | E6: Opening Balance | F6: Additions | G6: Disposals | H6: Closing Balance | J6: Opening Balance | K6: Additions | L6: Disposals | M6: Closing Balance | N6: Net Book Value
A7: N/A | B7: 1805 | C7: Land | D7: NA | E7: 95438.88 | F7: 361109.42 | H7: =E7+F7-G7 -> 456548.3 | J7: 0 | M7: =J7+K7-L7 -> 0 | N7: =H7+M7 -> 456548.3
A8: 1 | B8: 1808 | C8: Buildings & Fixtures Substations - 60 years | D8: 60 years | E8: 446277.24 | F8: 108735 | H8: =E8+F8-G8 -> 555012.24 | J8: -31294.24 | K8: -9265 | M8: =J8+K8+L8 -> -40559.24 | N8: =H8+M8 -> 514453
A9: 1 | B9: 1808 | C9: Buildings & fixtures Other - 30 years | D9: 30 years | E9: 47865 | H9: =E9+F9-G9 -> 47865 | J9: -43080 | K9: -1595 | M9: =J9+K9+L9 -> -44675 | N9: =H9+M9 -> 3190
A10: 47 | B10: 1820 | C10: Dist Stat Equip below 50KV | D10: 30 years | E10: 5219952.23 | F10: 1257.91 | H10: =E10+F10-G10 -> 5221210.14 | J10: -1735518.23 | K10: -165242.91 | M10: =J10+K10+L10 -> -1900761.14 | N10: =H10+M10 -> 3320449
A11: 47 | B11: 1830 | C11: Poles, Towers & Fixtures | D11: 25 years | E11: 644499.82 | F11: 333694.83 | H11: 978194.65 | J11: -45049.82 | K11: -39122.83 | M11: -84172.65 | N11: 894022
A12: 47 | B12: 1835 | C12: Overhead Conductors & Devices | D12: 25 years | E12: 11606413.87 | F12: 578191.03 | H12: 12184604.9 | J12: -6419876.87 | K12: -452219.03 | M12: -6872095.9 | N12: 5312509
A13: 47 | B13: 1845 | C13: Underground Conductors & Devices | D13: 25 years | E13: 8324434.14 | F13: 230763.14 | H13: 8555197.28 | J13: -4496027.14 | K13: -337926.14 | M13: -4833953.28 | N13: 3721244
A14: 47 | B14: 1850 | C14: Line Transformers | D14: 25 years | E14: 5578931.13 | F14: 112721.52 | H14: 5691652.65 | J14: -2783085.73 | K14: -210841.52 | M14: -2993927.25 | N14: 2697725.4
A15: 47 | B15: 1855 | C15: Services | D15: 25 years | E15: 954480.51 | F15: 139384.77 | H15: 1093865.28 | J15: -183955.51 | K15: -43763.77 | M15: -227719.28 | N15: 866146
A16: 47 | B16: 1995 | C16: Contributions & Grants | D16: 25 years | E16: -10231779.59 | F16: -339434.26 | H16: -10571213.85 | J16: 3884781.87 | K16: 422858.26 | M16: 4307640.13 | N16: -6263573.72
A17: 47 | B17: 2055 | C17: Construction Work in Process | D17: NA | E17: 121871.9 | F17: -95339.18 | H17: 26532.72 | J17: 0 | M17: 0 | N17: 26532.72
A18: 47 | B18: 1860 | C18: Meters | D18: 15 years | E18: 441653.09 | F18: 50051.5 | H18: =E18+F18-G18 -> 491704.59 | J18: -53946.41 | K18: -32776.83 | M18: =J18+K18+L18 -> -86723.24 | N18: =H18+M18 -> 404981.35
A19: 47 | B19: 1860 | C19: Stranded Meters | D19: 25 years | E19: 1529891.29 | G19: 1529891.29 | H19: =E19+F19-G19 -> 0 | J19: -970627.29 | K19: -31907.19 | L19: 1002534.48 | M19: =J19+K19+L19 -> 0 | N19: =H19+M19 -> 0
A20: 47 | B20: 1860 | C20: Smart Meters | D20: 15 years | F20: 2606507.23 | H20: =E20+F20-G20 -> 2606507.23 | K20: -644029.73 | M20: =SUM(J20:L20) -> -644029.73 | N20: =H20+M20 -> 1962477.5
A21: 8 | B21: 1915 | C21: Office Furniture & Equipment | D21: 10 years | E21: 191477.68 | F21: 16531.18 | H21: =E21+F21-G21 -> 208008.86 | J21: -130787.68 | K21: -11769.18 | M21: =J21+K21+L21 -> -142556.86 | N21: =H21+M21 -> 65452
A22: 8 | B22: 1920 | C22: Computer Equipment | D22: 3 years | E22: 18014.09 | H22: 18014.09 | J22: -6004.09 | K22: -6005 | M22: -12009.09 | N22: 6005
A23: 12 | B23: 1925 | C23: Computer Software | D23: 5 years | E23: 511377.98 | F23: 4225 | H23: 515602.98 | J23: -323813.98 | K23: -91349 | M23: -415162.98 | N23: 100440
A24: 10 | B24: 1930 | C24: Transportation Equipment | D24: 5 or 8 years | E24: 1611427.56 | F24: 263419.78 | H24: 1874847.34 | J24: -826960.56 | K24: -179188.28 | M24: -1006148.84 | N24: 868698.5
A25: 8 | B25: 1935 | C25: Stores Equipment | D25: 10 years | E25: 12000 | H25: 12000 | J25: -2400 | K25: -1200 | M25: -3600 | N25: 8400
A26: 8 | B26: 1945 | C26: Measurement & Testing Equipment | E26: 51800 | H26: 51800 | J26: -51800 | M26: -51800 | N26: 0
A27: 8 | B27: 1950 | C27: Power Operated Equipment | D27: 10 years | E27: 37260 | H27: 37260 | J27: -29808 | K27: -3726 | M27: -33534 | N27: 3726
A28: 8 | B28: 1955 | C28: Communication Equipment | D28: 10 years | E28: 71751.41 | H28: 71751.41 | J28: -60171.41 | K28: -3100 | M28: -63271.41 | N28: 8480
A29: 8 | B29: 1960 | C29: Miscellaneous Equipment | D29: 10 years | E29: 239173.56 | H29: 239173.56 | J29: -213821.56 | K29: -3536 | M29: -217357.56 | N29: 21816
A30: 8 | B30: 1980 | C30: System Supervisory Equipment | D30: 15 years | E30: 672850.48 | H30: 672850.48 | J30: -349440.48 | K30: -42390 | M30: -391830.48 | N30: 281020
C31: Sub-total | E31: =SUM(E7:E30) -> 28197062.27 | F31: =SUM(F7:F30) -> 4371818.87 | G31: 1529891.29 | H31: 31038989.85 | J31: =SUM(J7:J30) -> -14872687.13 | K31: -1888095.15 | L31: 1002534.48 | M31: -15758247.8 | N31: 15280742.05
C32: Less AC# 2055 CWIP | E32: =-E17 -> -121871.9 | F32: =-F17 -> 95339.18 | G32: 0 | H32: -26532.72 | J32: 0 | K32: 0 | L32: 0 | M32: 0 | N32: -26532.72
C33: Total | E33: =SUM(E31:E32) -> 28075190.37 | F33: =SUM(F31:F32) -> 4467158.05 | G33: 1529891.29 | H33: 31012457.13 | J33: =SUM(J31:J32) -> -14872687.13 | K33: -1888095.15 | L33: 1002534.48 | M33: -15758247.8 | N33: 15254209.33
H35: Less fully allocated depreciation:
J36: Transportation | K36: =-K24 -> 179188.28
H37: Other amortization expense
J38: Deferred charges | K38: -8155
J39: Stranded meters | K39: -22791
J40: Net Depreciation | K40: =SUM(K33:K39) -> -1739852.87

Sheet App.2-B FAC_2013
E1: Schedule 2-B | M1: 2014-05-24
E2: Fixed Asset Continuity Schedule | J2: [CGAAP]
F3: 2013-12-31
E5: Cost | J5: Accumulated Depreciation
A6: CCA Class | B6: OEB AC# | C6: Description | D6: Depreciation Rate | E6: Opening Balance | F6: Additions | G6: Disposals | H6: Closing Balance | J6: Opening Balance | K6: Additions | L6: Disposals | M6: Closing Balance | N6: Net Book Value
A7: N/A | B7: 1805 | C7: Land | D7: NA | E7: 456548.3 | H7: =E7+F7-G7 -> 456548.3 | J7: 0 | M7: =J7+K7-L7 -> 0 | N7: =H7+M7 -> 456548.3
A8: 1 | B8: 1808 | C8: Buildings & Fixtures Substations - 60 years | D8: 60 years | E8: 555012.24 | H8: =E8+F8-G8 -> 555012.24 | J8: -40559.24 | K8: -9250 | M8: =J8+K8+L8 -> -49809.24 | N8: =H8+M8 -> 505203
A9: 1 | B9: 1808 | C9: Buildings & fixtures Other - 30 years | D9: 30 years | E9: 47865 | H9: =E9+F9-G9 -> 47865 | J9: -44675 | K9: -1595 | M9: =J9+K9+L9 -> -46270 | N9: =H9+M9 -> 1595
A10: 47 | B10: 1820 | C10: Dist Stat Equip below 50KV | D10: 20-50 yrs | E10: 5221210.14 | H10: =E10+F10-G10 -> 5221210.14 | J10: -1900761.14 | K10: =-143517+9250+1595 -> -132672 | M10: =J10+K10+L10 -> -2033433.14 | N10: =H10+M10 -> 3187777
A11: 47 | B11: 1830 | C11: Poles, Towers & Fixtures | D11: 45 & 60 yrs | E11: 8258212 | F11: 608422 | H11: =E11+F11+G11 -> 8866634 | J11: -4323897 | K11: =-164306-6760.24 -> -171066.24 | M11: -4494963.24 | N11: 4371670.76
A12: 47 | B12: 1835 | C12: Overhead Conductors & Devices | D12: 45 & 60 yrs | E12: 4904588 | F12: =373843+(350000*0.35) -> 496343 | H12: =E12+F12+G12 -> 5400931 | J12: -2632372 | K12: =-106946-5514.92 -> -112460.92 | L12: -10000 | M12: -2754832.92 | N12: 2646098.08
A13: 47 | B13: 1845 | C13: Underground Conductors & Devices | D13: 40 & 50 years | E13: 8555197.28 | F13: =74879+(350000*0.4) -> 214879 | H13: 8770076.28 | J13: -4833953.28 | K13: =-134346-2685.99 -> -137031.99 | L13: -10000 | M13: -4980985.27 | N13: 3789091.01
A14: 47 | B14: 1850 | C14: Line Transformers | D14: 40 & 45 years | E14: 5691652.65 | F14: =118564+(350000*0.25) -> 206064 | H14: 5897716.65 | J14: -2993927.25 | K14: =-110751-2575.8 -> -113326.8 | L14: -10000 | M14: -3117254.05 | N14: 2780462.6
A15: 47 | B15: 1855 | C15: Services | D15: 40 years | E15: 1093865.28 | F15: 150000 | H15: 1243865.28 | J15: -227719.28 | K15: =-29453-1875 -> -31328 | M15: -259047.28 | N15: 984818
A16: 47 | B16: 1995 | C16: Contributions & Grants | D16: 40 & 45 years | E16: -10571213.85 | F16: -350000 | H16: -10921213.85 | J16: 4307640.13 | K16: =187458.21+4375 -> 191833.21 | M16: 4499473.34 | N16: -6421740.51
A17: 47 | B17: 2055 | C17: Construction Work in Process | D17: NA | E17: 26532.72 | H17: 26532.72 | J17: 0 | M17: 0 | N17: 26532.72
A18: 47 | B18: 1860 | C18: Meters | D18: 15 years | E18: 491704.59 | H18: =E18+F18-G18 -> 491704.59 | J18: -86723.24 | K18: -32780.33 | M18: =J18+K18+L18 -> -119503.57 | N18: =H18+M18 -> 372201.02
A19: 47 | B19: 1860 | C19: Stranded Meters | D19: 25 years | E19: 0 | H19: =E19+F19-G19 -> 0 | J19: 0 | M19: =J19+K19+L19 -> 0 | N19: =H19+M19 -> 0
A20: 47 | B20: 1860 | C20: Smart Meters | D20: 15 years | E20: 2606507.23 | F20: 275500 | H20: =E20+F20-G20 -> 2882007.23 | J20: -644029.73 | K20: -181364.57 | M20: =SUM(J20:L20) -> -825394.3 | N20: =H20+M20 -> 2056612.93
A21: 8 | B21: 1915 | C21: Office Furniture & Equipment | D21: 10 years | E21: 208008.86 | H21: =E21+F21-G21 -> 208008.86 | J21: -142556.86 | K21: -11768 | M21: =J21+K21+L21 -> -154324.86 | N21: =H21+M21 -> 53684
A22: 8 | B22: 1920 | C22: Computer Equipment | D22: 3 years | E22: 18014.09 | H22: 18014.09 | J22: -12009.09 | K22: -6005 | M22: -18014.09 | N22: 0
A23: 12 | B23: 1925 | C23: Computer Software | D23: 5 year | E23: 515602.98 | F23: 105000 | H23: 620602.98 | J23: -415162.98 | K23: -110081 | M23: -525243.98 | N23: 95359
A24: 10 | B24: 1930 | C24: Transportation Equipment | D24: 5 or 8 years | E24: 1874847.34 | F24: 202000 | H24: 2076847.34 | J24: -1006148.84 | K24: -192047 | M24: -1198195.84 | N24: 878651.5
A25: 8 | B25: 1935 | C25: Stores Equipment | D25: 10 years | E25: 12000 | H25: 12000 | J25: -3600 | K25: -1200 | M25: -4800 | N25: 7200
A26: 8 | B26: 1945 | C26: Measurement & Testing Equipment | E26: 51800 | H26: 51800 | J26: -51800 | M26: -51800 | N26: 0
A27: 8 | B27: 1950 | C27: Power Operated Equipment | D27: 10 years | E27: 37260 | H27: 37260 | J27: -33534 | K27: -3726 | M27: -37260 | N27: 0
A28: 8 | B28: 1955 | C28: Communication Equipment | D28: 10 years | E28: 71751.41 | H28: 71751.41 | J28: -63271.41 | K28: -3100 | M28: -66371.41 | N28: 5380
A29: 8 | B29: 1960 | C29: Miscellaneous Equipment | D29: 10 years | E29: 239173.56 | F29: 75000 | H29: 314173.56 | J29: -217357.56 | K29: -7286 | M29: -224643.56 | N29: 89530
A30: 8 | B30: 1980 | C30: System Supervisory Equipment | D30: 15 years | E30: 672850.48 | F30: 40000 | H30: 712850.48 | J30: -391830.48 | K30: -36615.5 | M30: -428445.98 | N30: 284404.5
C31: Sub-total | E31: =SUM(E7:E30) -> 31038990.3 | F31: =SUM(F7:F30) -> 2023208 | G31: 0 | H31: 33062198.3 | J31: =SUM(J7:J30) -> -15758248.25 | K31: -1102871.14 | L31: -30000 | M31: -16891119.39 | N31: 16171078.91
C32: Less AC#2055 CWIP | E32: =-E17 -> -26532.72 | F32: =-F17 -> 0 | G32: 0 | H32: -26532.72 | J32: 0 | K32: 0 | L32: 0 | M32: 0 | N32: -26532.72
C33: Total | E33: =SUM(E31:E32) -> 31012457.58 | F33: =SUM(F31:F32) -> 2023208 | G33: 0 | H33: 33035665.58 | J33: =SUM(J31:J32) -> -15758248.25 | K33: -1102871.14 | L33: -30000 | M33: -16891119.39 | N33: 16144546.19
J35: Less Fully allocated depreciation:
J36: Transportation | K36: =-K24 -> 192047
J37: Plus other amortization expense:
J38: Deferred charges | K38: -8155
J39: Net Depreciation | K39: =SUM(K33:K38) -> -918979.14

Sheet App.2-C Summary
A1: COLLUS PowerStream | H1: EB-2012-0116
A2: Appendix 2-C: Depreciation Variance Summary ($000) | H2: Updated: May 24, 2013
B4: Schedule | C4: Year | D4: Basis | E4: Estimated Depreciation | F4: Actual Depreciation | G4: Variance | H4: Notes
B5: 2-CE | C5: 2011 | D5: CGAAP | E5: 1178 | F5: 1198 | G5: =E5-F5 -> -20 | H5: 1
B6: 2-CF | C6: 2012 | D6: CGAAP | E6: 1311 | F6: 1888 | G6: =E6-F6 -> -577 | H6: 2
B7: 2-CI | C7: 2013 | D7: CGAAP | E7: 873 | F7: 1103 | G7: =E7-F7 -> -230 | H7: 3
B9: General Explanation: Appendix 2C is a OEB issued worksheet that requires COS applicants to input fixed asset data and depreciation information by various assets classes. The worksheet has formulas that calculates estimated depreciation based on costs, fully depreciated assets and net additions. The half-year depreciation rule is assumed and embedded in the deprecation calculation. The estimated depreciation is compared with the actual or proposed depreciation and any difference is exhibited in the variance column. Material variances are required to be explained. See below.
A11: Notes: | H11: Variance
A14: 1 | B14: 2011 Net Variance:
B16: Actual depreciation is based on full year depreciation applied on new additions. Where as the estimated depreciation applies the half year rule on new additions. This difference in accounting treatment creates a variance. | H16: -27
B17: Transportation equipment has multiple useful lives. Estimated depreciation applies estimated single average useful life to all costs whereas the actual depreciation applies the correct useful life to each specific asset record. | H17: 9
B18: Other minor variances | H18: -2
H19: =SUM(H16:H18) -> -20
A21: 2 | B21: 2012 Net Variance:
B23: Actual depreciation is based on full year depreciation applied on new additions. Whereas the estimated depreciation applies the half year rule on new additions. This difference in accounting treatment create a variance. | H23: -112
B24: In 2012 Collus received OEB approval to transfer smart meters from the regulatory asset account to fixed assets. Included in this transfer was the accrued depreciation that was accumulating in the regulatory smart meter accounts. The depreciation transfer represented the accumulative depreciation on 2009 to 2011 smart meter assets. By the end of 2012 these assets would have full a year of deprecation applied. However, the estimated depreciation recognizes the asset transfer as additions and therefore only applies the hall year rule on the transferred cost. This results in an understated estimated depreciation compared to the actual deprecation recorded | H24: -470
B25: Transportation equipment has multiple useful lives. Estimated depreciation applies an estimated single average useful life to all costs whereas the actual depreciation applies the useful life to each specific asset record. This difference in application will create a variance. For 2012 the estimated depreciation is greater then the actual depreciation. | H25: 16
B26: Other minor variances | H26: -11
H27: =SUM(H23:H26) -> -577
A29: 3 | B29: 2013 Net Variance:
B30: As of January 1, 2013, Collus adopted new IFRS compliant depreciation and capitalization policies.
B31: In a number of the asset classes, where there were components and/or a revised useful life due to the change, estimated depreciation is based on a formulae applying a weighted average useful life to the net book value. However, the proposed test year depreciation uses the updated method where the "remaining" useful life is applied to the opening net book value. The difference in methods result in a variance. As the remaining useful life is lower than the useful life for new additions the proposed depreciation is much higher than the estimated deprecation. | H31: -225
B32: Other minor variances | H32: -5
H33: =SUM(H31:H32) -> -230

Sheet App.2-CE_CGAAP_DepExp_2011
K1: File Number: | L1: ='[5]LDC Info'!$E$18 -> 0
K2: Exhibit:
K3: Tab:
K4: Schedule:
K5: Page:
K7: Date: | L7: 2013-05-24
A9: Appendix 2-CE
A10: Depreciation and Amortization Expense
A11: Assumes the applicant adopted IFRS for financial reporting purposes January 1, 2013
C12: Year | D12: 2011 | E12: CGAAP
A14: Account | B14: Description | C14: Opening Regulatory Gross PP&E as at Jan 1, 2011 | D14: Less Fully Depreciated | E14: Net for Depreciation | F14: Additions 3 | G14: Total for Depreciation | H14: Years | I14: Depreciation Rate | J14: 2011 Depreciation Expense | K14: 2011 Depreciation Expense per Appendix 2-B Fixed Assets, Column K (l) | L14: Variance 2
C15: (a) | D15: (b) | E15: (c) | F15: (d) | G15: (e) = (c) + ½ x (d) 1 | H15: (f) | I15: (g) = 1 / (f) | J15: (h) = (e) / (f) | L15: (m) = (h) - (l)
A16: 1611 | B16: Computer Software (Formally known as Account 1925) | C16: 510327.98 | D16: 58853.12 | E16: =C16-D16 -> 451474.86 | F16: 1050 | G16: =E16+0.5*F16 -> 451999.86 | H16: 5 | I16: =IF(H16=0,"",1/H16) -> 0.2 | J16: =IF(H16=0,0,G16/H16) -> 90399.972 | K16: 91557.8 | L16: =IF(ISERROR(+J16-K16), "", +J16-K16) -> -1157.828
A17: 1612 | B17: Land Rights (Formally known as Account 1906) | C17: 0 | E17: =C17-D17 -> 0 | G17: =E17+0.5*F17 -> 0 | H17: 0 | J17: 0 | K17: 0 | L17: 0
A18: 1805 | B18: Land | C18: 90438.88 | E18: 90438.88 | F18: 5000 | G18: 92938.88 | H18: 0 | J18: 0 | K18: 0 | L18: 0
A19: 1808 | B19: Buildings | C19: 494142.24 | E19: 494142.24 | G19: 494142.24 | H19: 57.09 | I19: 0.01751620249 | J19: 8655.495533 | K19: 9033 | L19: -377.5044666
A20: 1810 | B20: Leasehold Improvements | C20: 0 | E20: 0 | G20: 0 | J20: 0 | L20: 0
A21: 1820 | B21: Distribution Station Equipment <50 kV | C21: 5219952.23 | D21: 678941.63 | E21: 4541010.6 | G21: 4541010.6 | H21: 30 | I21: 0.03333333333 | J21: 151367.02 | K21: 151367.02 | L21: 0
A22: 1825 | B22: Storage Battery Equipment | C22: 0 | E22: 0 | G22: 0 | J22: 0 | L22: 0
A23: 1830 | B23: Poles, Towers & Fixtures | C23: 265287.36 | E23: 265287.36 | F23: 379212.46 | G23: 454893.59 | H23: 25 | I23: 0.04 | J23: 18195.7436 | K23: 25792.46 | L23: -7596.7164
A24: 1835 | B24: Overhead Conductors & Devices | C24: 11422247.92 | D24: 737465.12 | E24: 10684782.8 | F24: 184165.95 | G24: 10776865.78 | H24: 25 | I24: 0.04 | J24: 431074.631 | K24: 434757.95 | L24: -3683.319
A25: 1840 | B25: Underground Conduit | C25: 0 | D25: ` | E25: 0 | F25: 0 | G25: 0 | J25: 0 | L25: 0
A26: 1845 | B26: Underground Conductors & Devices | C26: 7932306.21 | D26: 44660.89 | E26: 7887645.32 | F26: 392127.93 | G26: 8083709.285 | H26: 25 | I26: 0.04 | J26: 323348.3714 | K26: 331190.93 | L26: -7842.5586
A27: 1850 | B27: Line Transformers | C27: 5184348.93 | D27: 340126.13 | E27: 4844222.8 | F27: 394582.2 | G27: 5041513.9 | H27: 25 | I27: 0.04 | J27: 201660.556 | K27: 209552.2 | L27: -7891.644
A28: 1855 | B28: Services (Overhead & Underground) | C28: 855853.58 | E28: 855853.58 | F28: 98626.93 | G28: 905167.045 | H28: 25 | I28: 0.04 | J28: 36206.6818 | K28: 38180.93 | L28: -1974.2482
A29: 1860 | B29: Stranded meters | C29: 1529891.29 | E29: 1529891.29 | G29: 1529891.29 | H29: 25 | I29: 0.04 | J29: 61195.6516 | K29: 61082 | L29: 113.6516
A30: 1860 | B30: Meters (Smart Meters) | C30: 237500 | E30: 237500 | F30: 204153.09 | G30: 339576.545 | H30: 15 | I30: 0.06666666667 | J30: 22638.43633 | K30: 29446.42 | L30: -6807.983667
A31: 1905 | B31: Land | C31: 0 | E31: 0 | F31: 0 | G31: 0 | J31: 0 | L31: 0
A32: 1908 | B32: Buildings & Fixtures | C32: 0 | E32: 0 | F32: 0 | G32: 0 | J32: 0 | L32: 0
A33: 1910 | B33: Leasehold Improvements | C33: 0 | E33: 0 | F33: 0 | G33: 0 | J33: 0 | L33: 0
A34: 1915 | B34: Office Furniture & Equipment (10 years) | C34: 191477.68 | D34: 90327.34 | E34: 101150.34 | F34: 0 | G34: 101150.34 | H34: 10 | I34: 0.1 | J34: 10115.034 | K34: 10115 | L34: 0.034
A35: 1920 | B35: Computer Equip.-Hardware | C35: 0 | E35: 0 | F35: 18014.09 | G35: 9007.045 | H35: 3 | I35: 0.3333333333 | J35: 3002.348333 | K35: 6004.09 | L35: -3001.741667
A36: 1930 | B36: Transportation Equipment | C36: 1383943.1 | D36: 367114.28 | E36: 1016828.82 | F36: =243573.46-16089 -> 227484.46 | G36: 1130571.05 | H36: 6.98 | I36: 0.1432664756 | J36: 161972.9298 | K36: 152728.46 | L36: 9244.469799
A37: 1935 | B37: Stores Equipment | C37: 18634.96 | E37: 18634.96 | F37: -6634.96 | G37: 15317.48 | H37: 10 | I37: 0.1 | J37: 1531.748 | K37: 1200 | L37: 331.748
A38: 1940 | B38: Tools, Shop & Garage Equipment | E38: 0 | G38: 0 | J38: 0 | L38: 0
A39: 1945 | B39: Measurement & Testing Equipment | C39: 51800 | D39: 51800 | E39: 0 | G39: 0 | J39: 0 | L39: 0
A40: 1950 | B40: Power Operated Equipment | C40: 37260 | E40: 37260 | G40: 37260 | H40: 10 | I40: 0.1 | J40: 3726 | K40: 3726 | L40: 0
A41: 1955 | B41: Communications Equipment | C41: 71751.41 | D41: 40753.18 | E41: 30998.23 | G41: 30998.23 | H41: 10 | I41: 0.1 | J41: 3099.823 | K41: 3100 | L41: -0.177
A42: 1960 | B42: Miscellaneous Equipment | C42: 236174.56 | D42: 203814.49 | E42: 32360.07 | F42: 2999 | G42: 33859.57 | H42: 10 | I42: 0.1 | J42: 3385.957 | K42: 3535 | L42: -149.043
A43: 1970 | B43: Load Management Controls - Custmr premisis | C43: 878887.18 | D43: 878887.18 | E43: 0 | G43: 0 | H43: 10 | I43: 0.1 | J43: 0 | K43: 0 | L43: 0
A44: 1975 | B44: Load Management Controls Utility Premises | E44: 0 | G44: 0 | J44: 0 | L44: 0
A45: 1980 | B45: System Supervisor Equipment | C45: 642552.08 | E45: 642552.08 | F45: 30298.4 | G45: 657701.28 | H45: 15 | I45: 0.06666666667 | J45: 43846.752 | K45: 44856.4 | L45: -1009.648
A46: 1985 | B46: Miscellaneous Fixed Assets | E46: 0 | G46: 0 | J46: 0 | L46: 0
A47: 1995 | B47: Contributions & Grants | C47: -9636768.78 | E47: -9636768.78 | F47: -595010.81 | G47: -9934274.185 | H47: 25 | I47: 0.04 | J47: -397370.9674 | K47: -409282.81 | L47: 11911.8426
A48: etc. | B48: Construction Work in prorgress | E48: 0 | F48: 121871.9 | G48: n/a | H48: n/a | I48: n/a | J48: n/a | K48: n/a | L48: n/a
E49: 0 | G49: 0 | J49: 0 | L49: 0
B50: Total | C50: =SUM(C16:C49) -> 27618008.81 | D50: =SUM(D16:D49) -> 3492743.36 | E50: =SUM(E16:E49) -> 24125265.45 | F50: =SUM(F16:F49) -> 1457940.64 | G50: =SUM(G16:G49) -> 24793299.82 | J50: =SUM(J16:J49) -> 1178052.184 | K50: =SUM(K16:K49) -> 1197942.85 | L50: =SUM(L16:L49) -> -19890.666
A52: Notes:
A53: 1 | B53: Board policy of the "half-year" rule - the applicant must ensure that additions in the year attract a half-year depreciation expense in the first year. Deviations from this standard practice must be supported in the application.
A54: 2 | B54: The applicant must provide an explanation of material variances in evidence
A55: 3 | B55: Additions are net of disposals. Calculated formulae for depreciation applies half year rule and therefore disposals would similarily had half year rule application.
A56: General: | B56: Applicants must provide a breakdown of depreciation and amortization expense in the above format for all relevant accounts. Asset Retirement Obligations (AROs), depreciation and accretion expense should be disclosed separately consistent with the Notes of historical Audited Financial Statements.

Sheet App.2-CF_CGAAP_DepExp_2012
K1: File Number: | L1: ='[5]LDC Info'!$E$18 -> 0
K2: Exhibit:
K3: Tab:
K4: Schedule:
K5: Page:
K7: Date:
A9: Appendix 2-CF
A10: Depreciation and Amortization Expense
A11: Assumes the applicant adopted IFRS for financial reporting purposes January 1, 2013
C12: Year | D12: 2012 | E12: CGAAP
A14: Account | B14: Description | C14: Opening Regulatory Gross PP&E as at Jan 1, 2012 | D14: Less Fully Depreciated | E14: Net for Depreciation | F14: Additions 3 | G14: Total for Depreciation | H14: Years | I14: Depreciation Rate | J14: 2012 Depreciation Expense | K14: 2012 Depreciation Expense per Appendix 2-B Fixed Assets, Column K (l) | L14: Variance 2
C15: (a) | D15: (b) | E15: (c) | F15: (d) | G15: (e) = (c) + ½ x (d) 1 | H15: (f) | I15: (g) = 1 / (f) | J15: (h) = (e) / (f) | L15: (m) = (h) - (l)
A16: 1611 | B16: Computer Software (Formally known as Account 1925) | C16: 511377.98 | D16: 70195.59 | E16: =C16-D16 -> 441182.39 | F16: 4225 | G16: =E16+0.5*F16 -> 443294.89 | H16: 5 | I16: =IF(H16=0,0,1/H16) -> 0.2 | J16: =IF(H16=0,0,G16/H16) -> 88658.978 | K16: 91349 | L16: =IF(ISERROR(+J16-K16), 0, +J16-K16) -> -2690.022
A17: 1612 | B17: Land Rights (Formally known as Account 1906) | E17: =C17-D17 -> 0 | G17: =E17+0.5*F17 -> 0 | H17: 0 | I17: 0 | J17: 0 | L17: 0
A18: 1805 | B18: Land | C18: 95438.88 | E18: 95438.88 | F18: 361109.42 | G18: 275993.59 | H18: 0 | I18: 0 | J18: 0 | L18: 0
A19: 1808 | B19: Buildings | C19: 494142.24 | E19: 494142.24 | F19: 108735 | G19: 548509.74 | H19: 57.09 | I19: 0.01751620249 | J19: 9607.807672 | K19: 10860 | L19: -1252.192328
A20: 1810 | B20: Leasehold Improvements | E20: 0 | G20: 0 | I20: 0 | J20: 0 | L20: 0
A21: 1820 | B21: Distribution Station Equipment <50 kV | C21: 5219952.23 | D21: 263922.84 | E21: 4956029.39 | F21: 1257.91 | G21: 4956658.345 | H21: 30 | I21: 0.03333333333 | J21: 165221.9448 | K21: 165242.91 | L21: -20.96516667
A22: 1825 | B22: Storage Battery Equipment | E22: 0 | G22: 0 | I22: 0 | J22: 0 | L22: 0
A23: 1830 | B23: Poles, Towers & Fixtures | C23: 644499.82 | E23: 644499.82 | F23: 333694.83 | G23: 811347.235 | H23: 25 | I23: 0.04 | J23: 32453.8894 | K23: 39122.83 | L23: -6668.9406
A24: 1835 | B24: Overhead Conductors & Devices | C24: 11606413.87 | D24: 879129.15 | E24: 10727284.72 | F24: 578191.03 | G24: 11016380.24 | H24: 25 | I24: 0.04 | J24: 440655.2094 | K24: 452219.03 | L24: -11563.8206
A25: 1840 | B25: Underground Conduit | E25: 0 | G25: 0 | I25: 0 | J25: 0 | L25: 0
A26: 1845 | B26: Underground Conductors & Devices | C26: 8324434.14 | D26: 107043.78 | E26: 8217390.36 | F26: 230763.14 | G26: 8332771.93 | H26: 25 | I26: 0.04 | J26: 333310.8772 | K26: 337926.14 | L26: -4615.2628
A27: 1850 | B27: Line Transformers | C27: 5578931.13 | D27: 420614.65 | E27: 5158316.48 | F27: 112721.52 | G27: 5214677.24 | H27: 25 | I27: 0.04 | J27: 208587.0896 | K27: 210841.52 | L27: -2254.4304
A28: 1855 | B28: Services (Overhead & Underground) | C28: 954480.51 | E28: 954480.51 | F28: 139384.77 | G28: 1024172.895 | H28: 25 | I28: 0.04 | J28: 40966.9158 | K28: 43763.77 | L28: -2796.8542
A29: 1860 | B29: Meters (stranded meters) | C29: 1529891.29 | E29: 1529891.29 | F29: -1529891.29 | G29: 764945.645 | H29: 25 | I29: 0.04 | J29: 30597.8258 | K29: 31907.19 | L29: -1309.3642
A30: 1860 | B30: Meters (Smart Meters) | C30: 441653.09 | E30: 441653.09 | F30: =2606507.23+50051.5 -> 2656558.73 | G30: 1769932.455 | H30: 15 | I30: 0.06666666667 | J30: 117995.497 | K30: =32776.83+644029.73 -> 676806.56 | L30: -558811.063
A31: 1905 | B31: Land | E31: 0 | G31: 0 | I31: 0 | J31: 0 | L31: 0
A32: 1908 | B32: Buildings & Fixtures | E32: 0 | G32: 0 | I32: 0 | J32: 0 | L32: 0
A33: 1910 | B33: Leasehold Improvements | E33: 0 | G33: 0 | I33: 0 | J33: 0 | L33: 0
A34: 1915 | B34: Office Furniture & Equipment | C34: 191477.68 | D34: 90327.34 | E34: 101150.34 | F34: 16531.18 | G34: 109415.93 | H34: 10 | I34: 0.1 | J34: 10941.593 | K34: 11769.18 | L34: -827.587
A35: 1920 | B35: Computer Equip.-Hardware | C35: 18014.09 | E35: 18014.09 | G35: 18014.09 | H35: 3 | I35: 0.3333333333 | J35: 6004.696667 | K35: 6005 | L35: -0.3033333333
A36: 1930 | B36: Transportation Equipment | C36: 1611427.56 | D36: 351025.28 | E36: 1260402.28 | F36: 263419.78 | G36: 1392112.17 | H36: 7.12 | I36: 0.1404494382 | J36: 195521.3722 | K36: 179188.28 | L36: 16333.09219
A37: 1935 | B37: Stores Equipment | C37: 12000 | E37: 12000 | G37: 12000 | H37: 10 | I37: 0.1 | J37: 1200 | K37: 1200 | L37: 0
A38: 1940 | B38: Tools, Shop & Garage Equipment | E38: 0 | G38: 0 | I38: 0 | J38: 0 | L38: 0
A39: 1945 | B39: Measurement & Testing Equipment | C39: 51800 | D39: 51800 | E39: 0 | G39: 0 | H39: 10 | I39: 0.1 | J39: 0 | L39: 0
A40: 1950 | B40: Power Operated Equipment | C40: 37260 | E40: 37260 | G40: 37260 | H40: 10 | I40: 0.1 | J40: 3726 | K40: 3726 | L40: 0
A41: 1955 | B41: Communications Equipment | C41: 71751.41 | D41: 40753.18 | E41: 30998.23 | G41: 30998.23 | H41: 10 | I41: 0.1 | J41: 3099.823 | K41: 3100 | L41: -0.177
A42: 1960 | B42: Miscellaneous Equipment | C42: 239173.56 | D42: 203814.49 | E42: 35359.07 | G42: 35359.07 | H42: 10 | I42: 0.1 | J42: 3535.907 | K42: 3536 | L42: -0.093
A43: 1975 | B43: Load Management Controls Utility Premises | E43: 0 | G43: 0 | I43: 0 | J43: 0 | L43: 0
A44: 1980 | B44: System Supervisor Equipment | C44: 672850.48 | D44: 143562.99 | E44: 529287.49 | G44: 529287.49 | H44: 15 | I44: 0.06666666667 | J44: 35285.83267 | K44: 42390 | L44: -7104.167333
A45: 1985 | B45: Miscellaneous Fixed Assets | E45: 0 | G45: 0 | I45: 0 | J45: 0 | L45: 0
A46: 1995 | B46: Contributions & Grants | C46: -10231779.59 | E46: -10231779.59 | F46: -339434.26 | G46: -10401496.72 | H46: 25 | I46: 0.04 | J46: -416059.8688 | K46: -422858.26 | L46: 6798.3912
B47: Construction in process | C47: 121871.9 | D47: n/a | E47: n/a | F47: -95339.18 | G47: n/a | H47: n/a | I47: n/a | J47: n/a | K47: n/a | L47: n/a
E48: 0 | G48: 0 | L48: 0
B49: Total | C49: =SUM(C16:C48) -> 28197062.27 | D49: =SUM(D16:D48) -> 2622189.29 | E49: =SUM(E16:E48) -> 25453001.08 | F49: =SUM(F16:F48) -> 2841927.58 | G49: =SUM(G16:G48) -> 26921634.46 | J49: =SUM(J16:J48) -> 1311311.39 | K49: =SUM(K16:K48) -> 1888095.15 | L49: =SUM(L16:L48) -> -576783.7596
A51: Notes:
A52: 1 | B52: Board policy of the "half-year" rule - the applicant must ensure that additions in the year attract a half-year depreciation expense in the first year. Deviations from this standard practice must be supported in the application.
A53: 2 | B53: The applicant must provide an explanation of material variances in evidence
A54: 3 | B54: Additions are net of disposals. Calculated formulae for depreciation applies half year rule and therefore disposals would similarily had half year rule application.
A56: General: | B56: Applicants must provide a breakdown of depreciation and amortization expense in the above format for all relevant accounts. Asset Retirement Obligations (AROs), depreciation and accretion expense should be disclosed separately consistent with the Notes of historical Audited Financial Statements.

Sheet App.2-CI_CGAAP_DepExp_2013
K1: File Number: | L1: ='[5]LDC Info'!$E$18 -> 0
K2: Exhibit:
K3: Tab:
K4: Schedule:
K5: Page:
K7: Date: | L7: 2013-05-24
A9: Appendix 2-CI ( New )
A10: Depreciation and Amortization Expense
A11: Assumes the applicant adopted IFRS for financial reporting purposes January 1, 2013
C12: Year | D12: 2013 | E12: CGAAP
A14: Account | B14: Description | C14: Opening Regulatory Gross PP&E as at Jan 1, 2013 | D14: Less Fully Depreciated / Accumulative Depreciation 5 | E14: Net for Depreciation | F14: Additions 3 | G14: Total for Depreciation | H14: Years | I14: Depreciation Rate | J14: 2013 Depreciation Expense | K14: 2013 Depreciation4 Expense per Appendix 2-B Fixed Assets, Column K (l) | L14: Variance 2
C15: (a) | D15: (b) | E15: (c) | F15: (d) | G15: (e) = (c) + ½ x (d) 1 | H15: (f) | I15: (g) = 1 / (f) | J15: (h) = (e) / (f) | L15: (m) = (h) - (l)
A16: 1611 | B16: Computer Software (Formally known as Account 1925) | C16: 515602.98 | D16: 70195.59 | E16: =C16-D16 -> 445407.39 | F16: 105000 | G16: =E16+0.5*F16 -> 497907.39 | H16: 5 | I16: =IF(H16=0,0,1/H16) -> 0.2 | J16: =IF(H16=0,0,G16/H16) -> 99581.478 | K16: 110081 | L16: =IF(ISERROR(+J16-K16), 0, +J16-K16) -> -10499.522
A17: 1612 | B17: Land Rights (Formally known as Account 1906) | C17: 0 | D17: 0 | E17: =C17-D17 -> 0 | G17: =E17+0.5*F17 -> 0 | H17: 0 | I17: 0 | J17: 0 | K17: 0 | L17: 0
A18: 1805 | B18: Land | C18: 456548.3 | D18: 0 | E18: 456548.3 | G18: 456548.3 | H18: 0 | I18: 0 | J18: 0 | K18: 0 | L18: 0
A19: 1808 | B19: Buildings | C19: 602877.24 | D19: 0 | E19: 602877.24 | G19: 602877.24 | H19: 57.09 | I19: 0.01751620249 | J19: 10560.11981 | K19: 10845 | L19: -284.8801892
A20: 1820 | B20: Distribution Station Equipment <50 kV (5) | C20: 5221210.14 | D20: 1900761 | E20: 3320449.14 | G20: 3320449.14 | H20: 40.83 | I20: 0.02449179525 | J20: 81323.76047 | K20: 132672 | L20: -51348.23953
A21: 1825 | B21: Storage Battery Equipment | C21: 0 | D21: 0 | E21: 0 | G21: 0 | I21: 0 | J21: 0 | K21: 0 | L21: 0
A22: 1830 | B22: Poles, Towers & Fixtures (5) | C22: 8258212 | D22: 4323897 | E22: 3934315 | F22: 608422 | G22: 4238526 | H22: 45 | I22: 0.02222222222 | J22: 94189.46667 | K22: =164306+6760.24 -> 171066.24 | L22: -76876.77333
A23: 1835 | B23: Overhead Conductors & Devices (5) | C23: 4904588 | D23: 2632372 | E23: 2272216 | F23: 496343 | G23: 2520387.5 | H23: 45 | I23: 0.02222222222 | J23: 56008.61111 | K23: =106946+5514.92 -> 112460.92 | L23: -56452.30889
A24: 1840 | B24: Underground Conduit | C24: 0 | E24: 0 | F24: 0 | G24: 0 | I24: 0 | J24: 0 | K24: 0 | L24: 0
A25: 1845 | B25: Underground Conductors & Devices (5) | C25: 8555197.28 | D25: 4833953 | E25: 3721244.28 | F25: 214879 | G25: 3828683.78 | H25: 41.55 | I25: 0.02406738869 | J25: 92146.4207 | K25: =134346+2685.99 -> 137031.99 | L25: -44885.5693
A26: 1850 | B26: Line Transformers (5) | C26: 5691652.65 | D26: 2993927 | E26: 2697725.65 | F26: 206064 | G26: 2800757.65 | H26: 40 | I26: 0.025 | J26: 70018.94125 | K26: =110751+2575.8 -> 113326.8 | L26: -43307.85875
A27: 1855 | B27: Services (Overhead & Underground) (5) | C27: 1093865.28 | D27: 227719 | E27: 866146.28 | F27: 150000 | G27: 941146.28 | H27: 40 | I27: 0.025 | J27: 23528.657 | K27: =29453+1875 -> 31328 | L27: -7799.343
A28: 1860 | B28: Meters (stranded meters) | C28: 0 | E28: 0 | G28: 0 | H28: 25 | I28: 0.04 | J28: 0 | K28: 0 | L28: 0
A29: 1860 | B29: Meters (Smart Meters) | C29: 3098211.82 | E29: 3098211.82 | F29: 275500 | G29: 3235961.82 | H29: 15 | I29: 0.06666666667 | J29: 215730.788 | K29: =32780.33+181364.57 -> 214144.9 | L29: 1585.888
A30: 1905 | B30: Land | C30: 0 | E30: 0 | G30: 0 | I30: 0 | J30: 0 | K30: 0 | L30: 0
A31: 1908 | B31: Buildings & Fixtures | C31: 0 | E31: 0 | G31: 0 | I31: 0 | J31: 0 | K31: 0 | L31: 0
A32: 1910 | B32: Leasehold Improvements | C32: 0 | E32: 0 | G32: 0 | I32: 0 | J32: 0 | K32: 0 | L32: 0
A33: 1915 | B33: Office Furniture & Equipment | C33: 208008.86 | D33: 90327.34 | E33: 117681.52 | G33: 117681.52 | H33: 10 | I33: 0.1 | J33: 11768.152 | K33: 11768 | L33: 0.152
A34: 1920 | B34: Computer Equip.-Hardware | C34: 18014.09 | E34: 18014.09 | G34: 18014.09 | H34: 5 | I34: 0.2 | J34: 3602.818 | K34: 6005 | L34: -2402.182
A35: 1930 | B35: Transportation Equipment | C35: 1874847.34 | D35: 420231.68 | E35: 1454615.66 | F35: 202000 | G35: 1555615.66 | H35: 7.251356333 | I35: 0.1379052351 | J35: 214527.5433 | K35: 192047 | L35: 22480.54335
A36: 1935 | B36: Stores Equipment | C36: 12000 | E36: 12000 | G36: 12000 | H36: 10 | I36: 0.1 | J36: 1200 | K36: 1200 | L36: 0
A37: 1940 | B37: Tools, Shop & Garage Equipment | E37: 0 | G37: 0 | I37: 0 | J37: 0 | K37: 0 | L37: 0
A38: 1945 | B38: Measurement & Testing Equipment | C38: 51800 | D38: 51800 | E38: 0 | G38: 0 | H38: 10 | I38: 0.1 | J38: 0 | K38: 0 | L38: 0
A39: 1950 | B39: Power Operated Equipment | C39: 37260 | E39: 37260 | G39: 37260 | H39: 10 | I39: 0.1 | J39: 3726 | K39: 3726 | L39: 0
A40: 1955 | B40: Communications Equipment | C40: 71751.41 | D40: 43155.1 | E40: 28596.31 | G40: 28596.31 | H40: 10 | I40: 0.1 | J40: 2859.631 | K40: 3100 | L40: -240.369
A41: 1960 | B41: Miscellaneous Equipment | C41: 239173.56 | D41: 203814.49 | E41: 35359.07 | F41: 75000 | G41: 72859.07 | H41: 10 | I41: 0.1 | J41: 7285.907 | K41: 7286 | L41: -0.093
A42: 1975 | B42: Load Management Controls Utility Premises | C42: 0 | E42: 0 | G42: 0 | I42: 0 | J42: 0 | L42: 0
A43: 1980 | B43: System Supervisor Equipment | C43: 672850.48 | D43: 143562.99 | E43: 529287.49 | F43: 40000 | G43: 549287.49 | H43: 15 | I43: 0.06666666667 | J43: 36619.166 | K43: 36615.5 | L43: 3.666
A44: 1985 | B44: Miscellaneous Fixed Assets | C44: 0 | E44: 0 | G44: 0 | I44: 0 | J44: 0 | L44: 0
A45: 1995 | B45: Contributions & Grants (5) | C45: -10571213.85 | D45: -4307640 | E45: -6263573.85 | F45: -350000 | G45: -6438573.85 | H45: 42.41 | I45: 0.02357934449 | J45: -151817.3509 | K45: =-187458.21-4375 -> -191833.21 | L45: 40015.85914
B46: Construction in Progress | C46: 26532.72 | D46: n/a | E46: n/a | F46: n/a | G46: n/a | H46: n/a | I46: n/a | J46: n/a | K46: n/a | L46: n/a
E47: 0 | G47: 0
B48: Total | C48: =SUM(C16:C47) -> 31038990.3 | D48: =SUM(D16:D47) -> 13628076.19 | E48: =SUM(E16:E47) -> 17384381.39 | F48: =SUM(F16:F47) -> 2023208 | G48: =SUM(G16:G47) -> 18395985.39 | J48: =SUM(J16:J47) -> 872860.1095 | K48: =SUM(K16:K47) -> 1102871.14 | L48: =SUM(L16:L47) -> -230011.0305
A50: Notes:
A51: 1 | B51: Board policy of the "half-year" rule - the applicant must ensure that additions in the year attract a half-year depreciation expense in the first year. Deviations from this standard practice must be supported in the application.
A52: 2 | B52: The applicant must provide an explanation of material variances in evidence
A53: 3 | B53: Additions are net of disposals. Calculated formulae for depreciation applies half year rule and therefore disposals would similarily had half year rule application.
A54: 4 | B54: 2013 Test year deprecation based on half year rule application
A55: 5 | B55: For 2013 due to the change in accounting standard to IFRS the actual deprecation is based on applying the remaining useful life against the opening net book value. In order to develop an effective comparison the opening accumulative depreciation was entered for those asset classes that had revised useful lives under IFRS.
A57: General: | B57: Applicants must provide a breakdown of depreciation and amortization expense in the above format for all relevant accounts. Asset Retirement Obligations (AROs), depreciation and accretion expense should be disclosed separately consistent with the Notes of historical Audited Financial Statements. As Collus has deferred IFRS until 2014 there is no requirement for a PPE deferral account and the opening cost balance shall be the 2012 closing cost balance.

Sheet App.2-D_Overhead
L1: File Number: | M1: ='LDC Info'!$E$18 -> EB-2012-0116
L2: Exhibit:
L3: Tab:
L4: Schedule:
L5: Page:
L7: Date: | M7: 2013-05-24
A9: Appendix 2-D
A10: Overhead Expense
A13: The following table should be completed based on the information requested below. An explanation should be provided for any blank entries. The entries should include overhead costs that are currently capitalized on self-constructed assets under MIFRS or an alternate accounting standard.
E14: (A) 1 | F14: (B) | G14: (C) | H14: (D) | I14: (E) 1 | J14: (F) | K14: (G)
A15: Nature of the Overhead Costs | E15: Dollar | F15: Dollar | G15: Dollar | H15: Dollar Impact - | I15: Dollar Impact - | J15: Directly | K15: Reasons why the overhead costs are allowed to be
E16: Impact on PP&E | F16: Impact on PP&E | G16: Impact on PP&E | H16: PP&E Variance | I16: PP&E Variance | J16: Attributable? | K16: capitalized under MIFRS or an alternate accounting
E17: Historic Year | F17: Bridge Year | G17: Test Year | H17: Test versus Bridge | I17: Test versus Historic | J17: (Y/N) | K17: standard given limitations on capitalized overhead
A18: employee benefits | H18: =+G18-F18 -> 0 | I18: =+G18-E18 -> 0
A19: costs of site preparation | H19: 0 | I19: 0
A20: initial delivery and handling costs | H20: 0 | I20: 0
A21: costs of testing whether the asset is functioning properly | H21: 0 | I21: 0
A22: professional fees | H22: 0 | I22: 0
H23: 0 | I23: 0
A24: costs of opening a new facility | H24: 0 | I24: 0
A25: costs of introducing a new product or service (including costs of advertising and promotional activities) | H25: 0 | I25: 0
A26: costs of conducting business in a new location or with a new class of customer (including costs of staff training) | H26: 0 | I26: 0
A27: administration and other general overhead costs | E27: 259100 | F27: 246300 | G27: 212800 | H27: -33500 | I27: -46300 | J27: Y | K27: Test year represents removal of allocated rent for Stores and Vehicles and the removal of training and other costs deemed not to be direct/not IFRS compliant that are no longer capitalized
H28: 0 | I28: 0
H29: 0 | I29: 0
H30: 0 | I30: 0
A31: Insert description of additional item(s) and new rows if needed. | H31: 0 | I31: 0
A32: Total | E32: =SUM(E18:E31) -> 259100 | F32: =SUM(F18:F31) -> 246300 | G32: =SUM(G18:G31) -> 212800 | H32: =SUM(H18:H31) -> -33500 | I32: =SUM(I18:I31) -> -46300
A35: The following table should be completed based on the information requested below. An explanation should be provided for any blank entries. The entries should include overhead costs that were capitalized on self-constructed assets under CGAAP but are no longer capitalized under MIFRS or an alternate accounting standard and are included in OM&A.
E36: (A) 1 | F36: (B) | G36: (C) | H36: (D) | I36: (E) 1 | J36: (F) | K36: (G)
A37: Nature of the Overhead Costs | E37: Dollar | F37: Dollar | G37: Dollar | H37: Dollar Impact - | I37: Dollar Impact - | J37: Directly | K37: Reasons why the overhead costs are not allowed to be
E38: Impact on OM&A | F38: Impact on OM&A | G38: Impact on OM&A | H38: OM&A Variance | I38: OM&A Variance | J38: Attributable? | K38: capitalized under MIFRS or an alternate accounting
E39: Historic Year | F39: Bridge Year | G39: Test Year | H39: Test versus Bridge | I39: Test versus Historic | J39: (Y/N) | K39: standard given limitations on capitalized overhead
A40: employee benefits | H40: =+G40-F40 -> 0 | I40: =+G40-E40 -> 0
A41: costs of site preparation | H41: =+G41-F41 -> 0 | I41: =+G41-E41 -> 0
A42: initial delivery and handling costs | H42: =+G42-F42 -> 0 | I42: =+G42-E42 -> 0
A43: costs of testing whether the asset is functioning properly | H43: =+G43-F43 -> 0 | I43: =+G43-E43 -> 0
A44: professional fees | H44: =+G44-F44 -> 0 | I44: =+G44-E44 -> 0
A46: costs of opening a new facility | H46: =+G46-F46 -> 0 | I46: =+G46-E46 -> 0
A47: costs of introducing a new product or service (including costs of advertising and promotional activities) | H47: 0 | I47: 0
A48: costs of conducting business in a new location or with a new class of customer (including costs of staff training) | H48: 0 | I48: 0
A49: administration and other general overhead costs | E49: 1179800 | F49: 1211300 | G49: 1235400 | H49: 24100 | I49: 55600 | J49: N | K49: Test year increase represents removal of allocated rent for Stores and Vehicles and the removal of training and other costs deemed not to be direct/ not IFRS compliant that are no longer capitalized
H50: 0 | I50: 0
H51: 0 | I51: 0
H52: 0 | I52: 0
A53: Insert description of additional item(s) and new rows if needed. | H53: 0 | I53: 0
A54: Total | E54: =SUM(E40:E53) -> 1179800 | F54: =SUM(F40:F53) -> 1211300 | G54: =SUM(G40:G53) -> 1235400 | H54: =SUM(H40:H53) -> 24100 | I54: =SUM(I40:I53) -> 55600
A56: Notes:
A57: 1 | B57: If the applicant chooses to adopt IFRS or an alternate accounting standard for financial reporting purposes in 2013, the applicant does not need to complete Columns A, E. If the applicant adopts IFRS or an alternate accounting standard for financial reporting purposes in 2012, the applicant must complete all columns.

Sheet App.2-EA_PP&E Deferral Account
H1: File Number: | I1: ='LDC Info'!$E$18 -> EB-2012-0116
H2: Exhibit:
H3: Tab:
H4: Schedule:
H5: Page:
H7: Date:
A9: Appendix 2-EA
A10: IFRS-CGAAP Transitional PP&E Amounts
A11: 2012 Adopters of IFRS for Financial Reporting Purposes
A13: For applicants that adopt IFRS on January 1, 2012 for financial reporting purposes
A15: Note: this sheet should be filled out if the applicant adopts IFRS for its financial reporting purpose as of January 1, 2012.
B17: 2009 Rebasing Year | C17: 2010 | D17: 2011 | E17: 2012 | F17: 2013 Rebasing Year | G17: 2014 | H17: 2015 | I17: 2016
A18: Reporting Basis | B18: CGAAP | C18: IRM | D18: IRM | E18: IRM | F18: MIFRS | G18: IRM | H18: IRM | I18: IRM
A19: Forecast vs. Actual Used in Rebasing Year | B19: Forecast | C19: Actual | D19: Actual | E19: Forecast | F19: Forecast
D20: $ | E20: $
A21: PP&E Values under CGAAP
A22: Opening net PP&E - Note 1
A23: Additions
A24: Depreciation (amounts should be negative)
A25: Closing net PP&E (1) | D25: =D22+D23+D24 -> 0 | E25: =E22+E23+E24 -> 0
A27: PP&E Values under MIFRS (Starts from 2011, the transition year)
A28: Opening net PP&E - Note 1
A29: Additions
A30: Depreciation (amounts should be negative)
A31: Closing net PP&E (2) | D31: =SUM(D28:D30) -> 0 | E31: =SUM(E28:E30) -> 0
A33: Difference in Closing net PP&E, CGAAP vs. MIFRS (Shown as adjustment to rate base on rebasing) | D33: =D25-D31 -> 0 | E33: =E25-E31 -> 0
A35: Account 1575 - IFRS-CGAAP Transitional PP&E Amounts
A36: Opening balance | D36: 0 | E36: =D40 -> 0 | F36: =E40 -> 0 | G36: =F40 -> 0 | H36: =G40 -> 0 | I36: =H40 -> 0
A37: Amounts added in the year | D37: =D33 -> 0 | E37: =E33-D33 -> 0
A38: Sub-total | D38: =D36+D37 -> 0 | E38: 0 | F38: 0 | G38: 0 | H38: 0 | I38: 0
A39: Amount of amortization, included in depreciation expense - Note 2 | F39: =IF(ISERROR(-E33/I44), 0, -E33/I44) -> 0 | G39: =+F39 -> 0 | H39: =+F39 -> 0 | I39: =+F39 -> 0
A40: Closing balance in deferral account | D40: =D38+D39 -> 0 | E40: 0 | F40: =IF(ISERROR(F38+F39), 0, F38+F39) -> 0 | G40: 0 | H40: 0 | I40: 0
A42: Effect on Revenue Requirement
A43: Amortization of deferred balance as above - Note 2 | F43: =IF(ISERROR(E33/I44), 0, E33/I44) -> 0 | H43: WACC
A44: Return on Rate Base Associated with deferred PP&E balance at WACC - Note 3 | F44: =E33*I43 -> 0 | H44: Disposition Period - Note 4 | I44: 4 | J44: Years
A45: Amount included in Revenue Requirement on rebasing | F45: =F43+F44 -> 0
A47: Notes:
A48: 1 For an applicant that adopts IFRS on January 1, 2012, the PP&E values as of January 1, 2011 under both CGAAP and MIFRS should be the same.
A49: 2 Amortization of the deferred balance in Account 1575 will start from the rebasing year.
A50: Assume the utility requests for a certain disposition period, the amortization that should be included in the depreciation expense is calculated as:
A51: the opening balance of Account 1575 / the approved disposition period
A52: 3 Return on rate base associated with deferred balance is calculated as:
A53: the deferred account opening balance as of 2013 rebasing year x WACC
A54: * Please note that the calculation should be adjusted once WACC is updated and finalized in the rate application.
A55: 4 Consistent with the 4 year normal rate cycle, the model is using a 4 year amortization period as a default selection to "clear" the PP&E deferral account through a one-time adjustment to ratebase to capture and remove the impact of the accounting policy changes as caused by the transition from CGAAP to MIFRS.

Sheet App.2-EB_PP&E Deferral Account
H1: File Number: | I1: ='LDC Info'!$E$18 -> EB-2012-0116
H2: Exhibit:
H3: Tab:
H4: Schedule:
H5: Page:
H7: Date:
A9: Appendix 2-EB
A10: IFRS-CGAAP Transitional PP&E Amounts
A11: 2013 Adopters of IFRS for Financial Reporting Purposes
A13: For applicants that adopt IFRS on January 1, 2013 for financial reporting purposes
A15: Note: this sheet should be filled out if the applicant adopts IFRS for its financial reporting purpose as of January 1, 2013.
B17: 2009 Rebasing Year | C17: 2010 | D17: 2011 | E17: 2012 | F17: 2013 Rebasing Year | G17: 2014 | H17: 2015 | I17: 2016
A18: Reporting Basis | B18: CGAAP | C18: IRM | D18: IRM | E18: IRM | F18: MIFRS | G18: IRM | H18: IRM | I18: IRM
A19: Forecast vs. Actual Used in Rebasing Year | B19: Forecast | C19: Actual | D19: Actual | E19: Forecast | F19: Forecast
D20: $ | E20: $ | F20: $ | G20: $ | H20: $ | I20: $
A21: PP&E Values under CGAAP
A22: Opening net PP&E - Note 1
A23: Additions
A24: Depreciation (amounts should be negative)
A25: Closing net PP&E (1) | E25: =SUM(E22:E24) -> 0
A27: PP&E Values under MIFRS (Starts from 2012, the transition year)
A28: Opening net PP&E - Note 1
A29: Additions
A30: Depreciation (amounts should be negative)
A31: Closing net PP&E (2) | E31: =SUM(E28:E30) -> 0
A33: Difference in Closing net PP&E, CGAAP vs. MIFRS (Shown as adjustment to rate base on rebasing) | E33: =E25-E31 -> 0
A35: Account 1575 - IFRS-CGAAP Transitional PP&E Amounts
A36: Opening balance | E36: =D40 -> 0 | F36: =E40 -> 0 | G36: =F40 -> 0 | H36: =G40 -> 0 | I36: =H40 -> 0
A37: Amounts added in the year | E37: =E33-D33 -> 0
A38: Sub-total | E38: =E36+E37 -> 0 | F38: =F36+F37 -> 0 | G38: =G36+G37 -> 0 | H38: =H36+H37 -> 0 | I38: =I36+I37 -> 0
A39: Amount of amortization, included in depreciation expense - Note 2 | F39: =IF(ISERROR(-E33/I44), 0, -E33/I44) -> 0 | G39: =+F39 -> 0 | H39: =+F39 -> 0 | I39: =+F39 -> 0
A40: Closing balance in deferral account | E40: =E38+E39 -> 0 | F40: =IF(ISERROR(F38+F39), 0, F38+F39) -> 0 | G40: =G38+G39 -> 0 | H40: =H38+H39 -> 0 | I40: =I38+I39 -> 0
A42: Effect on Revenue Requirement
A43: Amortization of deferred balance as above - Note 2 | F43: =IF(ISERROR(E33/I44), 0, E33/I44) -> 0 | H43: WACC
A44: Return on Rate Base Associated with deferred PP&E balance at WACC - Note 3 | F44: =E33*I43 -> 0 | H44: Disposition Period - Note 4 | I44: 4 | J44: Years
A45: Amount included in Revenue Requirement on rebasing | F45: =F43+F44 -> 0
A47: Notes:
A48: 1 For an applicant that adopts IFRS on January 1, 2013, the PP&E values as of January 1, 2012 under both CGAAP and MIFRS should be the same.
A49: 2 Amortization of the deferred balance in Account 1575 will start from the rebasing year.
A50: Assume the utility requests for a certain disposition period, the amortization that should be included in the depreciation expense is calculated as:
A51: the opening balance of Account 1575 / the approved disposition period
A52: 3 Return on rate base associated with deferred balance is calculated as:
A53: the deferred account opening balance as of 2013 rebasing year x WACC
A54: * Please note that the calculation should be adjusted once WACC is updated and finalized in the rate application.
A55: 4 Consistent with the 4 year normal rate cycle, the model is using a 4 year amortization period as a default selection to "clear" the PP&E deferral account through a one-time adjustment to ratebase to capture and remove the impact of the accounting policy changes as caused by the transition from CGAAP to MIFRS.

Sheet App.2-F_Other_Oper_Rev
H1: File Number: | I1: ='LDC Info'!$E$18 -> EB-2012-0116
H2: Exhibit:
H3: Tab:
H4: Schedule:
H5: Page:
H7: Date: | I7: 2013-05-24
A9: Appendix 2-F
A10: Other Operating Revenue
A12: USoA # | B12: USoA Description | C12: =G13-3 & " Actual" -> 2009 Actual | D12: =G13-2 & " Actual" -> 2010 Actual | E12: =G13-1 & " Actual"& CHAR(178) -> 2011 Actual² | F12: =G13-1 & " Actual"& CHAR(178) -> 2011 Actual² | G12: ="Bridge Year" & CHAR(179) -> Bridge Year³ | H12: ="Bridge Year" & CHAR(179) -> Bridge Year³ | I12: Test Year
G13: ='LDC Info'!E26 -> 2012 | H13: ='LDC Info'!E26 -> 2012 | I13: ='LDC Info'!E28 -> 2013
B14: Reporting Basis | C14: CGAAP | D14: CGAAP | E14: CGAAP | G14: CGAAP | I14: CGAAP
A15: 4235 | B15: Specific Service Charges | C15: 149517 | D15: 199352 | E15: 173436 | G15: 185406 | I15: 204000
A16: 4225 | B16: Late Payment Charges | C16: 94277 | D16: 99511 | E16: 118839 | G16: 130330 | I16: 84000
A17: 4082 | B17: Retail Services Revenues | C17: 19741 | D17: 20465 | E17: 19227 | G17: 17380 | I17: 18000
A18: 4084 | B18: Service Transaction Requests | C18: -985 | D18: -176 | E18: -2287 | G18: 410 | I18: 500
A19: 4210 | B19: Rent from Electric Property | C19: 84046 | D19: 107600 | E19: 99248 | G19: 105401 | I19: 105000
A20: 4345 | B20: Gain on Disposition of future Utility property | C20: 0 | D20: 0 | E20: 0 | G20: 645 | I20: 0
A21: 4355 | B21: Gain on Disposition of Utility property | C21: 0 | D21: 8852 | E21: 320 | G21: 0 | I21: 0
A22: 4390 | B22: Misc. Non-operating income | C22: 9280 | D22: 53635 | E22: 5490 | G22: 4748 | I22: 6000
A23: 4405 | B23: Interest and dividend income | C23: 58644 | D23: 46626 | E23: 30617 | G23: 37452 | I23: 48000
A27: Specific Service Charges | C27: =C15 -> 149517 | D27: 199352 | E27: 173436 | F27: =F15 -> 0 | G27: =G15 -> 185406 | H27: =H15 -> 0 | I27: =I15 -> 204000
A28: Late Payment Charges | C28: 94277 | D28: 99511 | E28: 118839 | F28: =F16 -> 0 | G28: =G16 -> 130330 | H28: =H16 -> 0 | I28: =I16 -> 84000
A29: Other Operating Revenues | C29: 102802 | D29: 127889 | E29: 164188 | G29: 123190 | I29: 123600
A30: Other Income or Deductions | C30: 67924 | D30: 109113 | E30: 36427 | G30: 42845 | I30: 54000
A31: Total | C31: =SUM(C27:C30) -> 414520 | D31: 535865 | E31: 492890 | F31: 0 | G31: 481771 | H31: 0 | I31: 465600
A33: Description | C33: Account(s)
A34: Specific Service Charges: | C34: 4235
A35: Late Payment Charges: | C35: 4225
A36: Other Distribution Revenues: | C36: 4080, 4082, 4084, 4090, 4205, 4210, 4215, 4220, 4240, 4245
A37: Other Income and Expenses: | C37: 4305, 4310, 4315, 4320, 4325, 4330, 4335, 4340, 4345, 4350, 4355, 4360, 4365, 4370, 4375, 4380, 4385, 4390, 4395, 4398, 4405, 4415
A40: Note: Add all applicable accounts listed above to the table and include all relevant information.
A41: The above table assumes adoption of MIFRS as of January 1, 2013. If the adoption year differs, please adjust the table accordingly.
A44: Account Breakdown Details
A46: For each "Other Operating Revenue" and "Other Income or Deductions" Account, a detailed breakdown of the account components is required. See the example below for Account 4405, Interest and Dividend Income.
A49: Account 4405 - Interest and Dividend Income
C50: =C12 -> 2009 Actual | D50: =D12 -> 2010 Actual | E50: =E12 -> 2011 Actual² | F50: =F12 -> 2011 Actual² | G50: Bridge Year | H50: Bridge Year | I50: Test Year
A51: Reporting Basis | C51: =IF(ISBLANK(C14), "", C14) -> CGAAP | D51: CGAAP | E51: CGAAP | G51: CGAAP | I51: CGAAP
A52: Short-term Investment Interest
A53: Bank Deposit Interest
A54: Miscellaneous Interest Revenue
A55: etc.1
A57: Total | C57: =SUM(C52:C56) -> 0 | D57: 0 | E57: 0 | F57: 0 | G57: 0 | H57: 0 | I57: 0
A60: Notes:
A61: 1 | B61: List and specify any other interest revenue
A62: 2 | B62: If the applicant is adopting IFRS or an alternate accounting standard as of January 1, 2012 for financial reporting purposes, 2011 must be presented on both a CGAAP and MIFRS (or alternate accounting standard) basis.
A63: 3 | B63: If the applicant is adopting IFRS or an alternate accounting standard as of January 1, 2013 for financial reporting purposes, 2012 must be presented on both a CGAAP and MIFRS (or alternate accounting standard) basis.

Sheet App.2-G_Detailed_OM&A_Expenses
H1: File Number: | I1: ='LDC Info'!$E$18 -> EB-2012-0116
H2: Exhibit:
H3: Tab:
H4: Schedule:
H5: Page:
H7: Date: | I7: 2013-05-24
A9: Appendix 2-G
A10: Detailed, Account by Account, OM&A Expense Table
A11: (excluding Depreciation and Amortization)
D13: COLLUS Power Corp.
D14: Actual | G14: Bridge Year | H14: Test Year
D15: 2009 CGAAP | E15: 2010 CGAAP | F15: 2011 CGAAP | G15: 2012 CGAAP | H15: 2013 CGAAP
C17: Operation Expenses
B18: 5005 | C18: Operation Supervision and Engineering | D18: 69390.45 | E18: 67167.41 | F18: 92070.5 | G18: 130060.73 | H18: 132000
B19: 5010 | C19: Load Dispatching | D19: 45849.84 | E19: 40581.67 | F19: 21107.92 | G19: 58455.31 | H19: 88500
B20: 5012 | C20: Station Buildings and Fixtures Expense | D20: 17216.72 | E20: 35189.91 | F20: 31477.89 | G20: 23199.07 | H20: 27000
B21: 5014 | C21: Transformer Station Equipment - Operation Labour | D21: 0 | E21: 0 | F21: 0 | G21: 0 | H21: 0
B22: 5015 | C22: Transformer Station Equipment - Operation Supplies and Expenses | D22: 0 | E22: 0 | F22: 0 | G22: 0 | H22: 0
B23: 5016 | C23: Distribution Station Equipment - Operation Labour | D23: 0 | E23: 0 | F23: 0 | G23: -0.3 | H23: -0.312
B24: 5017 | C24: Distribution Station Equipment - Operation Supplies and Expenses | D24: 8370.95 | E24: 14863.8 | F24: 0 | G24: 0 | H24: 0
B25: 5020 | C25: Overhead Distribution Lines and Feeders - Operation Labour | D25: 3060.22 | E25: 0 | F25: 2732.93 | G25: 29933.76 | H25: 30000
B26: 5025 | C26: Overhead Distribution Lines & Feeders - Operation Supplies and Expenses | D26: 3702.65 | E26: 2043 | F26: -140.18 | G26: 25411.47 | H26: 30000
B27: 5030 | C27: Overhead Subtransmission Feeders - Operation | D27: 0 | E27: 0 | F27: 0 | G27: 0 | H27: 0
B28: 5035 | C28: Overhead Distribution Transformers- Operation | D28: 34577.1 | E28: 62321.29 | F28: 46409.56 | G28: 27407.72 | H28: 34800
B29: 5040 | C29: Underground Distribution Lines and Feeders - Operation Labour | D29: 0 | E29: 0 | F29: 410.64 | G29: 6487.82 | H29: 8000
B30: 5045 | C30: Underground Distribution Lines & Feeders - Operation Supplies & Expenses | D30: 0 | E30: 100.44 | F30: 0 | G30: 4482.56 | H30: 6000
B31: 5050 | C31: Underground Subtransmission Feeders - Operation | D31: 0 | E31: 0 | F31: 0 | G31: 0 | H31: 0
B32: 5055 | C32: Underground Distribution Transformers - Operation | D32: 0 | E32: 2592.2 | F32: 18362.51 | G32: 5534.72 | H32: 12000
B33: 5060 | C33: Street Lighting and Signal System Expense | D33: 0 | E33: 0 | F33: 0 | G33: 0 | H33: 0
B34: 5065 | C34: Meter Expense | D34: 9006.47 | E34: 948.8 | F34: 8471.82 | G34: 4124.14 | H34: 6000
B35: 5070 | C35: Customer Premises - Operation Labour | D35: 0 | E35: 0 | F35: 908.66 | G35: 0 | H35: 0
B36: 5075 | C36: Customer Premises - Materials and Expenses | D36: 0 | E36: 0 | F36: 0 | G36: 0 | H36: 0
B37: 5085 | C37: Miscellaneous Distribution Expense | D37: 66555.53 | E37: 77766.18 | F37: 59547.9 | G37: 45577 | H37: 60000
B38: 5090 | C38: Underground Distribution Lines and Feeders - Rental Paid | D38: 0 | E38: 0 | F38: 0 | G38: 0 | H38: 0
B39: 5095 | C39: Overhead Distribution Lines and Feeders - Rental Paid | D39: 0 | E39: 0 | F39: 0 | G39: 0 | H39: 0
B40: 5096 | C40: Other Rent | D40: 0 | E40: 0 | F40: 0 | G40: 0 | H40: 172800
C41: Total Operation Expenses | D41: =SUM(D18:D40) -> 257729.93 | E41: =SUM(E18:E40) -> 303574.7 | F41: 281360.15 | G41: 360674 | H41: 607099.688
D46: COLLUS Power Corp.
D47: Actual | G47: Bridge Year | H47: Test Year
D48: 2009 CGAAP | E48: 2010 CGAAP | F48: 2011 CGAAP | G48: 2012 CGAAP | H48: 2013 CGAAP
C50: Maintenance Expenses
B51: 5105 | C51: Maintenance Supervision and Engineering | D51: 61532.46 | E51: 53871.98 | F51: 110367.59 | G51: 133263.07 | H51: 60000
B52: 5110 | C52: Maintenance of Buildings and Fixtures - Distribution Stations | D52: 11522.61 | E52: 11673.87 | F52: 6364.16 | G52: 10728.01 | H52: 12000
B53: 5112 | C53: Maintenance of Transformer Station Equipment | D53: 0 | E53: 0 | F53: 0 | G53: 0 | H53: 0
B54: 5114 | C54: Maintenance of Distribution Station Equipment | D54: 46985.13 | E54: 84324.91 | F54: 45211.67 | G54: 56938 | H54: 52000
B55: 5120 | C55: Maintenance of Poles, Towers and Fixtures | D55: 135578.96 | E55: 137522.94 | F55: 167964.65 | G55: 180084 | H55: 184000
B56: 5125 | C56: Maintenance of Overhead Conductors and Devices | D56: 325373.34 | E56: 394515.44 | F56: 402086.01 | G56: 320012 | H56: 324000
B57: 5130 | C57: Maintenance of Overhead Services | D57: 194501.68 | E57: 189258.04 | F57: 268241.91 | G57: 165647 | H57: 172200
B58: 5135 | C58: Overhead Distribution Lines and Feeders - Right of Way | D58: 151176.42 | E58: 154774.48 | F58: 150791.27 | G58: 197211 | H58: 100000
B59: 5145 | C59: Maintenance of Underground Conduit | D59: 0 | E59: 0 | F59: 10000 | G59: 0 | H59: 0
B60: 5150 | C60: Maintenance of Underground Conductors and Devices | D60: 131858.85 | E60: 96017.03 | F60: 104814.66 | G60: 117438 | H60: 117000
B61: 5155 | C61: Maintenance of Underground Services | D61: 253331.14 | E61: 242336.71 | F61: 246024.09 | G61: 239402 | H61: 228000
B62: 5160 | C62: Maintenance of Line Transformers | D62: 45373.14 | E62: 41151.65 | F62: 63543.8 | G62: 70561 | H62: 75000
B63: 5170 | C63: Sentinel Lights - Labour | D63: 0 | E63: 0 | F63: 0 | G63: 0 | H63: 0
B64: 5172 | C64: Sentinel Lights - Materials and Expenses | D64: 0 | E64: 0 | F64: 0 | G64: 0 | H64: 0
B65: 5175 | C65: Maintenance of Meters | D65: 288221.45 | E65: 174645.06 | F65: 242710.19 | G65: 248054 | H65: 241700
B66: 5178 | C66: Customer Installations Expenses- Leased Property | D66: 0 | E66: 0 | F66: 0 | G66: 0 | H66: 0
B67: 5195 | C67: Maintenance of Other Installations on Customer Premises | D67: 0 | E67: 0 | F67: 0 | G67: 0 | H67: 0
C68: Total Maintenance Expenses | D68: =SUM(D51:D67) -> 1645455.18 | E68: =SUM(E51:E67) -> 1580092.11 | F68: 1818120 | G68: 1739338.08 | H68: 1565900
D69: 0 | E69: 0 | F69: 0 | G69: 0 | H69: 0 | I69: 0
D73: COLLUS Power Corp.
D74: Actual | G74: Bridge Year | H74: Test Year
D75: 2009 CGAAP | E75: 2010 CGAAP | F75: 2011 CGAAP | G75: 2012 CGAAP | H75: 2013 CGAAP
C77: Billing and Collecting
B78: 5305 | C78: Supervision | D78: 13420.32 | E78: 0 | F78: 46131.38 | G78: 60035.49 | H78: 84000
B79: 5310 | C79: Meter Reading Expense | D79: 87466.83 | E79: 89107.82 | F79: 46175.32 | G79: 237727 | H79: 192000
B80: 5315 | C80: Customer Billing | D80: 577387.41 | E80: 580708.28 | F80: 468714.11 | G80: 587319 | H80: 534276
B81: 5320 | C81: Collecting | D81: 59618.23 | E81: 104752.78 | F81: 103672.09 | G81: 117926.15 | H81: 119586
B82: 5325 | C82: Collecting- Cash Over and Short | D82: 1042.11 | E82: -56.86 | F82: 4495 | G82: -72.91 | H82: 0
B83: 5330 | C83: Collection Charges | D83: 0 | E83: 0 | F83: 0 | G83: 0 | H83: 0
B84: 5335 | C84: Bad Debt Expense | D84: 82135.17 | E84: 93161.07 | F84: 58406.4 | G84: 82323.01 | H84: 84000
B85: 5340 | C85: Miscellaneous Customer Accounts Expenses | D85: 0 | E85: 0 | F85: 0 | G85: 0 | H85: 0
C86: Total Billing and Collecting | D86: =SUM(D78:D85) -> 821070.07 | E86: =SUM(E78:E85) -> 867673.09 | F86: 727594.3 | G86: 1085257.74 | H86: 1013862
D87: 0 | E87: 0 | F87: 0 | G87: 0
C88: Community Relations (incl sales expense)
B89: 5405 | C89: Supervision | D89: 0 | E89: 0 | F89: 0 | G89: 0 | H89: 0
B90: 5410 | C90: Community Relations - Sundry | D90: 0 | E90: 0 | F90: 0 | G90: 0 | H90: 0
B91: 5415 | C91: Energy Conservation | D91: 0 | E91: 8041.49 | F91: 5117.23 | G91: 0 | H91: 0
B92: 5420 | C92: Community Safety Program | D92: 0 | E92: 0 | F92: 0 | G92: 0 | H92: 0
B93: 5425 | C93: Miscellaneous Customer Service and Informational Expenses | D93: 103213.01 | E93: 158530.31 | F93: 144910.91 | G93: 133479 | H93: 138000
B94: 5505 | C94: Supervision | D94: 0 | E94: 0 | F94: 0 | G94: 0 | H94: 0
B95: 5510 | C95: Demonstrating and Selling Expense | D95: 0 | E95: 0 | F95: 0 | G95: 0 | H95: 0
B96: 5515 | C96: Advertising Expense | D96: 0 | E96: 0 | F96: 0 | G96: 0 | H96: 0
B97: 5520 | C97: Miscellaneous Sales Expense | D97: 0 | E97: 0 | F97: 0 | G97: 0 | H97: 0
C98: Total Community Relations (incl sales expense) | D98: =SUM(D89:D97) -> 103213.01 | E98: =SUM(E89:E97) -> 166571.8 | F98: 150028.14 | G98: 133479 | H98: 138000
D99: 0 | E99: 0 | F99: 0 | G99: 0
C100: Administrative and General Expenses
B101: 5605 | C101: Executive Salaries and Expenses | D101: 736804 | E101: 819531 | F101: 677188 | G101: 872220 | H101: 831600
B102: 5610 | C102: Management Salaries and Expenses
B103: 5615 | C103: General Administrative Salaries and Expenses
B104: 5620 | C104: Office Supplies and Expenses | D104: 0 | E104: 0 | F104: 79.24 | G104: 0 | H104: 0
B105: 5625 | C105: Administrative Expense Transferred Credit | D105: 0 | E105: 0 | F105: 0 | G105: 0 | H105: 0
B106: 5630 | C106: Outside Services Employed | D106: 183125 | E106: 150000 | F106: 146229 | G106: 306332.89 | H106: 216000
B107: 5635 | C107: Property Insurance | D107: 670.68 | E107: 1506 | F107: 35411.85 | G107: 28117 | H107: 28887
B108: 5640 | C108: Injuries and Damages | D108: 2105.19 | E108: 0 | F108: 46803.12 | G108: 53947 | H108: 64800
B109: 5645 | C109: Employee Pensions and Benefits | D109: 0 | E109: 0 | F109: 0 | G109: -352 | H109: 3306
B110: 5650 | C110: Franchise Requirements | D110: 0 | E110: 0 | F110: 0 | G110: 0 | H110: 0
B111: 5655 | C111: Regulatory Expenses | D111: 29514.94 | E111: 34322.9 | F111: 42003.71 | G111: 84015.01 | H111: 81000
B112: 5660 | C112: General Advertising Expenses | D112: 0 | E112: 0 | F112: 0 | G112: 2184.38 | H112: 2000
B113: 5665 | C113: Miscellaneous General Expenses | D113: 0 | E113: 0 | F113: 0 | G113: 72591 | H113: 90000
B114: 5670 | C114: Rent | D114: 39999.96 | E114: 39999.96 | F114: 43200 | G114: 43200 | H114: 43200
B115: 5675 | C115: Maintenance of General Plant | D115: 22139.59 | E115: 22459.13 | F115: 91537.09 | G115: 22372 | H115: 30000
B116: 5680 | C116: Electrical Safety Authority Fees | D116: 8364.96 | E116: 8518.2 | F116: 6698.69 | G116: 7010.9 | H116: 8040
B117: 5681 | C117: SPC Expense | D117: 0 | E117: 0 | F117: 0 | G117: 0 | H117: 0
B118: 5685 | C118: Independent Market Operator Fees and Penalties | D118: 0 | E118: 0 | F118: 0 | G118: 0 | H118: 0
B119: 5695 | C119: OM&A contra account | D119: 0 | E119: 0 | F119: 0 | G119: 0 | H119: 0
B120: 6205 | C120: Donations & LEAP | D120: 0 | E120: 0 | F120: 4862 | G120: 32918 | H120: 31465
B121: 6210 | C121: Life Insurance | D121: 0 | E121: 0 | F121: 0 | G121: 0 | H121: 0
B122: JS | C122: less Cost of Shared service (included in A&G above) | D122: 0 | E122: 0 | F122: 0 | G122: 0 | H122: 0
C123: Other Distribution expenses
B124: 6105 | C124: Taxes Other Than Income Taxes | D124: 0 | E124: 1601.52 | F124: 1970.55 | G124: 0 | H124: 0
B125: 6215 | C125: Penalties | D125: 0 | E125: 0 | F125: 0 | G125: 0 | H125: 0
B126: 6225 | C126: Other Deductions | D126: 0 | E126: 0 | F126: 0 | G126: 0 | H126: 0
C127: Total Administrative and General Expenses | D127: =SUM(D101:D126) -> 1022724.32 | E127: =SUM(E101:E126) -> 1077938.71 | F127: 1095983.25 | G127: 1524556.18 | H127: 1430298
D128: 0 | E128: 0 | F128: 0 | G128: 0 | H128: 0 | I128: 0

Sheet App.2-H_OM&A_Detailed_Analysis
H1: File Number: | I1: ='LDC Info'!$E$18 -> EB-2012-0116
H2: Exhibit:
H3: Tab:
H4: Schedule:
H5: Page:
H7: Date:
A9: Appendix 2-H
A10: OM&A Detailed Variance Analysis
A11: (excluding Depreciation and Amortization)
A14: Account | B14: Description | C14: Last Board-approved Rebasing Year | D14: Most Current Actual Year | E14: Test Year (2013) | F14: Test Year Versus Last Rebasing | H14: Test Year Versus Most Current Actuals
F15: Variance ($) | G15: Percentage Change (%) | H15: Variance ($) | I15: Percentage Change (%)
A16: Operations
A17: 5005 | B17: Operation Supervision and Engineering | C17: 76800 | D17: 130060.73 | E17: 132000 | F17: 55200 | G17: 0.71875 | H17: 1939.27 | I17: 0.01491049604
A18: 5010 | B18: Load Dispatching | C18: 46500 | D18: 58455.31 | E18: 88500 | F18: 42000 | G18: 0.9032258065 | H18: 30044.69 | I18: 0.5139770878
A19: 5012 | B19: Station Buildings and Fixtures Expense | C19: 19000 | D19: 23199.07 | E19: 27000 | F19: 8000 | G19: 0.4210526316 | H19: 3800.93 | I19: 0.1638397574
A20: 5014 | B20: Transformer Station Equipment - Operation Labour | C20: 0 | D20: 0 | E20: 0 | F20: 0 | H20: 0
A21: 5015 | B21: Transformer Station Equipment - Operation Supplies and Expenses | C21: 0 | D21: 0 | E21: 0 | F21: 0 | H21: 0
A22: 5016 | B22: Distribution Station Equipment - Operation Labour | C22: 0 | D22: -0.3 | E22: -0.312 | F22: -0.312 | H22: -0.012 | I22: 0.04
A23: 5017 | B23: Distribution Station Equipment - Operation Supplies and Expenses | C23: 10000 | D23: 0 | E23: 0 | F23: -10000 | G23: -1 | H23: 0
A24: 5020 | B24: Overhead Distribution Lines and Feeders - Operation Labour | C24: 26000 | D24: 29933.76 | E24: 30000 | F24: 4000 | G24: 0.1538461538 | H24: 66.24 | I24: 0.002212886052
A25: 5025 | B25: Overhead Distribution Lines and Feeders - Operation Supplies and Expenses | C25: 0 | D25: 25411.47 | E25: 30000 | F25: 30000 | H25: 4588.53 | I25: 0.1805692469
A26: 5030 | B26: Overhead Sub-transmission Feeders - Operation | C26: 0 | D26: 0 | E26: 0 | F26: 0 | H26: 0
A27: 5035 | B27: Overhead Distribution Transformers - Operation | C27: 3500 | D27: 27407.72 | E27: 34800 | F27: 31300 | G27: 8.942857143 | H27: 7392.28 | I27: 0.2697152481
A28: 5040 | B28: Underground Distribution Lines and Feeders - Operation Labour | C28: 0 | D28: 6487.82 | E28: 8000 | F28: 8000 | H28: 1512.18 | I28: 0.2330798327
A29: 5045 | B29: Underground Distribution Lines and Feeders - Operation Supplies and Expenses | C29: 0 | D29: 4482.56 | E29: 6000 | F29: 6000 | H29: 1517.44 | I29: 0.3385208452
A30: 5050 | B30: Underground Sub-transmission Feeders - Operation | C30: 0 | D30: 0 | E30: 0 | F30: 0 | H30: 0
A31: 5055 | B31: Underground Distribution Transformers - Operation | C31: 0 | D31: 5534.72 | E31: 12000 | F31: 12000 | H31: 6465.28 | I31: 1.16813136
A32: 5060 | B32: Street Lighting and Signal System Expense | C32: 0 | D32: 0 | E32: 0 | F32: 0 | H32: 0
A33: 5065 | B33: Meter Expense | C33: 1500 | D33: 4124.14 | E33: 6000 | F33: 4500 | G33: 3 | H33: 1875.86 | I33: 0.4548487685
A34: 5070 | B34: Customer Premises - Operation Labour | C34: 0 | D34: 0 | E34: 0 | F34: 0 | H34: 0
A35: 5075 | B35: Customer Premises - Operation Materials and Expenses | C35: 0 | D35: 0 | E35: 0 | F35: 0 | H35: 0
A36: 5085 | B36: Miscellaneous Distribution Expenses | C36: 78000 | D36: 45577 | E36: 60000 | F36: -18000 | G36: -0.2307692308 | H36: 14423 | I36: 0.3164534743
A37: 5090 | B37: Underground Distribution Lines and Feeders - Rental Paid | C37: 0 | D37: 0 | E37: 0 | F37: 0 | H37: 0
A38: 5095 | B38: Overhead Distribution Lines and Feeders - Rental Paid | C38: 0 | D38: 0 | E38: 0 | F38: 0 | H38: 0
A39: 5096 | B39: Other Rent | C39: 30000 | D39: 0 | E39: 172800 | F39: 142800 | G39: 4.76 | H39: 172800
A40: Total - Operations | C40: 291300 | D40: 360674 | E40: 607099.688 | F40: 315799.688 | G40: 1.084104662 | H40: 246425.688 | I40: 0.6832366292
A41: Account | B41: Description
A42: Maintenance
A43: 5105 | B43: Maintenance Supervision and Engineering | C43: 62000 | D43: 133263.07 | E43: 60000 | F43: -2000 | G43: -0.03225806452 | H43: -73263.07 | I43: -0.5497627362
A44: 5110 | B44: Maintenance of Buildings and Fixtures - Distribution Stations | C44: 26000 | D44: 10728.01 | E44: 12000 | F44: -14000 | G44: -0.5384615385 | H44: 1271.99 | I44: 0.11856719
A45: 5112 | B45: Maintenance of Transformer Station Equipment | C45: 0 | D45: 0 | E45: 0 | F45: 0 | H45: 0
A46: 5114 | B46: Maintenance of Distribution Station Equipment | C46: 59600 | D46: 56938 | E46: 52000 | F46: -7600 | G46: -0.1275167785 | H46: -4938 | I46: -0.0867259124
A47: 5120 | B47: Maintenance of Poles, Towers and Fixtures | C47: 68225 | D47: 180084 | E47: 184000 | F47: 115775 | G47: 1.696958593 | H47: 3916 | I47: 0.0217454077
A48: 5125 | B48: Maintenance of Overhead Conductors and Devices | C48: 263500 | D48: 320012 | E48: 324000 | F48: 60500 | G48: 0.229601518 | H48: 3988 | I48: 0.01246203267
A49: 5130 | B49: Maintenance of Overhead Services | C49: 189000 | D49: 165647 | E49: 172200 | F49: -16800 | G49: -0.08888888889 | H49: 6553 | I49: 0.03956002825
A50: 5135 | B50: Overhead Distribution Lines and Feeders - Right of Way | C50: 244000 | D50: 197211 | E50: 100000 | F50: -144000 | G50: -0.5901639344 | H50: -97211 | I50: -0.4929288934
A51: 5145 | B51: Maintenance of Underground Conduit | C51: -53466 | D51: 0 | E51: 0 | F51: 53466 | G51: -1 | H51: 0
A52: 5150 | B52: Maintenance of Underground Conductors and Devices | C52: 120000 | D52: 117438 | E52: 117000 | F52: -3000 | G52: -0.025 | H52: -438 | I52: -0.003729627548
A53: 5155 | B53: Maintenance of Underground Services | C53: 236500 | D53: 239402 | E53: 228000 | F53: -8500 | G53: -0.03594080338 | H53: -11402 | I53: -0.04762700395
A54: 5160 | B54: Maintenance of Line Transformers | C54: 100000 | D54: 70561 | E54: 75000 | F54: -25000 | G54: -0.25 | H54: 4439 | I54: 0.06291010615
A55: 5165 | B55: Maintenance of Street Lighting and Signal Systems | C55: 0 | D55: 0 | E55: 0 | F55: 0 | H55: 0
A56: 5170 | B56: Sentinel Lights - Labour | C56: 0 | D56: 0 | E56: 0 | F56: 0 | H56: 0
A57: 5172 | B57: Sentinel Lights - Materials and Expenses | C57: 0 | D57: 0 | E57: 0 | F57: 0 | H57: 0
A58: 5175 | B58: Maintenance of Meters | C58: 259500 | D58: 248054 | E58: 241700 | F58: -17800 | G58: -0.06859344894 | H58: -6354 | I58: -0.0256153902
A59: 5178 | B59: Customer Installations Expenses - Leased Property | C59: 0 | D59: 0 | E59: 0 | F59: 0 | H59: 0
A60: 5195 | B60: Maintenance of Other Installations on Customer Premises | C60: 0 | D60: 0 | E60: 0 | F60: 0 | H60: 0
A61: Total - Maintenance | C61: 1574859 | D61: 1739338.08 | E61: 1565900 | F61: -8959 | G61: -0.005688763248 | H61: -173438.08 | I61: -0.09971499043
A62: Account | B62: Description
A63: Billing and Collecting
A64: 5305 | B64: Supervision | C64: 49000 | D64: 60035.49 | E64: 84000 | F64: 35000 | G64: 0.7142857143 | H64: 23964.51 | I64: 0.3991723895
A65: 5310 | B65: Meter Reading Expense | C65: 85000 | D65: 237727 | E65: 192000 | F65: 107000 | G65: 1.258823529 | H65: -45727 | I65: -0.1923508899
A66: 5315 | B66: Customer Billing | C66: 489093 | D66: 587319 | E66: 534276 | F66: 45183 | G66: 0.09238120357 | H66: -53043 | I66: -0.09031378178
A67: 5320 | B67: Collecting | C67: 69000 | D67: 117926.15 | E67: 119586 | F67: 50586 | G67: 0.7331304348 | H67: 1659.85 | I67: 0.01407533444
A68: 5325 | B68: Collecting - Cash Over and Short | C68: 0 | D68: -72.91 | E68: 0 | F68: 0 | H68: 72.91 | I68: -1
A69: 5330 | B69: Collection Charges | C69: 0 | D69: 0 | E69: 0 | F69: 0 | H69: 0
A70: 5335 | B70: Bad Debt Expense | C70: 70000 | D70: 82323.01 | E70: 84000 | F70: 14000 | G70: 0.2 | H70: 1676.99 | I70: 0.02037085379
A71: 5340 | B71: Miscellaneous Customer Accounts Expenses | C71: 0 | D71: 0 | E71: 0 | F71: 0 | H71: 0
A72: Total - Billing and Collecting | C72: 762093 | D72: 1085257.74 | E72: 1013862 | F72: 251769 | G72: 0.3303651916 | H72: -71395.74 | I72: -0.06578689777
A73: Account | B73: Description
A74: Community Relations
A75: 5405 | B75: Supervision | C75: 0 | D75: 0 | E75: 0 | F75: 0 | H75: 0
A76: 5410 | B76: Community Relations - Sundry | C76: 0 | D76: 0 | E76: 0 | F76: 0 | H76: 0
A77: 5415 | B77: Energy Conservation | C77: 0 | D77: 0 | E77: 0 | F77: 0 | H77: 0
A78: 5420 | B78: Community Safety Program | C78: 0 | D78: 0 | E78: 0 | F78: 0 | H78: 0
A79: 5425 | B79: Miscellaneous Customer Service and Informational Expenses | C79: 107389 | D79: 133479 | E79: 138000 | F79: 30611 | G79: 0.2850478168 | H79: 4521 | I79: 0.03387049648
A80: 5505 | B80: Supervision | C80: 0 | D80: 0 | E80: 0 | F80: 0 | H80: 0
A81: 5510 | B81: Demonstrating and Selling Expense | C81: 0 | D81: 0 | E81: 0 | F81: 0 | H81: 0
A82: 5515 | B82: Advertising Expenses | C82: 0 | D82: 0 | E82: 0 | F82: 0 | H82: 0
A83: 5520 | B83: Miscellaneous Sales Expense | C83: 0 | D83: 0 | E83: 0 | F83: 0 | H83: 0
A84: Total - Community Relations | C84: 107389 | D84: 133479 | E84: 138000 | F84: 30611 | G84: 0.2850478168 | H84: 4521 | I84: 0.03387049648
A85: Account | B85: Description
A86: Administrative and General Expenses
A87: 5605 | B87: Executive Salaries and Expenses | C87: 747241 | D87: 872220 | E87: 831600 | F87: 84359 | G87: 0.1129 | H87: -40620 | I87: -0.0466
A88: 5610 | B88: Management Salaries and Expenses
A89: 5615 | B89: General Administrative Salaries and Expenses
A90: 5620 | B90: Office Supplies and Expenses | C90: 0 | D90: 0 | E90: 0 | F90: 0 | H90: 0
A91: 5625 | B91: Administrative Expense Transferred - Credit | C91: 0 | D91: 0 | E91: 0 | F91: 0 | H91: 0
A92: 5630 | B92: Outside Services Employed | C92: 181500 | D92: 306332.89 | E92: 216000 | F92: 34500 | G92: 0.1900826446 | H92: -90332.89 | I92: -0.2948847249
A93: 5635 | B93: Property Insurance | C93: 2000 | D93: 28117 | E93: 28887 | F93: 26887 | G93: 13.4435 | H93: 770 | I93: 0.02738556745
A94: 5640 | B94: Injuries and Damages | C94: 1000 | D94: 53947 | E94: 64800 | F94: 63800 | G94: 63.8 | H94: 10853 | I94: 0.2011789349
A95: 5645 | B95: Employee Pensions and Benefits | C95: 0 | D95: -352 | E95: 3306 | F95: 3306 | H95: 3658 | I95: -10.39204545
A96: 5650 | B96: Franchise Requirements | C96: 0 | D96: 0 | E96: 0 | F96: 0 | H96: 0
A97: 5655 | B97: Regulatory Expenses | C97: 43000 | D97: 84015.01 | E97: 81000 | F97: 38000 | G97: 0.8837209302 | H97: -3015.01 | I97: -0.0358865636
A98: 5660 | B98: General Advertising Expenses | C98: 7500 | D98: 2184.38 | E98: 2000 | F98: -5500 | G98: -0.7333333333 | H98: -184.38 | I98: -0.08440839048
A99: 5665 | B99: Miscellaneous General Expenses | C99: 5000 | D99: 72591 | E99: 90000 | F99: 85000 | G99: 17 | H99: 17409 | I99: 0.2398231186
A100: 5670 | B100: Rent | C100: 0 | D100: 43200 | E100: 43200 | F100: 43200 | H100: 0 | I100: 0
A101: 5675 | B101: Maintenance of General Plant | C101: 21500 | D101: 22372 | E101: 30000 | F101: 8500 | G101: 0.3953488372 | H101: 7628 | I101: 0.3409619167
A102: 5680 | B102: Electrical Safety Authority Fees | C102: 0 | D102: 7010.9 | E102: 8040 | F102: 8040 | H102: 1029.1 | I102: 0.1467857194
A103: 5685 | B103: Independent Electricity System Operator Fees and Penalties | C103: 0 | D103: 0 | E103: 0 | F103: 0 | H103: 0
A104: 5695 | B104: OM&A Contra Account | C104: 0 | D104: 0 | E104: 0 | F104: 0 | H104: 0
A105: 6205 | B105: Donations (Charitable Contributions) | C105: 0 | D105: 32918 | E105: 31465 | F105: 31465 | H105: -1453 | I105: -0.0441399842
A106: JS | B106: Reclassification of Joint Service Costs | C106: 0 | D106: 0 | E106: 0
A107: Total - Administrative and General Expenses | C107: =SUM(C87:C106) -> 1008741 | D107: =SUM(D87:D106) -> 1524556.18 | E107: 1430298 | F107: 421557 | G107: 0.4179041003 | H107: -94258.58 | I107: -0.06182688215
A108: Account | B108: Description
A109: Other Distribution Expenses
A110: 6105 | B110: Taxes Other Than Income Taxes | C110: 8916 | D110: 0 | E110: 0 | F110: -8916 | G110: -1 | H110: 0
A111: 6215 | B111: Penalties | C111: 0 | D111: 0 | E111: 0 | F111: 0 | H111: 0
A112: 6225 | B112: Other Deductions | C112: 0 | D112: 0 | E112: 0 | F112: 0 | H112: 0
A113: Total - Other distribution expenses | C113: 8916 | D113: 0 | E113: 0
A114: Total OM&A | C114: 3753298 | D114: 4843305.4 | E114: 4755159.688 | F114: 1010777.688 | G114: 0.2669283622 | H114: -88145.712 | I114: -0.01819949492
A116: 1 Account 6205 - Donations is generally non-recoverable. However, the sub-account LEAP funding of account 6205 is generally recoverable.
A119: Note:
A121: 1 | B121: If the applicant is adopting IFRS or an alternate accounting standard as of January 1, 2013 for financial reporting purposes, Column D "Most Current Actual Year" must be provided on CGAAP.
A122: 2 | B122: If the applicant is adopting IFRS or an alternate accounting standard as of January 1, 2012 for financial reporting purposes, Column D "Most Current Actual Year" must be provided on that standard.

Sheet App.2-I_OM&A_Summary_Analys
K1: File Number: | L1: ='LDC Info'!$E$18 -> EB-2012-0116
K2: Exhibit:
K3: Tab:
K4: Schedule:
K5: Page:
K7: Date: | L7: 2013-05-24
A9: Appendix 2-I
A10: Summary of Recoverable OM&A Expenses
B13: ="Last Rebasing Year (" & 'LDC Info'!E30 & " BA)" -> Last Rebasing Year (2009 BA) | C13: ="Last Rebasing Year (" & 'LDC Info'!E30 & " Actuals)" -> Last Rebasing Year (2009 Actuals) | D13: ='LDC Info'!E26 -2 & " Actuals" -> 2010 Actuals | E13: ='LDC Info'!E26 -1 & " Actuals" -> 2011 Actuals | F13: ='LDC Info'!E26 & " Bridge Year" -> 2012 Bridge Year | G13: ='LDC Info'!E28 & " Test Year" -> 2013 Test Year
A14: Reporting Basis | B14: CGAAP | C14: CGAAP | D14: CGAAP | E14: CGAAP | F14: CGAAP | G14: CGAAP
A15: Operations | B15: 291300 | C15: 257730 | D15: 303575 | E15: 281360 | F15: 360674 | G15: 607100
A16: Maintenance | B16: 1574859 | C16: 1645455 | D16: 1580092 | E16: 1818120 | F16: 1739338 | G16: 1565900
A17: SubTotal | B17: =SUM(B15:B16) -> 1866159 | C17: =SUM(C15:C16) -> 1903185 | D17: 1883667 | E17: 2099480 | F17: 2100012 | G17: 2173000
A18: %Change (year over year) | D18: =IF(ISERROR((D17-C17)/C17), "", (D17-C17)/C17) -> -0.01025544022 | E18: =IF(ISERROR((E17-D17)/D17), "", (E17-D17)/D17) -> 0.1145706752 | F18: 0.000253396079 | G18: 0.03475599187
A19: %Change (Test Year vs Last Rebasing Year - Actual) | G19: =IF(ISERROR((G17-C17)/C17), "", (G17-C17)/C17) -> 0.141770243
A20: Billing and Collecting | B20: 762093 | C20: 821070 | D20: 867673 | E20: 727594 | F20: 1085258 | G20: 1013862
A21: Community Relations | B21: 107389 | C21: 103213 | D21: 166572 | E21: 150028 | F21: 133479 | G21: 138000
A22: Administrative and General | B22: 1017657 | C22: 1022725 | D22: 1077939 | E22: 1095983 | F22: 1524557 | G22: 1430298
A23: SubTotal | B23: =SUM(B20:B22) -> 1887139 | C23: =SUM(C20:C22) -> 1947008 | D23: 2112184 | E23: 1973605 | F23: 2743294 | G23: 2582160
A24: %Change (year over year) | D24: =IF(ISERROR((D23-C23)/C23), "", (D23-C23)/C23) -> 0.08483580961 | E24: =IF(ISERROR((E23-D23)/D23), "", (E23-D23)/D23) -> -0.06560934085 | F24: =IF(ISERROR((F23-E23)/E23), "", (F23-E23)/E23) -> 0.3899914117 | G24: =IF(ISERROR((G23-F23)/F23), "", (G23-F23)/F23) -> -0.05873741568
A25: %Change (Test Year vs Last Rebasing Year - Actual) | G25: =IF(ISERROR((G23-C23)/C23), "", (G23-C23)/C23) -> 0.3262195122
A26: Total | B26: =SUM(B23,B17) -> 3753298 | C26: =SUM(C23,C17) -> 3850193 | D26: 3995851 | E26: 4073085 | F26: 4843306 | G26: 4755160
A27: %Change (year over year) | D27: =IF(ISERROR((D26-C26)/C26), "", (D26-C26)/C26) -> 0.03783135027 | E27: =IF(ISERROR((E26-D26)/D26), "", (E26-D26)/D26) -> 0.01932854854 | F27: =IF(ISERROR((F26-E26)/E26), "", (F26-E26)/E26) -> 0.1891001538 | G27: =IF(ISERROR((G26-F26)/F26), "", (G26-F26)/F26) -> -0.01819955212
B30: =B13 -> Last Rebasing Year (2009 BA) | C30: =C13 -> Last Rebasing Year (2009 Actuals) | D30: 2010 Actuals | E30: 2011 Actuals | F30: 2012 Bridge Year | G30: 2013 Test Year
A31: Operations | B31: =B15 -> 291300 | C31: =C15 -> 257730 | D31: 303575 | E31: 281360 | F31: 360674 | G31: 607100
A32: Maintenance | B32: =B16 -> 1574859 | C32: =C16 -> 1645455 | D32: 1580092 | E32: 1818120 | F32: 1739338 | G32: 1565900
A33: Billing and Collecting | B33: =B20 -> 762093 | C33: =C20 -> 821070 | D33: 867673 | E33: 727594 | F33: 1085258 | G33: 1013862
A34: Community Relations | B34: =B21 -> 107389 | C34: =C21 -> 103213 | D34: 166572 | E34: 150028 | F34: 133479 | G34: 138000
A35: Administrative and General | B35: =B22 -> 1017657 | C35: =C22 -> 1022725 | D35: 1077939 | E35: 1095983 | F35: 1524557 | G35: 1430298
A36: Total | B36: =SUM(B31:B35) -> 3753298 | C36: =SUM(C31:C35) -> 3850193 | D36: 3995851 | E36: 4073085 | F36: 4843306 | G36: 4755160
A37: %Change (year over year) | D37: =IF(ISERROR((D36-C36)/C36), "", (D36-C36)/C36) -> 0.03783135027 | E37: =IF(ISERROR((E36-D36)/D36), "", (E36-D36)/D36) -> 0.01932854854 | F37: =IF(ISERROR((F36-E36)/E36), "", (F36-E36)/E36) -> 0.1891001538 | G37: =IF(ISERROR((G36-F36)/F36), "", (G36-F36)/F36) -> -0.01819955212
B40: =B13 -> Last Rebasing Year (2009 BA) | C40: =C13 -> Last Rebasing Year (2009 Actuals) | D40: ="Variance " & 'LDC Info'!E30 & " BA – " & 'LDC Info'!E30 & " Actuals" -> Variance 2009 BA – 2009 Actuals | E40: =D13 -> 2010 Actuals | F40: ="Variance " & 'LDC Info'!E26 -2 & " Actuals vs. " & 'LDC Info'!E30 & " Actuals" -> Variance 2010 Actuals vs. 2009 Actuals | G40: =E13 -> 2011 Actuals | H40: ="Variance " & 'LDC Info'!E26 -1 & " Actuals vs. " & 'LDC Info'!E26-2 & " Actuals" -> Variance 2011 Actuals vs. 2010 Actuals | I40: =F13 -> 2012 Bridge Year | J40: ="Variance " & 'LDC Info'!E26 & " Bridge vs. " & 'LDC Info'!E26 -1 & " Actuals" -> Variance 2012 Bridge vs. 2011 Actuals | K40: =G13 -> 2013 Test Year | L40: ="Variance " & 'LDC Info'!E28 & " Test vs. " & 'LDC Info'!E26 & " Bridge" -> Variance 2013 Test vs. 2012 Bridge
A41: Operations | B41: =B15 -> 291300 | C41: 257730 | D41: =B41-C41 -> 33570 | E41: =D15 -> 303575 | F41: =E41-C41 -> 45845 | G41: =E15 -> 281360 | H41: =G41-E41 -> -22215 | I41: =F15 -> 360674 | J41: =I41-G41 -> 79314 | K41: =G15 -> 607100 | L41: =K41-I41 -> 246426
A42: Maintenance | B42: 1574859 | C42: 1645455 | D42: =B42-C42 -> -70596 | E42: =D16 -> 1580092 | F42: =E42-C42 -> -65363 | G42: =E16 -> 1818120 | H42: =G42-E42 -> 238028 | I42: =F16 -> 1739338 | J42: -78782 | K42: =G16 -> 1565900 | L42: -173438
A43: Billing and Collecting | B43: =B20 -> 762093 | C43: 821070 | D43: -58977 | E43: =D20 -> 867673 | F43: 46603 | G43: =E20 -> 727594 | H43: -140079 | I43: =F20 -> 1085258 | J43: 357664 | K43: =G20 -> 1013862 | L43: -71396
A44: Community Relations | B44: 107389 | C44: 103213 | D44: 4176 | E44: =D21 -> 166572 | F44: 63359 | G44: =E21 -> 150028 | H44: -16544 | I44: =F21 -> 133479 | J44: -16549 | K44: =G21 -> 138000 | L44: 4521
A45: Administrative and General | B45: 1017657 | C45: 1022725 | D45: -5068 | E45: 1077939 | F45: 55214 | G45: 1095983 | H45: 18044 | I45: 1524557 | J45: 428574 | K45: 1430298 | L45: -94259
A46: Total OM&A Expenses | B46: =SUM(B41:B45) -> 3753298 | C46: =SUM(C41:C45) -> 3850193 | D46: -96895 | E46: 3995851 | F46: 145658 | G46: 4073085 | H46: 77234 | I46: 4843306 | J46: 770221 | K46: 4755160 | L46: -88146
A47: Variance from previous year | E47: =E46-C46 -> 145658 | G47: =G46-E46 -> 77234 | I47: =I46-G46 -> 770221 | K47: =K46-I46 -> -88146
A48: Percent change (year over year) | E48: =IF(ISERROR(E47/C46), "", E47/C46) -> 0.03783135027 | G48: =IF(ISERROR(G47/E46), "", G47/E46) -> 0.01932854854 | I48: =IF(ISERROR(I47/G46), "", I47/G46) -> 0.1891001538 | K48: =IF(ISERROR(K47/I46), "", K47/I46) -> -0.01819955212
A49: Percent Change: Test year vs. Most Current Actual | G49: =IF(ISERROR((K46-G46)/G46), "", (K46-G46)/G46) -> 0.1674590636
A50: Simple average of % variance for all years | G50: =IF(ISERROR((K46-C46)/C46), "", (K46-C46)/C46) -> 0.2350445809 | L50: =IF(ISERROR(AVERAGE(E48,G48,I48,K48)), "", AVERAGE(E48,G48,I48,K48)) -> 0.05701512513
A51: Compound Annual Growth Rate for all years | G51: =IF(ISERROR((K47-C47)/C47), "", (K47-C47)/C47) ->  | L51: =((+K46/B46)^0.25)-1 -> 0.06093315527
A52: ="Compound Growth Rate (" & E13 & " vs. " & 'LDC Info'!E30 & " Actuals)" -> Compound Growth Rate (2011 Actuals vs. 2009 Actuals) | G52: =IF(ISERROR((G46/C46)^(1/(2010-2008)) - 1), "", (G46-C46)/C46) -> 0.0578911239
A54: Note:
A56: 1 "BA" = Board-Approved
A57: 2 If it has been more than three years since the applicant last filed a cost of service application, additional years of historical actuals should be incorporated into the table, as necessary, to go back to the last cost of service application. If the applicant last filed a cost of service application less than three years ago, a minimum of three years of actual information is required.
A59: 3 Recoverable OM&A that is included on these tables should be identical to the recoverable OM&A that is shown for the corresponding periods on Appendix 2-H.

Sheet App.2-J_OM&A_Cost _Drivers
F1: File Number: | G1: ='LDC Info'!$E$18 -> EB-2012-0116
F2: Exhibit:
F3: Tab:
F4: Schedule:
F5: Page:
F7: Date: | G7: 2013-05-24
A10: Appendix 2-J
A11: OM&A Cost Driver Table
E13: $000
A14: 2009 Board Approved OM&A | E14: 3753.298
A15: Inflationary and step wage increases of 3% per annum on average | E15: 231.8372381
A16: Increase in headcount due to growth in customers and requirements | E16: 127.0509923
A17: Change in staff mix due to increasing requirements | E17: 13.00117396
A18: Inflationary increase in non-compensation costs of 3% per annum on average | E18: 239.2347274
A19: Increase in customers - billing & collection (excluding employee compensation) | E19: 31.38136236
A20: Smart meters related changes in costs | E20: 240
A21: Increase in OM&A from reduction in expenses capitalized under IFRS compliant policy | E21: 71.64963
A22: Increase in costs related to new billing and other systems to meet increasing requirements | E22: 30.82
A23: Increase in Bad debts and credit insurance cost in excess of 3% per annum | E23: 16.88639157
A24: 2013 Test Year OM&A | E24: =SUM(E14:E23) -> 4755.159516
A26: 1 | B26: For each year, a detailed explanation for each cost driver and associated amount is
B27: required.
A28: 2 | B28: The closing balance for each year becomes the opening balance for the next year.
A29: 3 | B29: If it has been more than three years since the applicant last filed a cost of service application, additional years of historical actuals should be incorporated into the table, as necessary, to go back to the last cost of service application. If the applicant last filed a cost of service application less than three years ago, a minimum of three years of actual information is required.
A33: 4 | B33: Opening Balance for "Last Rebasing Year" (cell B15) should be equal to the Board-Approved amount.

Sheet App.2-K_Employee Costs
G1: File Number: | H1: ='LDC Info'!$E$18 -> EB-2012-0116
G2: Exhibit:
G3: Tab:
G4: Schedule:
G5: Page:
G7: Date: | H7: 2013-04-30
B9: Appendix 2-K
B10: Employee Costs
C12: 2009 | D12: 2009 | E12: 2010 | F12: 2011 | G12: 2012 | H12: 2013
C13: LRY - Board Approved | D13: LRY - Actual | E13: Historical Year 2 | F13: Historical Year 1 | G13: Bridge Year | H13: Test Year
B14: Number of Employees (FTEs including Part-Time)1
B15: Executive & Management | C15: 1.1 | D15: 3.01 | E15: 3.56265 | F15: 3.393 | G15: 3.42825 | H15: 2.75
B16: Non-Union | C16: 9.5 | D16: =5.2116+D21 -> 6.0716 | E16: =5.915+E21 -> 7.28 | F16: =5.697+F21 -> 7.047 | G16: =8.22925+G21 -> 9.27925 | H16: =9.6+H21 -> 10.6725
B17: Union | C17: 11 | D17: 9 | E17: 9.41 | F17: 9.08 | G17: 10.25 | H17: 9.5
B18: Total | C18: =SUM(C15:C17) -> 21.6 | D18: 18.0816 | E18: 20.25265 | F18: 19.52 | G18: 22.9575 | H18: =SUM(H15:H17) -> 22.9225
B19: Number of Part-Time Employees
B20: Executive & Management | C20: 0 | D20: 0 | E20: 0 | F20: 0 | G20: 0 | H20: 0
B21: Non-Union+Part-time | C21: 0 | D21: 0.86 | E21: 1.365 | F21: 1.35 | G21: 1.05 | H21: 1.0725
B22: Union | C22: 0 | D22: 0 | E22: 0 | F22: 0 | G22: 0 | H22: 0
B23: Total | C23: 0 | D23: 0.86 | E23: 1.365 | F23: 1.35 | G23: 1.05 | H23: 1.0725
B24: Total Salary and Wages
B25: Executive & Management | D25: 396615.1612 | E25: 448126.6244 | F25: 438562.5525 | G25: 535913.6423 | H25: 429990.99
B26: Non-Union+Part-time | D26: 385108.0172 | E26: 409051.5747 | F26: 416970.7785 | G26: 536754.715 | H26: 715626.1425
B27: Union | D27: 907212.33 | E27: 858662.92 | F27: 870647.86 | G27: 917512.14 | H27: 889986.7758
B28: Total | C28: 0 | D28: =SUM(D25:D27) -> 1688935.508 | E28: 1715841.119 | F28: 1726181.191 | G28: 1990180.497 | H28: =SUM(H25:H27) -> 2035603.908
B29: Current Benefits
B30: Executive & Management | D30: 61425.5129 | E30: 72541.4326 | F30: 71960.8185 | G30: 89352.64275 | H30: 85395.75
B31: Non-Union+Part-time | D31: 78326.3017 | E31: 81273.3649 | F31: 94763.88 | G31: 115827.0878 | H31: 159204.9025
B32: Union | D32: 161993.93 | E32: 161304.24 | F32: 172459.45 | G32: 180214.23 | H32: 156693
B33: Total | C33: 0 | D33: =SUM(D30:D32) -> 301745.7446 | E33: 315119.0375 | F33: 339184.1485 | G33: 385393.9605 | H33: =SUM(H30:H32) -> 401293.6525
B34: Accrued Pension and Post-Retirement Benefits
B35: Executive & Management | C35: 0 | D35: 10388.23851 | E35: 12194.50827 | F35: 12694.06235 | G35: 3802.056693 | H35: 4812.23125
B36: Non-Union+Part-time | C36: 0 | D36: 10086.84066 | E36: 11131.19047 | F36: 12069.09488 | G36: 3808.023711 | H36: 8008.90848
B37: Union | C37: 0 | D37: 23761.92083 | E37: 23366.10126 | F37: 25200.64277 | G37: 6509.319596 | H37: 9960.26027
B38: Total | C38: 0 | D38: =SUM(D35:D37) -> 44237 | E38: 46691.8 | F38: 49963.8 | G38: 14119.4 | H38: =SUM(H35:H37) -> 22781.4
B39: Total Benefits (Current + Accrued)
B40: Executive & Management | C40: 0 | D40: 71813.75141 | E40: 84735.94087 | F40: 84654.88085 | G40: 93154.69944 | H40: 90207.98125
B41: Non-Union+Part-time | C41: 0 | D41: 88413.14236 | E41: 92404.55537 | F41: 106832.9749 | G41: 119635.1115 | H41: 167213.811
B42: Union | C42: 0 | D42: 185755.8508 | E42: 184670.3413 | F42: 197660.0928 | G42: 186723.5496 | H42: 166653.2603
B43: Total | C43: 0 | D43: =SUM(D40:D42) -> 345982.7446 | E43: 361810.8375 | F43: 389147.9485 | G43: 399513.3605 | H43: =SUM(H40:H42) -> 424075.0525
B44: Total Compensation (Salary, Wages, & Benefits)
B45: Executive & Management | C45: 187737 | D45: 468428.9126 | E45: 532862.5653 | F45: 523217.4333 | G45: 629068.3417 | H45: 520198.9712
B46: Non-Union+Part-time | C46: 830592 | D46: 473521.1596 | E46: 501456.1301 | F46: 523803.7534 | G46: 656389.8265 | H46: 882839.9535
B47: Union | C47: 1070850 | D47: 1092968.181 | E47: 1043333.261 | F47: 1068307.953 | G47: 1104235.69 | H47: 1056640.036
B48: Total | C48: =SUM(C45:C47) -> 2089179 | D48: 2034918.253 | E48: 2077651.957 | F48: 2115329.139 | G48: 2389693.858 | H48: =SUM(H45:H47) -> 2459678.961
B49: Compensation - Average Yearly Base Wages
B50: Executive & Management | C50: 170670 | D50: 123229.3957 | E50: 116389.3771 | F50: 118944.0178 | G50: 128716.2903 | H50: 137350.9165
B51: Non-Union+Part-time | C51: 87430.73684 | D51: 64360.78924 | E51: 65647.78948 | F51: 70377.48429 | G51: 64174.09782 | H51: 73665.87214
B52: Union | C52: 97350 | D52: 85589.77111 | E52: 77001.32731 | F52: 87026.28524 | G52: 80538.03317 | H52: 83708.3744
B53: Total | C53: =+C48/C18 -> 96721.25 | D53: 85744.13007 | E53: 80875.26924 | F53: 87766.44196 | G53: 81930.44194 | H53: 86047.45766
B54: Compensation - Average Yearly Overtime
B55: Executive & Management | C55: 0 | D55: 3054.710963 | E55: 3322.740095 | F55: 4313.439434 | G55: 5868.014293 | H55: 7132.398
B56: Non-Union+Part-time | C56: 0 | D56: 9005.934454 | E56: 2921.3694 | F56: 2379.366421 | G56: 583.2877237 | H56: 487.502082
B57: Union | C57: 7750 | D57: 15211.59889 | E57: 14248.71732 | F57: 8860.042952 | G57: 8975.346341 | H57: 9974.444105
B58: Total | C58: 7750 | D58: 11208.85388 | E58: 8640.465595 | F58: 5979.083132 | G58: 5336.726715 | H58: 5448.573615
B59: Compensation - Average Yearly Incentive Pay
B60: Executive & Management | C60: 0 | D60: 5481.727575 | E60: 6072.516245 | F60: 5997.642205 | G60: 21738.49632 | H60: 11877.04545
B61: Non-Union+Part-time | C61: 0 | D61: 527.669046 | E61: 585.7988166 | F61: 434.4391785 | G61: 467.8433636 | H61: 391.015625
B62: Union | C62: 0 | D62: 0 | E62: 0 | F62: 0 | G62: 0 | H62: 0
B63: Total | C63: 0 | D63: 1117.78232 | E63: 1328.870982 | F63: 1256.191524 | G63: 3577.541938 | H63: 1666.618993
B64: Compensation - Average Yearly Benefits
B65: Executive & Management | C65: 0 | D65: =+D40/D15 -> 23858.38917 | E65: =+E40/E15 -> 23784.52581 | F65: 24949.86173 | G65: 27172.66811 | H65: 32802.90227
B66: Non-Union+Part-time | C66: 0 | D66: =+D41/D16 -> 14561.75347 | E66: 12692.93343 | F66: 15160.06455 | G66: 12892.75658 | H66: 15667.72649
B67: Union | C67: 0 | D67: 20639.53898 | E67: 19624.90343 | F67: 21768.73268 | G67: 18216.93167 | H67: 17542.44845
B68: Total | C68: 0 | D68: 19134.52043 | E68: 17864.86398 | F68: 19935.85802 | G68: 17402.30254 | H68: 18500.38401
B70: Total Compensation | C70: 2089179 | D70: 2034918.253 | E70: 2077651.957 | F70: 2115329.139 | G70: 2389693.858 | H70: 2459678.961
B71: Total Compensation Charged to OM&A | C71: 1847179 | D71: 1800431.243 | E71: 1686292.412 | F71: 1958507.919 | G71: 2212296.803 | H71: 2253759.194
B72: Total Compensation Capitalized | C72: 242000 | D72: 234487.01 | E72: 391359.545 | F72: 156821.22 | G72: 177397.055 | H72: 205919.7664
B74: Total Compensation Increase as a % | D74: -0.02597228241 | E74: 0.02100020656 | F74: 0.01813450166 | G74: 0.1297030864 | H74: 0.02928622126

Sheet App.2-L_OM&A_per_Cust_FTEE
G1: File Number: | H1: ='LDC Info'!$E$18 -> EB-2012-0116
G2: Exhibit:
G3: Tab:
G4: Schedule:
G5: Page:
G7: Date: | H7: 2013-05-24
A9: Appendix 2-L
A10: Recoverable OM&A Cost per Customer and per FTEE
C12: ="Last Rebasing Year (" & 'LDC Info'!E30 & " Board-Approved)" -> Last Rebasing Year (2009 Board-Approved) | D12: ="Last Rebasing Year (" & 'LDC Info'!E30 & " Actuals)" -> Last Rebasing Year (2009 Actuals) | E12: ='LDC Info'!E26 -2 & " Actuals" -> 2010 Actuals | F12: ='LDC Info'!E26 -1 & " Actuals" -> 2011 Actuals | G12: ='LDC Info'!E26 & " Bridge Year" -> 2012 Bridge Year | H12: ='LDC Info'!E28 & " Test Year" -> 2013 Test Year
A13: Reporting Basis | C13: CGAAP | D13: CGAAP | E13: CGAAP | F13: CGAAP | G13: CGAAP | H13: CGAAP
A14: Number of Customers | C14: 14798 | D14: 14711 | E14: 15114 | F14: 15457 | G14: 15732 | H14: 16080
A15: Total Recoverable OM&A from Appendix 2-I | C15: 3753298 | D15: 3850193 | E15: 3995851 | F15: 4073086 | G15: 4843305 | H15: 4755160
A16: OM&A cost per customer | C16: =IF(C14=0,"",C15/C14) -> 253.6354913 | D16: 261.7220447 | E16: 264.3807728 | F16: 263.5107718 | G16: 307.8632723 | H16: 295.7189055
A17: Number of FTEEs | C17: 21.6 | D17: 18.08 | E17: 20.25 | F17: 19.52 | G17: 22.96 | H17: 22.92
A18: Customers/FTEEs | C18: =IF(C17=0,"",C14/C17) -> 685.0925926 | D18: 813.6615044 | E18: 746.3703704 | F18: 791.8545082 | G18: 685.1916376 | H18: 701.5706806
A19: OM&A Cost per FTEE | C19: =IF(C17=0,"",C15/C17) -> 173763.7963 | D19: 212953.1527 | E19: 197325.9753 | F19: 208662.1926 | G19: 210945.3397 | H19: 207467.7138
A21: Notes:
A23: 1 | B23: If it has been more than three years since the applicant last filed a cost of service application, additional years of historical actuals should be incorporated into the table, as necessary, to go back to the last cost of service application. If the applicant last filed a cost of service application less than three years ago, a minimum of three years of actual information is required.
A27: 2 | B27: The method of calculating the number of customers must be identified.
A28: 3 | B28: The method of calculating the number of FTEEs must be identified. See also Appendix 2-K
A29: 4 | B29: The number of customers and the number of FTEEs should correspond to mid-year or average of January 1 and December 31 figures.

Sheet App.2-M_Regulatory_Costs
J1: File Number: | K1: ='LDC Info'!$E$18 -> EB-2012-0116
J2: Exhibit:
J3: Tab:
J4: Schedule:
J5: Page:
J7: Date:
A9: Appendix 2-M
A10: Regulatory Cost Schedule
E13: On-Time
A14: Regulatory Cost Category | C14: USoA Account | D14: USoA Account Balance | E14: Ongoing or One-time Cost? 2 | F14: Last Rebasing Year ( Board Approved) | G14: Most Current Actuals Year 2011 | H14: Bridge Year | I14: Annual % Change | J14: Test Year | K14: Annual % Change
A15: (A) | C15: (B) | D15: (C ) | E15: (D) | F15: (E) | G15: (F) | H15: (G) | I15: (H) = [(G)-(F)]/(F) | J15: (I) | K15: (J) = [(I)-(G)]/(G)
A16: 1 | B16: OEB Annual Assessment | C16: 5655 | E16: On-Going | G16: 35214 | H16: 36496 | I16: =IF(G16=0,"",(H16-G16)/G16) -> 0.0364059749 | J16: =H16*1.035 -> 37773.36 | K16: =IF(H16=0,"",(J16-H16)/H16) -> 0.035
A17: 2 | B17: OEB Section 30 Costs (Applicant-originated) | G17: 0 | I17: =IF(G17=0,"",(H17-G17)/G17) ->  | K17: =IF(H17=0,"",(J17-H17)/H17) -> 
A18: 3 | B18: OEB Section 30 Costs (OEB-initiated) | C18: 5655 | E18: On-Going | G18: 1539.71 | H18: 3509.67 | I18: 1.279435738 | J18: =H18*1.035 -> 3632.50845 | K18: 0.035
A19: 4 | B19: Expert Witness costs for regulatory matters | C19: 5655 | E19: On-Time | G19: 0 | J19: 20000
A20: 5 | B20: Legal costs for regulatory matters | C20: 5655/1460 | E20: On-Time | G20: 0 | H20: 10490 | J20: 40000 | K20: 2.813155386
A21: 6 | B21: Consultants' costs for regulatory matters | C21: 5655/1525 | E21: On-Time | G21: =4000+450 -> 4450 | H21: =5000+11100+12300+10000+3070.3+9540 -> 51010.3 | I21: 10.46298876 | J21: 147794 | K21: 1.89733642
A22: 7 | B22: Operating expenses associated with staff resources allocated to regulatory matters | C22: 5615 | E22: On-Going | G22: 46449.03 | H22: =150+49.3+133.4+67380.38 -> 67713.08 | I22: 0.4577931983 | J22: 70000 | K22: 0.03377368154
A23: 8 | B23: Operating expenses associated with other resources allocated to regulatory matters 1
A24: 9 | B24: Other regulatory agency fees or assessments | C24: 5655 | E24: On-Going | G24: 800 | H24: 800 | I24: 0 | J24: 800 | K24: 0
A25: 10 | B25: Any other costs for regulatory matters (please define) | G25: 0
A26: 11 | B26: Intervenor costs | C26: 5655 | E26: On-Time | G26: 0 | J26: 46600
A27: 12 | B27: Sub-total - Ongoing Costs 3 | D27: =SUMIF($E16:$E26,$E12,D16:D26) -> 0 | F27: =SUMIF($E16:$E26,$E12,F16:F26) -> 0 | G27: =+G16+G18+G22+G24 -> 84002.74 | H27: =+H16+H18+H22+H24 -> 108518.75 | I27: 0.2918477421 | J27: =+J16+J18+J22+J24 -> 112205.8685 | K27: 0.03397678696
A28: 13 | B28: Sub-total - One-time Costs 4 | D28: =SUMIF($E16:$E26,$E13,D16:D26) -> 0 | F28: =SUMIF($E16:$E26,$E13,F16:F26) -> 0 | G28: =+G19+G20+G21+G26 -> 4450 | H28: =+H19+H20+H21+H26 -> 61500.3 | I28: 12.82029213 | J28: =+J19+J20+J21+J26 -> 254394 | K28: 3.136467627
A29: 14 | B29: Total | D29: =D27+D28 -> 0 | F29: =F27+F28 -> 0 | G29: =G27+G28 -> 88452.74 | H29: =H27+H28 -> 170019.05 | I29: 0.9221456565 | J29: =J27+J28 -> 366599.8685 | K29: 1.15622819
A32: 1 | B32: Please identify the resources involved.
A33: 2 | B33: Where a category's costs include both one-time and ongoing costs, the applicant should prove a separate breakdown between one-time and ongoing costs.
A34: 3 | B34: Sum of all ongoing costs identified in rows 1 to 11 inclusive.
A35: 4 | B35: Sum of all one-time costs identified in rows 1 to 11 inclusive.
A38: Please fill out the following table for all one-time costs related to this cost of service application
C40: Historical Year(s) | D40: =H14 -> Bridge Year | E40: =J14 -> Test Year
A41: 4 | B41: Expert Witness costs for regulatory matters | D41: =H19 -> 0 | E41: =J19 -> 20000
A42: 6 | B42: Consultants' costs for regulatory matters | C42: 87569.76 | D42: =H21 -> 51010.3 | E42: =J21 -> 147794
A43: 7 | B43: Operating expenses associated with staff resources allocated to regulatory matters | C43: 60000 | D43: =H22 -> 67713.08 | E43: =J22 -> 70000
A44: 8 | B44: Operating expenses associated with other resources allocated to regulatory matters 1 | D44: =H23 -> 0 | E44: =J23 -> 0
A45: 11 | B45: Intervenor costs | C45: 34878.58 | D45: =H26 -> 0 | E45: =J26 -> 46600

Sheet App.2-N_Corp_Cost_Allocation
E1: File Number: | F1: ='LDC Info'!$E$18 -> EB-2012-0116
E2: Exhibit:
E3: Tab:
E4: Schedule:
E5: Page:
E7: Date: | F7: 2013-04-30
A9: Appendix 2-N
A10: Shared Services and Corporate Cost Allocation
B12: Year: | C12: 2013
A14: Shared Services
A16: Name of Company | C16: Service Offered | D16: Pricing Methdology | E16: Price for the Service | F16: Cost for the Service
A17: From | B17: To
E18: $ | F18: $
A19: Town of Collingwood | B19: Collus PowerStream Corp | C19: Property maintenance | D19: Direct Cost | E19: 3476 | F19: 3476
A20: Town of Collingwood | B20: Collus PowerStream Corp | C20: Vehicle Fuel | D20: Direct Cost | E20: 59702 | F20: 59702
A21: Collingwood Public Utilities Service Board | B21: Collus PowerStream Corp | C21: Shared Employee Charge | D21: Direct Cost | E21: 70569 | F21: 70569
A22: Collingwood Public Utilities Service Board | B22: Collus PowerStream Corp | C22: Computer Lease | D22: Service Level Agreement | E22: 80000 | F22: NA
A23: Collingwood Public Utilities Service Board | B23: Collus PowerStream Corp | C23: Building Rental | D23: Service Level Agreement | E23: 216000 | F23: NA
A28: Corporate Cost Allocation
A30: Name of Company | C30: Service Offered | D30: Pricing Methdology | E30: % of Corporate Costs Allocated | F30: Amount Allocated
A31: From | B31: To
E32: % | F32: $
A33: eg: parent company | B33: eg: regulated entity
A34: Collus PowerStream Solutions Corp. | B34: Collus PowerStream Corp. | C34: Shared employees with Water & Sewer | D34: Direct cost allocation | E34: =F34/(2230932+8496) -> 0.4784025206 | F34: =1203348-132000 -> 1071348
A35: Collus PowerStream Solutions Corp. | B35: Collus PowerStream Corp. | C35: Shared employees with Water & Sewer | D35: Management Fee estimate to cover additional corp expenses & misc employee expenses | E35: =F35/(2230932+8496) -> 0.0589436231 | F35: 132000
B42: Year: | C42: 2012
A44: Shared Services
A46: Name of Company | C46: Service Offered | D46: Pricing Methdology | E46: Price for the Service | F46: Cost for the Service
A47: From | B47: To
E48: $ | F48: $
A49: Town of Collingwood | B49: Collus PowerStream Corp | C49: Property maintenance | D49: Direct Cost | E49: 3375 | F49: 3375
A50: Town of Collingwood | B50: Collus PowerStream Corp | C50: Vehicle Fuel | D50: Direct Cost | E50: 57963 | F50: 57963
A51: Collingwood Public Utilities Service Board | B51: Collus PowerStream Corp | C51: Shared Employee Charge | D51: Direct Cost | E51: 64629 | F51: 64629
A52: Collingwood Public Utilities Service Board | B52: Collus PowerStream Corp | C52: Computer Lease | D52: Service Level Agreement | E52: 80000 | F52: NA
A53: Collingwood Public Utilities Service Board | B53: Collus PowerStream Corp | C53: Building Rental | D53: Service Level Agreement | E53: 216000 | F53: NA
A58: Corporate Cost Allocation
A60: Name of Company | C60: Service Offered | D60: Pricing Methdology | E60: % of Corporate Costs Allocated | F60: Amount Allocated
A61: From | B61: To
E62: % | F62: $
A63: eg: parent company | B63: eg: regulated entity
A64: Collus PowerStream Solutions Corp. | B64: Collus PowerStream Corp. | C64: Shared employees with Water & Sewer | D64: Direct cost allocation | E64: =F64/(2564196.09+12564) -> 0.4841350597 | F64: =1379499.9-132000 -> 1247499.9
A65: Collus PowerStream Solutions Corp. | B65: Collus PowerStream Corp. | C65: Shared employees with Water & Sewer | D65: Management Fee estimate to cover additional corp expenses & misc employee expenses | E65: =F65/(2174342.84+15238) -> 0.06028551108 | F65: 132000
B72: Year: | C72: 2011
A74: Shared Services
A76: Name of Company | C76: Service Offered | D76: Pricing Methdology | E76: Price for the Service | F76: Cost for the Service
A77: From | B77: To
E78: $ | F78: $
A79: Town of Collingwood | B79: Collus PowerStream Corp | C79: Property maintenance | D79: Direct Cost | E79: 3375 | F79: 3375
A80: Town of Collingwood | B80: Collus PowerStream Corp | C80: Vehicle Fuel | D80: Direct Cost | E80: 50611 | F80: 50611
A81: Collingwood Public Utilities Service Board | B81: Collus PowerStream Corp | C81: Shared Employee Charge | D81: Direct Cost | E81: 217569 | F81: 217569
A82: Collingwood Public Utilities Service Board | B82: Collus PowerStream Corp | C82: Computer Lease | D82: Service Level Agreement | E82: 80000 | F82: NA
A83: Collingwood Public Utilities Service Board | B83: Collus PowerStream Corp | C83: Building Rental | D83: Service Level Agreement | E83: 216000 | F83: NA
A88: Corporate Cost Allocation
A90: Name of Company | C90: Service Offered | D90: Pricing Methdology | E90: % of Corporate Costs Allocated | F90: Amount Allocated
A91: From | B91: To
E92: % | F92: $
A93: eg: parent company | B93: eg: regulated entity
A94: Collus PowerStream Solutions Corp. | B94: Collus PowerStream Corp. | C94: Shared employees with Water & Sewer | D94: Direct cost allocation | E94: =F94/(2174342.84+15238) -> 0.4742305975 | F94: =1137366.23-99000 -> 1038366.23
A95: Collus PowerStream Solutions Corp. | B95: Collus PowerStream Corp. | C95: Shared employees with Water & Sewer | D95: Management Fee estimate to cover additional corp expenses & misc employee expenses | E95: =F95/(2174342.84+15238) -> 0.04521413331 | F95: 99000
B102: Year: | C102: 2010
A104: Shared Services
A106: Name of Company | C106: Service Offered | D106: Pricing Methdology | E106: Price for the Service | F106: Cost for the Service
A107: From | B107: To
E108: $ | F108: $
A109: Town of Collingwood | B109: Collus PowerStream Corp | C109: Property maintenance | D109: Direct Cost | E109: 4370 | F109: 4370
A110: Town of Collingwood | B110: Collus PowerStream Corp | C110: Vehicle Fuel | D110: Direct Cost | E110: 40246 | F110: 40246
A111: Collingwood Public Utilities Service Board | B111: Collus PowerStream Corp | C111: Shared Employee Charge | D111: Direct Cost | E111: 111090 | F111: 111090
A112: Collingwood Public Utilities Service Board | B112: Collus PowerStream Corp | C112: Computer Lease | D112: Service Level Agreement | E112: 117000 | F112: NA
A113: Collingwood Public Utilities Service Board | B113: Collus PowerStream Corp | C113: Building Rental | D113: Service Level Agreement | E113: 200000 | F113: NA
A118: Corporate Cost Allocation
A120: Name of Company | C120: Service Offered | D120: Pricing Methdology | E120: % of Corporate Costs Allocated | F120: Amount Allocated
A121: From | B121: To
E122: % | F122: $
A123: eg: parent company | B123: eg: regulated entity
A124: Collus PowerStream Solutions Corp. | B124: Collus PowerStream Corp. | C124: Shared employees with Water & Sewer | D124: Direct cost allocation | E124: =F124/(2147305.2+3058.19) -> 0.4765134139 | F124: =1174677-150000 -> 1024677
A125: Collus PowerStream Solutions Corp. | B125: Collus PowerStream Corp. | C125: Shared employees with Water & Sewer | D125: Management Fee estimate to cover additional corp expenses & misc employee expenses | E125: =F125/(2147305.2+3058.19) -> 0.06975565186 | F125: 150000
B133: Year: | C133: 2009
A135: Shared Services
A137: Name of Company | C137: Service Offered | D137: Pricing Methdology | E137: Price for the Service | F137: Cost for the Service
A138: From | B138: To
E139: $ | F139: $
A140: Town of Collingwood | B140: Collus PowerStream Corp | C140: Property maintenance | D140: Direct Cost | E140: 3240 | F140: 3240
A141: Town of Collingwood | B141: Collus PowerStream Corp | C141: Vehicle Fuel | D141: Direct Cost | E141: 43708 | F141: 43708
A142: Collingwood Public Utilities Service Board | B142: Collus PowerStream Corp | C142: Shared Employee Charge | D142: Direct Cost | E142: 70569 | F142: 70569
A143: Collingwood Public Utilities Service Board | B143: Collus PowerStream Corp | C143: Computer Lease | D143: Service Level Agreement | E143: 117000 | F143: NA
A144: Collingwood Public Utilities Service Board | B144: Collus PowerStream Corp | C144: Building Rental | D144: Service Level Agreement | E144: 200000 | F144: NA
A149: Corporate Cost Allocation
A151: Name of Company | C151: Service Offered | D151: Pricing Methdology | E151: % of Corporate Costs Allocated | F151: Amount Allocated
A152: From | B152: To
E153: % | F153: $
A154: eg: parent company | B154: eg: regulated entity
A155: Collus PowerStream Solutions Corp. | B155: Collus PowerStream Corp. | C155: Shared employees with Water & Sewer | D155: Direct cost allocation | E155: =F155/(1978355.27+9849) -> 0.4682617446 | F155: =931000 -> 931000
A156: Collus PowerStream Solutions Corp. | B156: Collus PowerStream Corp. | C156: Shared employees with Water & Sewer | D156: Management Fee estimate to cover additional corp expenses & misc employee expenses | E156: =F156/(1978355.27+9849) -> 0.09210572714 | F156: 183125
A163: Note:
A164: 1 | B164: This appendix must be completed in relation to each service provided or received for the Historical (actuals), Bridge and Test years.

Sheet App.2-OA_2009BA
K1: File Number: | O1: ='LDC Info'!$E$18 -> EB-2012-0116
K2: Exhibit:
K3: Tab:
K4: Schedule: | O4: 2009 BA
K5: Page:
K7: Date: | O7: 2013-05-24
C10: Appendix 2-OA
C11: Capital Structure and Cost of Capital
A13: This table must be completed for the required years of all historical years, the bridge year and the test year.
A15: Line No.
C16: Particulars | E16: Capitalization Ratio | K16: Cost Rate | O16: Return
C19: Application
E20: (%) | I20: ($) | K20: (%) | O20: ($)
C21: Debt
A22: 1 | C22: Long-term Debt | E22: 0.527 | I22: =+E22*$I$31 -> 8584431.061 | K22: 0.0662 | O22: =K22*I22 -> 568289.3362
A23: 2 | C23: Short-term Debt | E23: 0.04 | G23: (1) | I23: =+E23*$I$31 -> 651569.72 | K23: 0.0133 | O23: =K23*I23 -> 8665.877276
A24: 3 | C24: Total Debt | E24: =SUM(E22:E23) -> 0.567 | I24: =SUM(I22:I23) -> 9236000.781 | K24: =IF(E24=0,0,SUMPRODUCT(E22:E23,K22:K23)/E24) -> 0.0624680776 | O24: =SUM(O22:O23) -> 576955.2135
C26: Equity
A27: 4 | C27: Common Equity | E27: 0.433 | I27: =+E27*$I$31 -> 7053242.219 | K27: 0.0801 | O27: =K27*I27 -> 564964.7017
A28: 5 | C28: Preferred Shares | I28: 0 | O28: =K28*I28 -> 0
A29: 6 | C29: Total Equity | E29: =SUM(E27:E28) -> 0.433 | I29: =SUM(I27:I28) -> 7053242.219 | K29: =IF(E29=0,0,SUMPRODUCT(E27:E28,K27:K28)/E29) -> 0.0801 | O29: =SUM(O27:O28) -> 564964.7017
A31: 7 | C31: Total | E31: 1 | I31: 16289243 | K31: =(K24*E24)+(K29*E29) -> 0.0701027 | O31: =O24+O29 -> 1141919.915
A34: Notes
A35: (1) | C35: 4.0% unless an applicant has proposed or been approved for a different amount.
C36: 2009 last Board Approved

Sheet App.2-OA Capital Structure_2009
K1: File Number: | O1: ='LDC Info'!$E$18 -> EB-2012-0116
K2: Exhibit:
K3: Tab:
K4: Schedule: | O4: 2009
K5: Page:
K7: Date: | O7: 2013-05-24
C10: Appendix 2-OA
C11: Capital Structure and Cost of Capital
A13: This table must be completed for the required years of all historical years, the bridge year and the test year.
A15: Line No.
C16: Particulars | E16: Capitalization Ratio | K16: Cost Rate | O16: Return
C19: Application
E20: (%) | I20: ($) | K20: (%) | O20: ($)
C21: Debt
A22: 1 | C22: Long-term Debt | E22: 0.527 | I22: =+E22*$I$31 -> 8117526.979 | K22: 0.0762 | O22: =K22*I22 -> 618555.5558
A23: 2 | C23: Short-term Debt | E23: 0.04 | G23: (1) | I23: =+E23*$I$31 -> 616131.08 | K23: 0.0133 | O23: =K23*I23 -> 8194.543364
A24: 3 | C24: Total Debt | E24: =SUM(E22:E23) -> 0.567 | I24: =SUM(I22:I23) -> 8733658.059 | K24: =IF(E24=0,0,SUMPRODUCT(E22:E23,K22:K23)/E24) -> 0.07176261023 | O24: =SUM(O22:O23) -> 626750.0992
C26: Equity
A27: 4 | C27: Common Equity | E27: 0.433 | I27: =+E27*$I$31 -> 6669618.941 | K27: 0.0801 | O27: =K27*I27 -> 534236.4772
A28: 5 | C28: Preferred Shares | I28: 0 | O28: =K28*I28 -> 0
A29: 6 | C29: Total Equity | E29: =SUM(E27:E28) -> 0.433 | I29: =SUM(I27:I28) -> 6669618.941 | K29: =IF(E29=0,0,SUMPRODUCT(E27:E28,K27:K28)/E29) -> 0.0801 | O29: =SUM(O27:O28) -> 534236.4772
A31: 7 | C31: Total | E31: 1 | I31: 15403277 | K31: =(K24*E24)+(K29*E29) -> 0.0753727 | O31: =O24+O29 -> 1160986.576
A34: Notes
A35: (1) | C35: 4.0% unless an applicant has proposed or been approved for a different amount.
C36: 2009 CGAAP Actual Historic Year

Sheet App.2-OA Capital Structure_2010
K1: File Number: | O1: ='LDC Info'!$E$18 -> EB-2012-0116
K2: Exhibit:
K3: Tab:
K4: Schedule: | O4: 2010
K5: Page:
K7: Date: | O7: 2013-05-24
C10: Appendix 2-OA
C11: Capital Structure and Cost of Capital
A13: This table must be completed for the required years of all historical years, the bridge year and the test year.
A15: Line No.
C16: Particulars | E16: Capitalization Ratio | K16: Cost Rate | O16: Return
C19: Application
E20: (%) | I20: ($) | K20: (%) | O20: ($)
C21: Debt
A22: 1 | C22: Long-term Debt | E22: 0.56 | I22: =+E22*$I$31 -> 9315415.76 | K22: 0.0512 | O22: =K22*I22 -> 476949.2869
A23: 2 | C23: Short-term Debt | E23: 0.04 | G23: (1) | I23: =+E23*$I$31 -> 665386.84 | K23: 0.0207 | O23: =K23*I23 -> 13773.50759
A24: 3 | C24: Total Debt | E24: =SUM(E22:E23) -> 0.6 | I24: =SUM(I22:I23) -> 9980802.6 | K24: =IF(E24=0,0,SUMPRODUCT(E22:E23,K22:K23)/E24) -> 0.04916666667 | O24: =SUM(O22:O23) -> 490722.7945
C26: Equity
A27: 4 | C27: Common Equity | E27: 0.4 | I27: =+E27*$I$31 -> 6653868.4 | K27: 0.0985 | O27: =K27*I27 -> 655406.0374
A28: 5 | C28: Preferred Shares | O28: =K28*I28 -> 0
A29: 6 | C29: Total Equity | E29: =SUM(E27:E28) -> 0.4 | I29: =SUM(I27:I28) -> 6653868.4 | K29: =IF(E29=0,0,SUMPRODUCT(E27:E28,K27:K28)/E29) -> 0.0985 | O29: =SUM(O27:O28) -> 655406.0374
A31: 7 | C31: Total | E31: 1 | I31: 16634671 | K31: =(K24*E24)+(K29*E29) -> 0.0689 | O31: =O24+O29 -> 1146128.832
A34: Notes
A35: (1) | C35: 4.0% unless an applicant has proposed or been approved for a different amount.
C36: 2010 CGAAP Actual Historic Year

Sheet App.2-OA Capital Structure_2011
K1: File Number: | O1: ='LDC Info'!$E$18 -> EB-2012-0116
K2: Exhibit:
K3: Tab:
K4: Schedule: | O4: 2011
K5: Page:
K7: Date: | O7: 2013-05-24
C10: Appendix 2-OA
C11: Capital Structure and Cost of Capital
A13: This table must be completed for the required years of all historical years, the bridge year and the test year.
A15: Line No.
C16: Particulars | E16: Capitalization Ratio | K16: Cost Rate | O16: Return
C19: Application
E20: (%) | I20: ($) | K20: (%) | O20: ($)
C21: Debt
A22: 1 | C22: Long-term Debt | E22: 0.56 | I22: =+E22*$I$31 -> 10129185.92 | K22: 0.0492 | O22: =K22*I22 -> 498355.9473
A23: 2 | C23: Short-term Debt | E23: 0.04 | G23: (1) | I23: =+E23*$I$31 -> 723513.28 | K23: 0.0246 | O23: =K23*I23 -> 17798.42669
A24: 3 | C24: Total Debt | E24: =SUM(E22:E23) -> 0.6 | I24: =SUM(I22:I23) -> 10852699.2 | K24: =IF(E24=0,0,SUMPRODUCT(E22:E23,K22:K23)/E24) -> 0.04756 | O24: =SUM(O22:O23) -> 516154.374
C26: Equity
A27: 4 | C27: Common Equity | E27: 0.4 | I27: =+E27*$I$31 -> 7235132.8 | K27: 0.0958 | O27: =K27*I27 -> 693125.7222
A28: 5 | C28: Preferred Shares | I28: 0 | O28: =K28*I28 -> 0
A29: 6 | C29: Total Equity | E29: =SUM(E27:E28) -> 0.4 | I29: =SUM(I27:I28) -> 7235132.8 | K29: =IF(E29=0,0,SUMPRODUCT(E27:E28,K27:K28)/E29) -> 0.0958 | O29: =SUM(O27:O28) -> 693125.7222
A31: 7 | C31: Total | E31: 1 | I31: 18087832 | K31: =(K24*E24)+(K29*E29) -> 0.066856 | O31: =O24+O29 -> 1209280.096
A34: Notes
A35: (1) | C35: 4.0% unless an applicant has proposed or been approved for a different amount.
C36: 2011 CGAAP Actual Historic Year

Sheet App.2-OA_2012
K1: Schedule:
K2: Page:
K4: Date: | O4: 2013-05-24
C7: Appendix 2-OA
C8: Capital Structure and Cost of Capital
A10: This table must be completed for the required years of all historical years, the bridge year and the test year.
A12: Line No.
C13: Particulars | E13: Capitalization Ratio | K13: Cost Rate | O13: Return
C16: Application
E17: (%) | I17: ($) | K17: (%) | O17: ($)
C18: Debt
A19: 1 | C19: Long-term Debt | E19: 0.56 | I19: =+E19*$I$28 -> 10440428.32 | K19: 0.041 | O19: =K19*I19 -> 428057.5611
A20: 2 | C20: Short-term Debt | E20: 0.04 | I20: =+E20*$I$28 -> 745744.88 | K20: 0.0208 | O20: =K20*I20 -> 15511.4935
A21: 3 | C21: Total Debt | E21: =SUM(E19:E20) -> 0.6 | I21: =SUM(I19:I20) -> 11186173.2 | K21: =IF(E21=0,0,SUMPRODUCT(E19:E20,K19:K20)/E21) -> 0.03965333333 | O21: =SUM(O19:O20) -> 443569.0546
C23: Equity
A24: 4 | C24: Common Equity | E24: 0.4 | I24: =+E24*$I$28 -> 7457448.8 | K24: 0.0912 | O24: =K24*I24 -> 680119.3306
A25: 5 | C25: Preferred Shares | I25: =$I$31*E25 -> 0 | O25: =K25*I25 -> 0
A26: 6 | C26: Total Equity | E26: =SUM(E24:E25) -> 0.4 | I26: =SUM(I24:I25) -> 7457448.8 | K26: =IF(E26=0,0,SUMPRODUCT(E24:E25,K24:K25)/E26) -> 0.0912 | O26: =SUM(O24:O25) -> 680119.3306
A28: 7 | C28: Total | E28: 1 | I28: 18643622 | K28: =(K21*E21)+(K26*E26) -> 0.060272 | O28: =O21+O26 -> 1123688.385
A31: Notes
A32: (1) | C32: 4.0% unless an applicant has proposed or been approved for a different amount.
C33: 2012 CGAAP Bridge Year

Sheet App.2-OA_2013
K1: Schedule:
K2: Page:
K4: Date: | O4: 2013-05-24
C7: Appendix 2-OA
C8: Capital Structure and Cost of Capital
A10: This table must be completed for the required years of all historical years, the bridge year and the test year.
A12: Line No.
C13: Particulars | E13: Capitalization Ratio | K13: Cost Rate | O13: Return
C16: Application
E17: (%) | I17: ($) | K17: (%) | O17: ($)
C18: Debt
A19: 1 | C19: Long-term Debt | E19: 0.56 | I19: =+E19*$I$28 -> 11341734.88 | K19: 0.0405 | O19: =K19*I19 -> 459340.2626
A20: 2 | C20: Short-term Debt | E20: 0.04 | G20: (1) | I20: =+E20*$I$28 -> 810123.92 | K20: 0.0207 | O20: =K20*I20 -> 16769.56514
A21: 3 | C21: Total Debt | E21: =SUM(E19:E20) -> 0.6 | I21: =SUM(I19:I20) -> 12151858.8 | K21: =IF(E21=0,0,SUMPRODUCT(E19:E20,K19:K20)/E21) -> 0.03918 | O21: =SUM(O19:O20) -> 476109.8278
C23: Equity
A24: 4 | C24: Common Equity | E24: 0.4 | I24: =+E24*$I$28 -> 8101239.2 | K24: 0.0898 | O24: =K24*I24 -> 727491.2802
A25: 5 | C25: Preferred Shares | I25: =$I$31*E25 -> 0 | O25: =K25*I25 -> 0
A26: 6 | C26: Total Equity | E26: =SUM(E24:E25) -> 0.4 | I26: =SUM(I24:I25) -> 8101239.2 | K26: =IF(E26=0,0,SUMPRODUCT(E24:E25,K24:K25)/E26) -> 0.0898 | O26: =SUM(O24:O25) -> 727491.2802
A28: 7 | C28: Total | E28: 1 | I28: 20253098 | K28: =(K21*E21)+(K26*E26) -> 0.059428 | O28: =O21+O26 -> 1203601.108
A31: Notes
A32: (1) | C32: 4.0% unless an applicant has proposed or been approved for a different amount.
C33: 2013 Test Year

Sheet App.2-OB_Debt
J1: File Number: | K1: ='LDC Info'!$E$18 -> EB-2012-0116
M2: Exhibit:
M3: Tab:
M4: Schedule:
M5: Page:
M7: Date: | P7: 2013-04-30
A10: Appendix 2-OB
A11: Debt Instruments
A13: This table must be completed for the required years of all historical years, the bridge year and the test year.
B14: Deemed Debt Rate - Long Term Debt | N14: Deemed Debt Rate - Short Term Debt
B15: Size of Utility | C15: Medium-Large | O15: Size of Utility | P15: Medium-Large
B16: Deemed Debt Rate
B17: prior to 2000 | C17: actual rate
B18: 2000 to 2005 | C18: 0.069
B19: 2006 | C19: 0.059 | O19: =B19 -> 2006 | P19: 0.05
B20: 2007 | C20: 0.059 | O20: 2007 | P20: 0.0459
B21: 2008 | C21: 0.061 | O21: 2008 | P21: 0.0447
B22: 2009 | C22: 0.0762 | O22: 2009 | P22: 0.0133
B23: 2010 | C23: 0.0587 | O23: 2010 | P23: 0.0207
B24: 2011 | C24: 0.0532 | O24: 2011 | P24: 0.0246
B25: 2012 | C25: 0.0441 | O25: 2012 | P25: 0.0208
B26: 2013 | C26: 0.0412 | O26: 2013 | P26: 0.0207
A28: LONG -TERM DEBT | N28: SHORT -TERM DEBT
A31: COLLUS Power - WEIGHTED DEBT COST - 2009 Board Approved | N31: WEIGHTED DEBT COST - 2009 Board Approved
A34: No. | B34: Description | C34: Debt Holder | D34: Is the Debt Holder Affiliated with the LDC? (Y/N) | E34: Date of Issuance of Debt (Date) | F34: Principal ($) | G34: Term (Years) | H34: Actual Rate (%) | I34: Debt Rate Used for Weighted Debt Rate Cost | N34: No. | O34: Description | P34: Debt Holder | Q34: Is the Debt Holder Affiliated with the LDC? (Y/N) | R34: Date of Issuance of Debt (Date) | S34: Principal ($) | T34: Term (Years) | U34: Actual Rate (%) | V34: Deemed debt rate, %
A36: 1 | B36: Promissory Note | C36: Town of Collingwood | D36: Y | E36: 2001-11-01 | F36: 1700000 | G36: 0 | H36: 0.0725 | I36: 0.0762 | N36: 1 | O36: Deemed Debt | Q36: y | S36: =(15966036*0.04) -> 638641.44 | T36: 0
A37: =IF(ISBLANK(B37),"",A36+1) -> 2 | B37: Government Agency Loan | C37: OSIFA | D37: N | E37: 2004-06-01 | F37: 1100000 | G37: 5 | H37: 0.0508 | I37: 0.0508 | J37: =IF(YEAR(E37)<2006,"",VLOOKUP(YEAR(E37),$C$11:$D$18,2,FALSE)) ->  | N37: =IF(ISBLANK(O37),"",N36+1) -> 
A38: =IF(ISBLANK(B38),"",A37+1) ->  | J38: =IF(YEAR(E38)<2006,"",VLOOKUP(YEAR(E38),$C$11:$D$18,2,FALSE)) ->  | N38: =IF(ISBLANK(O38),"",N37+1) -> 
A48: =IF(ISBLANK(B48),"",A46+1) ->  | I48: =IF(ISBLANK(D48),"", IF(OR(D48="N",YEAR(E48)<2000),H48, IF(YEAR(E48)<2006,MIN(H48,$D$10),MIN(H48,J48)))) -> 
I49: =IF(ISBLANK(D49),"", IF(OR(D49="N",YEAR(E49)<2000),H49, IF(YEAR(E49)<2006,MIN(H49,$D$10),MIN(H49,J49)))) -> 
N50: Total | S50: =SUM(S36:S49) -> 638641.44
A51: Weighted Average Debt Cost | F51: =SUM(F36:F46) -> 2800000 | H51: =SUMPRODUCT(F36:F50,H36:H50)/F51 -> 0.063975 | I51: =SUMPRODUCT(F36:F50,I36:I50)/F51 -> 0.06622142857 | N51: Weighted Average Debt Cost | V51: =P22 -> 0.0133
A54: LONG -TERM DEBT | N54: SHORT -TERM DEBT
A55: WEIGHTED DEBT COST - 2009 Actual | N55: WEIGHTED DEBT COST - 2009 Actual
A58: No. | B58: Description | C58: Debt Holder | D58: Is the Debt Holder Affiliated with the LDC? (Y/N) | E58: Date of Issuance of Debt (Date) | F58: Principal ($) | G58: Term (Years) | H58: Actual Rate (%) | I58: Debt Rate Used for Weighted Debt Rate Cost | N58: No. | O58: Description | P58: Debt Holder | Q58: Is the Debt Holder Affiliated with the LDC? (Y/N) | R58: Date of Issuance of Debt (Date) | S58: Principal ($) | T58: Term (Years) | U58: Actual Rate (%) | V58: deemed debt rate, %
A60: 1 | B60: Promissory Note | C60: Town of Collingwood | D60: Y | E60: 2001-11-01 | F60: 1710710 | G60: 0 | H60: 0.0725 | I60: =+H60 -> 0.0725 | N60: 1 | O60: Deemed Debt | Q60: y | S60: =(15966036*0.04) -> 638641.44 | T60: 0
J61: =IF(YEAR(E61)<2006,"",VLOOKUP(YEAR(E61),$C$11:$D$18,2,FALSE)) ->  | N61: =IF(ISBLANK(O61),"",N60+1) -> 
A62: =IF(ISBLANK(B62),"",A61+1) ->  | J62: =IF(YEAR(E62)<2006,"",VLOOKUP(YEAR(E62),$C$11:$D$18,2,FALSE)) ->  | N62: =IF(ISBLANK(O62),"",N61+1) -> 
I63: =IF(ISBLANK(D63),"", IF(OR(D63="N",YEAR(E63)<2000),H63, IF(YEAR(E63)<2006,MIN(H63,$D$10),MIN(H63,J63)))) -> 
I71: =IF(ISBLANK(D71),"", IF(OR(D71="N",YEAR(E71)<2000),H71, IF(YEAR(E71)<2006,MIN(H71,$D$10),MIN(H71,J71)))) ->  | J71: =IF(YEAR(E71)<2006,"",VLOOKUP(YEAR(E71),$C$11:$D$14,2,FALSE)) -> 
I72: =IF(ISBLANK(D72),"", IF(OR(D72="N",YEAR(E72)<2000),H72, IF(YEAR(E72)<2006,MIN(H72,$D$10),MIN(H72,J72)))) ->  | J72: =IF(YEAR(E72)<2006,"",VLOOKUP(YEAR(E72),$C$11:$D$14,2,FALSE)) -> 
I73: =IF(ISBLANK(D73),"", IF(OR(D73="N",YEAR(E73)<2000),H73, IF(YEAR(E73)<2006,MIN(H73,$D$10),MIN(H73,J73)))) ->  | J73: =IF(YEAR(E73)<2006,"",VLOOKUP(YEAR(E73),$C$11:$D$14,2,FALSE)) -> 
I74: =IF(ISBLANK(D74),"", IF(OR(D74="N",YEAR(E74)<2000),H74, IF(YEAR(E74)<2006,MIN(H74,$D$10),MIN(H74,J74)))) ->  | J74: =IF(YEAR(E74)<2006,"",VLOOKUP(YEAR(E74),$C$11:$D$14,2,FALSE)) -> 
A75: Total | F75: =IF(SUM(F60:F74)=0,0.0001,SUM(F60:F74)) -> 1710710 | N75: Total | S75: =IF(SUM(S60:S74)=0,0.0001,SUM(S60:S74)) -> 638641.44
A76: Weighted Average Debt Cost - 2009 | H76: =SUMPRODUCT(F60:F74,H60:H74)/F75 -> 0.0725 | I76: =SUMPRODUCT(F60:F74,I60:I74)/F75 -> 0.0725 | N76: Weighted Average Debt Cost - 2009 | U76: =SUMPRODUCT(S60:S74,U60:U74)/S75 -> 0 | V76: =P22 -> 0.0133
A79: LONG -TERM DEBT | N79: SHORT -TERM DEBT
A80: WEIGHTED DEBT COST - 2010 Actual | N80: WEIGHTED DEBT COST - 2010 Actual
A83: No. | B83: Description | C83: Debt Holder | D83: Is the Debt Holder Affiliated with the LDC? (Y/N) | E83: Date of Issuance of Debt (Date) | F83: Principal ($) | G83: Term (Years) | H83: Actual Rate (%) | I83: Debt Rate Used for Weighted Debt Rate Cost | N83: No. | O83: Description | P83: Debt Holder | Q83: Is the Debt Holder Affiliated with the LDC? (Y/N) | R83: Date of Issuance of Debt (Date) | S83: Principal ($) | T83: Term (Years) | U83: Actual Rate (%) | V83: =V58 -> deemed debt rate, %
A85: 1 | B85: Promissory Note | C85: Town of Collingwood | D85: Y | E85: 2001-11-01 | F85: 1710710 | G85: 0 | H85: 0.0725 | I85: =C23 -> 0.0587 | N85: 1 | O85: Deemed Debt | Q85: y | S85: =(15966036*0.04) -> 638641.44 | T85: 0
A86: =IF(ISBLANK(B86),"",A85+1) -> 2 | B86: Government Agency Loan | C86: OSIFA | D86: N | E86: 2010-04-15 | F86: 2900000 | G86: 15 | H86: 0.0467 | I86: 0.0467 | J86: =IF(YEAR(E86)<2006,"",VLOOKUP(YEAR(E86),$C$11:$D$18,2,FALSE)) ->  | N86: =IF(ISBLANK(O86),"",N85+1) -> 
J87: =IF(YEAR(E87)<2006,"",VLOOKUP(YEAR(E87),$C$11:$D$18,2,FALSE)) -> 
A88: =IF(ISBLANK(B88),"",A87+1) ->  | I88: =IF(ISBLANK(D88),"", IF(OR(D88="N",YEAR(E88)<2000),H88, IF(YEAR(E88)<2006,MIN(H88,$D$10),MIN(H88,J88)))) -> 
I96: =IF(ISBLANK(D96),"", IF(OR(D96="N",YEAR(E96)<2000),H96, IF(YEAR(E96)<2006,MIN(H96,$D$10),MIN(H96,J96)))) -> 
A97: =IF(ISBLANK(B97),"",A96+1) ->  | I97: =IF(ISBLANK(D97),"", IF(OR(D97="N",YEAR(E97)<2000),H97, IF(YEAR(E97)<2006,MIN(H97,$D$10),MIN(H97,J97)))) -> 
A98: =IF(ISBLANK(B98),"",A97+1) ->  | I98: =IF(ISBLANK(D98),"", IF(OR(D98="N",YEAR(E98)<2000),H98, IF(YEAR(E98)<2006,MIN(H98,$D$10),MIN(H98,J98)))) ->  | N98: =IF(ISBLANK(O98),"",N92+1) -> 
A99: =IF(ISBLANK(B99),"",A98+1) ->  | I99: =IF(ISBLANK(D99),"", IF(OR(D99="N",YEAR(E99)<2000),H99, IF(YEAR(E99)<2006,MIN(H99,$E$10),MIN(H99,J99)))) -> 
A100: Total | F100: =IF(SUM(F85:F99)=0,0.0001,SUM(F85:F99)) -> 4610710 | N100: Total | S100: =IF(SUM(S85:S99)=0,0.0001,SUM(S85:S99)) -> 638641.44
A101: Weighted Average Debt Cost - 2010 | H101: =SUMPRODUCT(F85:F99,H85:H99)/F100 -> 0.05627256431 | I101: =SUMPRODUCT(F85:F99,I85:I99)/F100 -> 0.05115235549 | N101: Weighted Average Debt Cost - 2010 | U101: =SUMPRODUCT(S85:S99,U85:U99)/S100 -> 0 | V101: =P23 -> 0.0207
A105: LONG -TERM DEBT | N105: SHORT -TERM DEBT
A106: WEIGHTED DEBT COST - 2011 Actual | N106: =A106 -> WEIGHTED DEBT COST - 2011 Actual
A109: No. | B109: Description | C109: Debt Holder | D109: Is the Debt Holder Affiliated with the LDC? (Y/N) | E109: Date of Issuance of Debt (Date) | F109: Principal ($) | G109: Term (Years) | H109: Actual Rate (%) | I109: Debt Rate Used for Weighted Debt Rate Cost | N109: No. | O109: Description | P109: Debt Holder | Q109: Is the Debt Holder Affiliated with the LDC? (Y/N) | R109: Date of Issuance of Debt (Date) | S109: Principal ($) | T109: Term (Years) | U109: Actual Rate (%) | V109: =V83 -> deemed debt rate, %
A111: 1 | B111: Promissory Note | C111: Town of Collingwood | D111: Y | E111: 2001-11-01 | F111: 1710710 | G111: 0 | H111: 0.0725 | I111: =C24 -> 0.0532 | N111: 1 | O111: Deemed Debt | Q111: y | S111: =(15966036*0.04) -> 638641.44 | T111: 0
A112: =IF(ISBLANK(B112),"",A111+1) -> 2 | B112: Government Agency Loan | C112: OSIFA | D112: N | E112: 2010-04-15 | F112: 2700000 | G112: 15 | H112: 0.0467 | I112: 0.0467 | J112: =IF(YEAR(E112)<2006,"",VLOOKUP(YEAR(E112),$C$11:$D$18,2,FALSE)) ->  | N112: =IF(ISBLANK(O112),"",N111+1) -> 
J113: =IF(YEAR(E113)<2006,"",VLOOKUP(YEAR(E113),$C$11:$D$18,2,FALSE)) ->  | N113: =IF(ISBLANK(O113),"",N112+1) -> 
A114: =IF(ISBLANK(B114),"",A113+1) ->  | I114: =IF(ISBLANK(D114),"", IF(OR(D114="N",YEAR(E114)<2000),H114, IF(YEAR(E114)<2006,MIN(H114,$D$10),MIN(H114,J114)))) -> 
I122: =IF(ISBLANK(D122),"", IF(OR(D122="N",YEAR(E122)<2000),H122, IF(YEAR(E122)<2006,MIN(H122,$D$10),MIN(H122,J122)))) -> 
I123: =IF(ISBLANK(D123),"", IF(OR(D123="N",YEAR(E123)<2000),H123, IF(YEAR(E123)<2006,MIN(H123,$D$10),MIN(H123,J123)))) -> 
I124: =IF(ISBLANK(D124),"", IF(OR(D124="N",YEAR(E124)<2000),H124, IF(YEAR(E124)<2006,MIN(H124,$D$10),MIN(H124,J124)))) -> 
A125: =IF(ISBLANK(B125),"",A124+1) ->  | I125: =IF(ISBLANK(D125),"", IF(OR(D125="N",YEAR(E125)<2000),H125, IF(YEAR(E125)<2006,MIN(H125,$D$10),MIN(H125,J125)))) ->  | J125: =IF(YEAR(E125)<2006,"",VLOOKUP(YEAR(E125),$C$11:$D$13,2,FALSE)) -> 
A126: =IF(ISBLANK(B126),"",#REF!+1) ->  | C126: Total | F126: =IF(SUM(F111:F125)=0,0.0001,SUM(F111:F125)) -> 4410710 | N126: Total | S126: =IF(SUM(S111:S125)=0,0.0001,SUM(S111:S125)) -> 638641.44
A127: Weighted Average Debt Cost - 2011 | H127: =SUMPRODUCT(F111:F125,H111:H125)/F126 -> 0.05670662433 | I127: =SUMPRODUCT(F111:F125,I111:I125)/F126 -> 0.04922104877 | N127: =A127 -> Weighted Average Debt Cost - 2011 | U127: =SUMPRODUCT(S111:S125,U111:U125)/S126 -> 0 | V127: =P24 -> 0.0246
A131: LONG -TERM DEBT | N131: SHORT -TERM DEBT
A132: WEIGHTED DEBT COST - Actual 2012 | N132: WEIGHTED DEBT COST - Actual 2012
A135: No. | B135: Description | C135: Debt Holder | D135: Is the Debt Holder Affiliated with the LDC? (Y/N) | E135: Date of Issuance of Debt (Date) | F135: Principal ($) | G135: Term (Years) | H135: Actual /Forecasted Rate (%) | I135: Debt Rate Used for Weighted Debt Rate Cost | N135: No. | O135: Description | P135: Debt Holder | Q135: Is the Debt Holder Affiliated with the LDC? (Y/N) | R135: Date of Issuance of Debt (Date) | S135: Principal ($) | T135: Term (Years) | U135: Actual Rate (%) | V135: =V109 -> deemed debt rate, %
A137: 1 | B137: Promissory Note | C137: Town of Collingwood | D137: Y | E137: 2001-11-01 | F137: 1710710 | G137: 0 | H137: 0.0725 | I137: =C25 -> 0.0441 | N137: 1 | O137: Deemed Debt | Q137: y | S137: =(15966036*0.04) -> 638641.44 | T137: 0 | U137: 0.0133
A138: =IF(ISBLANK(B138),"",A137+1) -> 2 | B138: Government Agency Loan | C138: OSIFA | D138: N | E138: 2010-04-15 | F138: 2500000 | G138: 15 | H138: 0.0467 | I138: 0.0467 | J138: =IF(YEAR(E138)<2006,"",VLOOKUP(YEAR(E138),$C$11:$D$18,2,FALSE)) ->  | N138: =IF(ISBLANK(O138),"",N137+1) -> 
A139: =IF(ISBLANK(B139),"",A138+1) -> 3 | B139: Government Agency Loan | C139: OSIFA | D139: N | E139: 2012-10-01 | F139: 6500000 | G139: 25 | H139: 0.038 | I139: =H139 -> 0.038 | J139: =IF(YEAR(E139)<2006,"",VLOOKUP(YEAR(E139),$C$11:$D$18,2,FALSE)) ->  | N139: =IF(ISBLANK(O139),"",N138+1) -> 
I140: =IF(ISBLANK(D140),"", IF(OR(D140="N",YEAR(E140)<2000),H140, IF(YEAR(E140)<2006,MIN(H140,$D$10),MIN(H140,J140)))) -> 
N147: =IF(ISBLANK(O147),"",N146+1) -> 
I148: =IF(ISBLANK(D148),"", IF(OR(D148="N",YEAR(E148)<2000),H148, IF(YEAR(E148)<2006,MIN(H148,$D$10),MIN(H148,J148)))) ->  | N148: =IF(ISBLANK(O148),"",N147+1) -> 
A149: 13 | I149: =IF(ISBLANK(D149),"", IF(YEAR(E149)<2000,H149, IF(YEAR(E149)<2006,MIN(H149,$D$10),MIN(H149,J149)))) ->  | N149: =IF(ISBLANK(O149),"",N148+1) -> 
N150: =IF(ISBLANK(O150),"",N149+1) -> 
A151: =IF(ISBLANK(B151),"",A150+1) ->  | I151: =IF(ISBLANK(D151),"", IF(OR(D151="N",YEAR(E151)<2000),H151, IF(YEAR(E151)<2006,MIN(H151,$E$10),MIN(H151,J151)))) ->  | N151: =IF(ISBLANK(O151),"",N150+1) -> 
A152: =IF(ISBLANK(B152),"",#REF!+1) ->  | C152: Total | F152: =IF(SUM(F137:F151)=0,0.0001,SUM(F137:F151)) -> 10710710 | N152: Total | S152: =IF(SUM(S137:S151)=0,0.0001,SUM(S137:S151)) -> 638641.44
A153: Weighted Average Debt Cost - 2012 | H153: =SUMPRODUCT(F137:F151,H137:H151)/F152 -> 0.04554100288 | I153: =SUMPRODUCT(F137:F151,I137:I151)/F152 -> 0.04100496708 | N153: Weighted Average Debt Cost - 2012 | U153: =SUMPRODUCT(S137:S151,U137:U151)/S152 -> 0.0133 | V153: =P25 -> 0.0208
A156: LONG -TERM DEBT | N156: SHORT -TERM DEBT
A157: WEIGHTED DEBT COST - Test Year 2013 | N157: WEIGHTED DEBT COST - Test Year 2013
A160: No. | B160: Description | C160: Debt Holder | D160: Is the Debt Holder Affiliated with the LDC? (Y/N) | E160: Date of Issuance of Debt (Date) | F160: Principal ($) | G160: Term (Years) | H160: Actual /Forecasted Rate (%) | I160: Debt Rate Used for Weighted Debt Rate Cost | N160: No. | O160: Description | P160: Debt Holder | Q160: Is the Debt Holder Affiliated with the LDC? (Y/N) | R160: Date of Issuance of Debt (Date) | S160: Principal ($) | T160: Term | U160: Actual Rate (%) | V160: =V135 -> deemed debt rate, %
A162: 1 | B162: Promissory Note | C162: Town of Collingwood | D162: N | E162: 2001-11-01 | F162: 1710710 | G162: 0 | H162: 0.0558 | I162: =C26 -> 0.0412 | N162: 1 | O162: Deemed Debt | Q162: y | S162: =(15966036*0.04) -> 638641.44 | T162: 0 | U162: 0.0133
A163: =IF(ISBLANK(B163),"",A162+1) -> 2 | B163: Government Agency Loan | C163: OSIFA | D163: N | E163: 2010-04-15 | F163: 2300000 | G163: 15 | H163: 0.0467 | I163: 0.0467 | J163: =IF(YEAR(E163)<2006,"",VLOOKUP(YEAR(E163),$C$11:$D$18,2,FALSE)) ->  | N163: =IF(ISBLANK(O163),"",N162+1) -> 
A164: =IF(ISBLANK(B164),"",A163+1) -> 3 | B164: Government Agency Loan | C164: OSIFA | D164: N | E164: 2012-08-01 | F164: 6262260.45 | G164: 25 | H164: 0.038 | I164: =H164 -> 0.038 | J164: =IF(YEAR(E164)<2006,"",VLOOKUP(YEAR(E164),$C$11:$D$18,2,FALSE)) ->  | N164: =IF(ISBLANK(O164),"",N163+1) -> 
A165: =IF(ISBLANK(B165),"",A164+1) ->  | I165: =IF(ISBLANK(D165),"", IF(OR(D165="N",YEAR(E165)<2000),H165, IF(YEAR(E165)<2006,MIN(H165,$D$10),MIN(H165,J165)))) -> 
N172: =IF(ISBLANK(O172),"",N171+1) -> 
I173: =IF(ISBLANK(D173),"", IF(OR(D173="N",YEAR(E173)<2000),H173, IF(YEAR(E173)<2006,MIN(H173,$D$10),MIN(H173,J173)))) ->  | N173: =IF(ISBLANK(O173),"",N172+1) -> 
I174: =IF(ISBLANK(D174),"", IF(YEAR(E174)<2000,H174, IF(YEAR(E174)<2006,MIN(H174,$D$10),MIN(H174,J174)))) ->  | N174: =IF(ISBLANK(O174),"",N173+1) -> 
A175: 14 | I175: =IF(ISBLANK(D175),"", IF(YEAR(E175)<2000,H175, IF(YEAR(E175)<2006,MIN(H175,$D$10),MIN(H175,J175)))) ->  | N175: =IF(ISBLANK(O175),"",N174+1) -> 
A176: =IF(ISBLANK(B176),"",A175+1) ->  | I176: =IF(ISBLANK(D176),"",IF(D176="N",H176,IF(D176="Y",IF(YEAR(E176)<2000,H176,IF(YEAR(E176)=2006,MIN(H176,$E$11),MIN(H176,$E$10)))))) ->  | J176: =IF(YEAR(E176)<2006,"",VLOOKUP(YEAR(E176),$C$11:$D$13,2,FALSE)) ->  | N176: =IF(ISBLANK(O176),"",N175+1) -> 
F177: =IF(SUM(F162:F176)=0,0.0001,SUM(F162:F176)) -> 10272970.45 | I177: =IF(ISBLANK(D177),"",IF(D177="N",H177,IF(D177="Y",IF(YEAR(E177)<2000,H177,IF(YEAR(E177)=2006,MIN(H177,$E$11),MIN(H177,$E$10)))))) ->  | N177: Total | S177: =IF(SUM(S162:S176)=0,0.0001,SUM(S162:S176)) -> 638641.44
A178: Weighted Average Debt Cost - 2013 | H178: =SUMPRODUCT(F162:F176,H162:H176)/F177 -> 0.04291198123 | I178: =SUMPRODUCT(F162:F176,I162:I176)/F177 -> 0.04048071112 | N178: Weighted Average Debt Cost - 2013 | U178: =SUMPRODUCT(S162:S176,U162:U176)/S177 -> 0.0133 | V178: =P26 -> 0.0207
A180: Notes:
A181: 1. Affiliate embedded /Actual debt with Fixed Rates, terms and maturity - lower of actual and deemed rate at time of issuance (5.58% for Shareholders Notes)
A182: 2.For the third party embedded/actual debt with fixed rates the long-term rate is the actual rate (TD Loan, EDFIN until 2012)
A183: 3. New Third party debt (2012-2013) - The forecasted Rate is not yet available. The deemed long-term rate is used. (EDFIN and other new debt after 2012)
A184: 3. As per Board Report on Cost of Capital of December 20, 2006, the deemed short-term debt rate is used for the weighted Cost of Capital calculations.

Sheet App.2-P_Cost_Allocation
E1: File Number: | F1: ='LDC Info'!$E$18 -> EB-2012-0116
E2: Exhibit:
E3: Tab:
E4: Schedule:
E5: Page:
E7: Date: | F7: 2013-04-30
A9: Appendix 2-P
A10: Cost Allocation
A12: Please complete the following four tables.
A14: A) Allocated Costs
A16: Classes | B16: Costs Allocated from Previous Study | C16: % | D16: Costs Allocated in Test Year Study (Column 7A) | E16: %
A17: Residential | B17: 3749535 | C17: =IF(B$28=0,"",B17/B$28) -> 0.6114820232 | D17: 4353004 | E17: =IF(D$28=0,"",D17/D$28) -> 0.6235147493
A18: GS < 50 kW | B18: 998122 | C18: =IF(B$28=0,"",B18/B$28) -> 0.1627758269 | D18: 1242344 | E18: 0.1779506308
A19: GS > 50 kW (or 50 kW < GS < xxx kW, if applicable) | B19: 900448 | C19: 0.1468469463 | D19: 1181819 | E19: 0.1692811625
A20: GS > xxx kW, if applicable | C20: 0 | E20: 0
A21: Large User, if applicable | B21: 172308 | C21: 0.02810034963 | D21: 0 | E21: 0
A22: Street Lighting | B22: 289562 | C22: 0.0472223776 | D22: 199930 | E22: 0.02863753487
A23: Sentinel Lighting | C23: 0 | E23: 0
A24: Unmetered Scattered Load (USL) | B24: 21906 | C24: 0.003572476374 | D24: 4300 | E24: 0.0006159225725
A25: Other class, if applicable | C25: 0 | E25: 0
C26: 0 | E26: 0
A27: Embedded distributor class | C27: 0 | E27: 0
A28: Total | B28: =SUM(B17:B27) -> 6131881 | C28: =SUM(C17:C27) -> 1 | D28: =SUM(D17:D27) -> 6981397 | E28: =SUM(E17:E27) -> 1
A30: Notes
A32: 1 Customer Classification - If proposed rate classes differ from those in place in the previous Cost Allocation study, modify the rate classes to match the current application as closely as possible.
A35: 2 Host Distributors - Provide information on embedded distributor(s) as a separate class, if applicable. If embedded distributor(s) are billed as customers in a General Service class, include the allocated cost and revenue of the embedded distributor(s) in the applicable class. Also complete Appendix 2-Q.
A39: 3 Class Revenue Requirements - If using the Board-issued model, in column 7A enter the results from Worksheet O-1, Revenue Requirement (row 40 in the 2013 model). This excludes costs in deferral and variance accounts. Note to Embedded Distributor(s), it also does not include Account 4750 - Low Voltage (LV) Costs.
A43: B) Calculated Class Revenues
C45: Column 7B | D45: Column 7C | E45: Column 7D | F45: Column 7E
A46: Classes (same as previous table) | C46: Load Forecast (LF) X current approved rates | D46: L.F. X current approved rates X (1 + d) | E46: LF X proposed rates | F46: Miscellaneous Revenue
A48: =A17 -> Residential | C48: 3542885 | D48: 4135938 | E48: 4135938 | F48: 311298
A49: GS < 50 kW | C49: 903699 | D49: 1054972 | E49: 1069524 | F49: 105985
A50: GS > 50 kW (or 50 kW < GS < xxx kW, if applicable) | C50: 1045812 | D50: 1080787 | E50: 1080787 | F50: 32787
A51: GS > xxx kW, if applicable
A52: Large User, if applicable | C52: 0 | D52: 0 | E52: 0 | F52: 0
A53: Street Lighting | C53: 201955 | D53: 235761 | E53: 224661 | F53: 15257
A54: Sentinel Lighting
A55: Unmetered Scattered Load (USL) | C55: 7144 | D55: 8340 | E55: 4887 | F55: 273
A56: Other class, if applicable
A58: =A27 -> Embedded distributor class
A59: =A28 -> Total | C59: =SUM(C48:C58) -> 5701495 | D59: =SUM(D48:D58) -> 6515798 | E59: =SUM(E48:E58) -> 6515797 | F59: =SUM(F48:F58) -> 465600
A61: Notes:
A63: 1 Columns 7B to 7D - LF means Load Forecast of Annual Billing Quantities (i.e. customers or connections X 12, (kWh or kW, as applicable). Revenue Quantities should be net of Transfomrer Ownership Allowance. Exclude revenue from rate adders and rate riders.
A66: 2 Columns 7C and 7D - Column total in each column should equal the Base Revenue Requirement
A68: 3 Columns 7C - The Board cost allocation model calculates "1+d" in worksheet O-1, cell C21. "d" is defined as Revenue Deficiency/ Revenue at Current Rates.
A71: 4 Columns 7E - If using the Board-issued Cost Allocation model, enter Miscellaneous Revenue as it appears in Worksheet O-1, row 19.
A74: C) Rebalancing Revenue-to-Cost (R/C) Ratios
A76: Class | C76: Previously Approved Ratios | D76: Status Quo Ratios | E76: Proposed Ratios | F76: Policy Range
C77: Most Recent Year: | D77: (7C + 7E) / (7A) | E77: (7D + 7E) / (7A)
C78: 2009
C79: % | D79: % | E79: % | F79: %
A80: =A48 -> Residential | C80: 100 | D80: =IF(D17=0,"",(D48+F48)/D17*100) -> 102.1647579 | E80: =IF(D17=0,"",(E48+F48)/D17*100) -> 102.1647579 | F80: 85 - 115
A81: GS < 50 kW | C81: 100 | D81: =IF(D18=0,"",(D49+F49)/D18*100) -> 93.44891592 | E81: 94.62025011 | F81: 80 - 120
A82: GS > 50 kW (or 50 kW < GS < xxx kW, if applicable) | C82: 100 | D82: 94.22542707 | E82: 94.22542707 | F82: 80 - 120
A83: GS > xxx kW, if applicable | F83: 80 - 120
A84: Large User, if applicable | C84: 100 | F84: 85 - 115
A85: Street Lighting | C85: 100 | D85: 125.5529435 | E85: 120.0010004 | F85: 70 - 120
A86: Sentinel Lighting | F86: 80 - 120
A87: Unmetered Scattered Load (USL) | C87: 100 | D87: 200.3023256 | E87: 120 | F87: 80 - 120
A88: Other class, if applicable
A90: =A58 -> Embedded distributor class
A92: Notes
A94: 1 Previously Approved Revenue-to-Cost Ratios - For most applicants, Most Recent Year would be the third year of the IRM 3 period, e.g. if the applicant rebased in 2009 with further adjustments over 2 years, the Most recent year is 2011. For applicants that have had rates adjusted only under IRM 2, the Most Recent Year is 2006, and the applicant should enter the ratios from their Informational Filing.
A97: 2 Status Quo Ratios - The Board's updated Cost Allocation Model yields the Status Quo Ratios in Worksheet O-1. Status Quo means "Before Rebalancing".
A99: D) Proposed Revenue-to-Cost Ratios
A101: Class | C101: Proposed Revenue-to-Cost Ratios | F101: Policy Range
C102: 2013 | D102: 2014 | E102: 2015
C103: % | D103: % | E103: % | F103: %
A104: =A80 -> Residential | C104: =E80 -> 102.1647579 | F104: =F80 -> 85 - 115
A105: =A81 -> GS < 50 kW | C105: =E81 -> 94.62025011 | F105: =F81 -> 80 - 120
A106: GS > 50 kW (or 50 kW < GS < xxx kW, if applicable) | C106: 94.22542707 | F106: 80 - 120
A107: GS > xxx kW, if applicable | F107: 80 - 120
A108: Large User, if applicable | F108: 85 - 115
A109: Street Lighting | C109: 120.0010004 | F109: 70 - 120
A110: Sentinel Lighting | F110: 80 - 120
A111: Unmetered Scattered Load (USL) | C111: 120 | F111: 80 - 120
A112: Other class, if applicable | F112: =F88 -> 0
F113: =F89 -> 0
A114: Embedded distributor class
A116: Note
A117: 1 The applicant should complete Table D if it is applying for approval of a revenue to cost ratio in 2012 that is outside the Board’s policy range for any customer class. Table (d) will show the information that the distributor would likely enter in the IRM model) in 2013. In 2013 Table (d), enter the planned ratios for the classes that will be ‘Change’ and ‘No Change’ in 2013 (in the current Revenue Cost Ratio Adjustment Workform, Worksheet C1.1 ‘Decision – Cost Revenue Adjustment’, column d), and enter TBD for class(es) that will be entered as ‘Rebalance’.

Sheet App.2-Q_Cost of Serv. Emb. Dx
F1: File Number: | G1: ='LDC Info'!$E$18 -> EB-2012-0116
F2: Exhibit:
F3: Tab:
F4: Schedule:
F5: Page:
F7: Date:
A9: Appendix 2-Q
A10: Cost of Serving Embedded Distributor(s)
A12: To be completed by Host Distributors*
A13: (Not required if Host Distributor has an Embedded Distributor rate class, i.e. a separate row in Appendix 2-P.)
A17: Proposed Rate Class for Billing Embedded Distributor(s)
A19: Host's Distribution Facilities used by Embedded Distributor(s)
A21: (1) | B21: (2) | C21: (3) | D21: (4) | E21: (5) | F21: (6) = '(3) + (4)
A22: Asset Class | B22: Total OM&A costs asociated with asset class | C22: Original cost of asset class | D22: Accumulated amortization of asset class | E22: Annual amortization of asset class | F22: Net Book Value of asset class
A23: Totals for Host Distributor: | B23: ($) | C23: ($) | D23: ($) | E23: ($)
A24: Distribution Stations | F24: =C24+D24 -> 0
A25: Low Voltage Line | F25: 0
A26: LV Line category # 2 (if applcable) | F26: 0
A27: TS (owned by host) | F27: 0
A28: add rows if necessary... | F28: 0
F29: 0
F30: 0
A32: (1) | B32: (7) | C32: (8) | D32: (9) | E32: (10) | F32: (11)
A33: =A22 -> Asset Class | B33: Total line length or station capacity in asset class | C33: Line length or capacity required to provide LV service to Embedded Distributor(s) | D33: Annual total demand on station/line providing LV services (sum of 12 monthly peaks) | E33: Annual billed Embedded Distributor demand on station/line providing LV services | F33: Embedded Distributor(s)' Responsibility Share
A34: Embedded Distributor's share: | B34: kW or kVa; km | C34: kW or kVA; km | D34: kW or kVA | E34: kW or kVA | F34: percent
A35: Distribution Stations | F35: =IF(D35=0,0,(C35/B35)*(E35/D35)) -> 0
A36: Low Voltage Line | F36: =IF(D36=0,0,(C36/B36)*(E36/D36)) -> 0
A37: LV Line # 2 (if applicable) | F37: =IF(D37=0,0,(C37/B37)*(E37/D37)) -> 0
A38: TS (owned by host) | F38: =IF(D38=0,0,(C38/B38)*(E38/D38)) -> 0
A39: add rows if necessary | F39: =IF(D39=0,0,(C39/B39)*(E39/D39)) -> 0
A41: (1) | B41: (12) | C41: (12a) | D41: (13) | E41: (14) | F41: (15) | G41: (16)
A42: =A33 -> Asset Class | B42: Return on Assets used to Provide LV services | C42: Taxes/PILs | D42: Annual amortization on assets used to provide LV services | E42: OM&A costs with burden associated with assets used to provide LV services | F42: Total annual cost associated with assets used to provide LV services | G42: Monthly cost associated with the delivery of LV services
B43: ($) | C43: ($) | D43: ($) | E43: ($) | F43: ($) | G43: $/kW or $/kVA
A44: Distribution Stations | B44: =E$55*(F24+B24*E$60)*F35 -> 0 | C44: =(B44-(B$55*C$55*F35*(F24+B24*E58)+B$56*C$56*F35*(F24+B24*E$58)))*E$58/(1-E$58) -> 0 | D44: =E24*F35 -> 0 | E44: =B24*F35 -> 0 | F44: =SUM(B44:E44) -> 0 | G44: =IF(E35=0,0,(D44/E35)) -> 0
A45: Low Voltage Line | B45: =E$55*(F25+B25*E$60)*F36 -> 0 | C45: =(B45-(B$55*C$55*F36*(F25+B25*E59)+B$56*C$56*F36*(F25+B25*E59)))*E$58/(1-E$58) -> 0 | D45: =E25*F36 -> 0 | E45: =B25*F36 -> 0 | F45: =SUM(B45:E45) -> 0 | G45: =IF(E36=0,0,(D45/E36)) -> 0
A46: LV Line # 2 (if applicable) | B46: =E$55*(F26+B26*E$60)*F37 -> 0 | C46: =(B46-(B$55*C$55*F37*(F26+B26*E60)+B$56*C$56*F37*(F26+B26*E$60)))*E$58/(1-E$58) -> 0 | D46: =E26*F37 -> 0 | E46: =B26*F37 -> 0 | F46: =SUM(B46:E46) -> 0 | G46: =IF(E37=0,0,(D46/E37)) -> 0
A47: TS (owned by host) | B47: =E$55*(F27+B27*E$60)*F38 -> 0 | C47: =(B47-(B$55*C$55*F38*(F27+B27*E61)+B$56*C$56*F38*(F27+B27*E61)))*E$58/(1-E$58) -> 0 | D47: =E27*F38 -> 0 | E47: =B27*F38 -> 0 | F47: =SUM(B47:E47) -> 0 | G47: =IF(E38=0,0,(D47/E38)) -> 0
A48: add rows if necessary | B48: =E$55*(F28+B28*E$60)*F39 -> 0 | C48: =(B48-(B$55*C$55*F39*(F28+B28*I62)+B$56*C$56*F39*(F28+B28*I62)))*E$58/(1-E$58) -> 0 | D48: =E28*F39 -> 0 | E48: =B28*F39 -> 0 | F48: =SUM(B48:E48) -> 0 | G48: =IF(E39=0,0,(D48/E39)) -> 0
A50: Total | F50: =SUM(F44:F48) -> 0 | G50: =SUM(G44:G48) -> 0
A52: (17) | B52: (18) | C52: (19) | D52: (20) | E52: (21)
B53: Capital Structure | C53: Cost Rate
B54: (%) | C54: (%) | E54: (%)
A55: Long-Term Debt | D55: Weighted Average Cost of Capital | E55: =IF(B61=0%,0,SUMPRODUCT(B55:B59,C55:C59)/B61) -> 0
A56: Short-term Debt
A58: Common Equity | D58: Tax/PILs Rate
A59: Preferred Shares
D60: Working Capital Allowance Factor
A61: Total | B61: =SUM(B55:B59) -> 0

Sheet App.2-R_Loss Factors
G1: File Number: | H1: ='LDC Info'!$E$18 -> EB-2012-0116
G2: Exhibit:
G3: Tab:
G4: Schedule:
G5: Page:
G7: Date:
A9: Appendix 2-R
A10: Loss Factors
C14: Historical Years | H14: 5-Year Average
C15: =IF(ISBLANK('LDC Info'!E26-5), "Year 5", 'LDC Info'!E26-5) -> 2007 | D15: =IF(ISBLANK('LDC Info'!E26-4), "Year 5", 'LDC Info'!E26-4) -> 2008 | E15: =IF(ISBLANK('LDC Info'!E26-3), "Year 5", 'LDC Info'!E26-3) -> 2009 | F15: =IF(ISBLANK('LDC Info'!E26-2), "Year 5", 'LDC Info'!E26-2) -> 2010 | G15: =IF(ISBLANK('LDC Info'!E26-1), "Year 5", 'LDC Info'!E26-1) -> 2011
B16: Losses Within Distributor's System
A17: A(1) | B17: "Wholesale" kWh delivered to distributor (higher value) | H17: =IF(SUM(C17:G17)=0,0,AVERAGE(C17:G17)) -> 0
A18: A(2) | B18: "Wholesale" kWh delivered to distributor (lower value) | C18: 354105717 | D18: 344975881 | E18: 328430865 | F18: 334443325 | G18: 331863453 | H18: =IF(SUM(C18:G18)=0,0,AVERAGE(C18:G18)) -> 338763848.2
A19: B | B19: Portion of "Wholesale" kWh delivered to distributor for its Large Use Customer(s) | H19: =IF(SUM(C19:G19)=0,0,AVERAGE(C19:G19)) -> 0
A20: C | B20: Net "Wholesale" kWh delivered to distributor = A(2) - B | C20: =C18-C19 -> 354105717 | D20: 344975881 | E20: 328430865 | F20: 334443325 | G20: 331863453 | H20: 338763848.2
A21: D | B21: "Retail" kWh delivered by distributor | C21: 342066123 | D21: 333246701 | E21: 316968628 | F21: 322804697 | G21: 320281418 | H21: =IF(SUM(C21:G21)=0,0,AVERAGE(C21:G21)) -> 327073513.4
A22: E | B22: Portion of "Retail" kWh delivered by distributor to its Large Use Customer(s) | H22: =IF(SUM(C22:G22)=0,0,AVERAGE(C22:G22)) -> 0
A23: F | B23: Net "Retail" kWh delivered by distributor = D - E | C23: =C21-C22 -> 342066123 | D23: 333246701 | E23: 316968628 | F23: 322804697 | G23: 320281418 | H23: 327073513.4
A24: G | B24: Loss Factor in Distributor's system = C / F | C24: =IF(C23=0,"",C20/C23) -> 1.035196686 | D24: 1.035196688 | E24: 1.036162055 | F24: 1.036054705 | G24: 1.036162057 | H24: 1.035742224
B25: Losses Upstream of Distributor's System
A26: H | B26: Supply Facilities Loss Factor | C26: 1.034 | D26: 1.034 | E26: 1.034 | F26: 1.034 | G26: 1.034 | H26: =IF(SUM(C26:G26)=0,0,AVERAGE(C26:G26)) -> 1.034
B27: Total Losses
A28: I | B28: Total Loss Factor = G x H | C28: =IF(C24="","",C24*C26) -> 1.070393374 | D28: 1.070393375 | E28: 1.071391565 | F28: 1.071280565 | G28: 1.071391567 | H28: 1.07095746
A30: Notes
A33: A(1) | B33: If directly connected to the IESO-controlled grid, kWh pertains to the virtual meter on the primary or high voltage side of the transformer at the interface with the transmission grid. This corresponds to the "With Losses" kWh value provided by the IESO's MV-WEB. It is the higher of the two values provided by MV-WEB.
B37: If fully embedded within a host distributor, kWh pertains to the virtual meter on the primary or high voltage side of the transformer, at the interface between the host distributor and the transmission grid. For example, if the host distributor is Hydro One Networks Inc., kWh from the Hydro One Networks' invoice corresponding to "Total kWh w Losses" should be reported. This corresponds to the higher of the two kWh values provided in Hydro One Networks' invoice.
B42: If partially embedded, kWh pertains to the sum of the above.
A44: A(2) | B44: If directly connected to the IESO-controlled grid, kWh pertains to a metering installation on the secondary or low voltage side of the transformer at the interface with the transmission grid. This corresponds to the "Without Losses" kWh value provided by the IESO's MV-WEB. It is the lower of the two kWh values provided by MV-WEB.
B48: If fully embedded with the host distributor, kWh pertains to an actual or virtual meter at the interface between the embedded distributor and the host distributor. For example, if the host distributor is Hydro One Networks Inc., kWh from the Hydro One Networks' invoice corresponding to "Total kWh" should be reported. This corresponds to the lower of the two kWh values provided in Hydro One Networks' invoice.
B53: If partially embedded, kWh pertains to the sum of the above.
B55: Additionally, kWh pertaining to distributed generation directly connected to the distributor's own distribution network should be included in A(2).
A58: B | B58: If a Large Use Customer is metered on the secondary or low voltage side of the transformer, the default loss is 1% (i.e., B = 1.01 X E).
A61: D | B61: kWh corresponding to D should equal metered or estimated kWh at the customer’s delivery point.
A64: G and I | B64: These loss factors pertain to secondary-metered customers with demand less than 5,000 kW.
A66: H | B66: If directly connected to the IESO-controlled grid, SFLF = 1.0045.
B68: If fully embedded within a host distributor, SFLF = loss factor re losses in transformer at grid interface X loss factor re losses in host distributor's system. If the host distributor is Hydro One Networks Inc., SFLF = 1.0060 X 1.0278 = 1.0340. If partially embedded, SFLF should be calculated as the weighted average of above.
B72: Distributors that wish to propose a different SFLF should provide appropriate justification for any such proposal including supporting
B73: calculations and any other relevant material.

Sheet App.2-S_Stranded Meters
G1: File Number: | H1: ='LDC Info'!$E$18 -> EB-2012-0116
G2: Exhibit:
G3: Tab:
G4: Schedule:
G5: Page:
G7: Date:
A9: Appendix 2-S
A10: Stranded Meter Treatment
A12: Year | B12: Notes | C12: Gross Asset Value | D12: Accumulated Amortization | E12: Contributed Capital (Net of Amortization) | F12: Net Asset | G12: Proceeds on Disposition | H12: Residual Net Book Value
C13: (A) | D13: (B) | E13: (C) | F13: (D ) = (A) - (B) - (C) | G13: (E) | H13: (F) = (D) - (E)
A14: 2006 | F14: =C14-D14-E14 -> 0 | H14: =F14-G14 -> 0
A15: 2007 | C15: 1377576 | D15: 750564 | F15: 627012 | H15: 627012
A16: 2008 | C16: 1478408 | D16: 805178 | F16: 673230 | H16: 673230
A17: 2009 | C17: 1565562 | D17: 863275 | F17: 702287 | H17: 702287
A18: 2010 | C18: 1529891 | D18: 909545 | F18: 620346 | H18: 620346
A19: 2011 | C19: 1529891 | D19: 970627 | F19: 559264 | H19: 559264
A20: 2012 | B20: (1) | C20: 1529891 | D20: 1025325 | F20: 504566 | H20: 504566
A22: Notes:
A24: (1) | B24: For 2012, please indicate whether the amounts provided are on a forecast or actual basis.
A26: Some distributors have transferred the cost of stranded meters from Account 1860 - Meters to "Sub-account Stranded Meter Costs of Account 1555", while in some cases distributors have left these costs in Account 1860. Depending on which treatment the applicant has chosen. please provide the information under either of the two scenarios (A and B below), as applicable.
A31: Scenario A: If the stranded meter costs were transferred to "Sub-account Stranded Meter Costs" of Account 1555, the above table should be completed and the following information should be provided.
A34: 1 | B34: A description of the accounting treatment followed by the applicant on stranded meter costs for financial accounting and reporting purposes.
A37: 2 | B37: The amount of the pooled residual net book value of the removed from service stranded meters, less any contributed capital (net of accumulated amortization), and less any net proceeds from sales, which were transferred to this sub-account as of December 31, 2010.
A41: 3 | B41: A statement as to whether or not, since transferring the removed stranded meter costs to the sub-account, the recording of depreciation expenses was continued in order to reduce the net book value through accumulated depreciation. If so, the total depreciation expense amount for the period from the time the costs for the stranded meters were transferred to the sub-account to December 31, 2010 should be provided.
B46: If no depreciation expenses were recorded to reduce the net book value of stranded meter costs through accumulated depreciation, the total depreciation expense amount that would have been applicable from the time that the stranded meter costs were transferred to the sub-account of Account 1555 to December 31, 2010 should be provided. In addition, the following information should be provided:
B51: a) | C51: Whether or not carrying charges were recorded for the stranded meter cost balances in the sub-account, and if so, the total carrying charges recorded to December 31, 2010.
B54: b) | C54: The estimated amount of the pooled residual net book value of the removed from service meters, less any net proceeds from sales and contributed capital, at the time when the smart meters will have been fully deployed (e.g., as of December 31, 2010). If the smart meters have been fully deployed, the actual amount should be provided.
B59: c) | C59: A description as to how the applicant intends to recover in rates the remaining costs for stranded meters, including the proposed accounting treatment, the proposed disposition period, and the associated bill impacts.
A63: Scenario B: If the stranded meter costs remained recorded in Account 1860, the above table should be completed and the following information should be provided:
A66: 1 | B66: A description of the accounting treatment followed by the applicant on stranded meter costs for financial accounting and reporting purposes.
A69: 2 | B69: The amount of the pooled residual net book value of the removed from service stranded meters, less any contributed capital (net of accumulated amortization), and less any net proceeds from sales, as of December 31, 2010.
A73: 3 | B73: A statement as to whether or not the recording of depreciation expenses continued in order to reduce the net book value through accumulated depreciation. If so, provision of the total (cumulative) depreciation expense for the period from the time that the meters became stranded to December 31, 2010.
A77: 4 | B77: If no depreciation expenses were recorded to reduce the net book value of stranded meters through accumulated depreciation, the total (cumulative) depreciation expense amount that would have been applicable for the period from the time that the meters became stranded to December 31, 2010.
A81: 5 | B81: The estimated amount of the pooled residual net book value of the removed from service meters, less any net proceeds from sales and contributed capital, at the time when smart meters will have been fully deployed. If the smart meters have been fully deployed, please provide the actual amount.
A85: 6 | B85: A description as to how the applicant intends to recover in rates the costs for stranded meters, including the proposed accounting treatment, the proposed disposition period and the associated bill impacts.
A88: Distributors should also provide the Net Book Value per class of meter as of December 31, 2010 as well as the number of meters that were removed / stranded. In preparing this information, distributors should review the Board's letter of January 16, 2007 Stranded Meter Costs Related to the Installation of Smart Meters which stated that records were to be kept of the type and number of each meter to support the stranded meter costs.

Sheet App.2-T_1592_Tax_Variance
C1: File Number: | E1: ='LDC Info'!$E$18 -> EB-2012-0116
C2: Exhibit:
C3: Tab:
C4: Schedule:
C5: Page:
C7: Date: | E7: 2013-04-30
A9: Appendix 2-T
A10: Deferred PILs Account 1592 Balances
A12: The following table should be completed based on the information requested below, in accordance with the notes following the table. An explanation should be provided for any blank entries.
A14: Tax Item | E14: Principal as of
E15: December 31,
E16: 2011
A17: Large Corporation Tax grossed-up proxy from 2006 EDR application PILs model for the period from May 1, 2006 to April 30, 2007
A18: Large Corporation Tax grossed-up proxy from 2006 EDR application PILs model for the period from January 1, 2006 to April 30, 2006 (4/12ths of the approved grossed-up proxy), if not recorded in PILs account 1562
A19: Ontario Capital Tax rate decrease and increase in capital deduction for 2007
A20: Ontario Capital Tax rate decrease and increase in capital deduction for 2008
A21: Ontario Capital Tax rate decrease and increase in capital deduction for 2009
A22: Ontario Capital Tax rate decrease and increase in capital deduction for 2010
A23: Capital Cost Allowance class changes from 2006 EDR application for 2006
A24: Capital Cost Allowance class changes from 2006 EDR application for 2007
A25: Capital Cost Allowance class changes from 2006 EDR application for 2008
A26: Capital Cost Allowance class changes from 2006 EDR application for 2009
A27: Capital Cost Allowance class changes from 2006 EDR application for 2010
A28: Capital Cost Allowance class changes from 2006 EDR application for 2011
A29: Capital Cost Allowance class changes from any prior application not recorded above. Please provide details and explanation separately.
A30: PILs and Tax Variances for 2006 and Subsequent Years, Sub-account HST / OVAT Input Tax Credits (ITCs) | E30: -58000
A31: PILs and Tax Variances for 2006 and Subsequent Years, Sub-account HST / OVAT Input Tax Credits (ITCs) - contra | E31: 58000
A32: Insert description of additional item(s) and new rows if needed.
A33: Insert description of additional item(s) and new rows if needed.
A34: Total | E34: =SUM(E17:E33) -> 0
A36: Notes:
A38: 1 | B38: Revise the deferral and variance account continuity schedule to include account 1592 as a group 2 account and enter all relevant information for transactions, adjustments, etc., for all relevant years.
A41: 2 | B41: Describe each type of tax item that has been recorded in account 1592.
A43: 3 | B43: Provide the calculations that show how each item was determined and provide any pertinent supporting evidence and documentation.
A46: 4 | B46: Please state whether or not the applicant followed the guidance provided in the FAQ of July 2007. If not, please provide an explanation.
A49: 5 | B49: Identify the account balance as of December 31, 2011 as per the 2011 Audited Financial Statements. Identify the account balance as of December 31, 2011 as per the April 2012 2.1.7 RRR filing to the Board. Provide a reconciliation if the balances provided are not identical to each other and to the total shown on the continuity schedule.
A54: 6 | B54: Complete the above table based on the answers to the previous. Add rows as required to complete the analysis in an informative manner. Please provide the completed table as a working Excel spreadsheet.

Sheet App.2-U_IFRS Transition Costs
J1: File Number: | K1: ='LDC Info'!$E$18 -> EB-2012-0116
J2: Exhibit:
J3: Tab:
J4: Schedule:
J5: Page:
J7: Date:
A9: Appendix 2-U
A10: One-Time Incremental IFRS Transition Costs
A12: The following table should be completed based on the information requested below. An explanation should be provided for any blank entries. The entries should include one-time incremental IFRS transition costs that are currently included in Account 1508, Other Regulatory Assets, sub-account Deferred IFRS Transition Costs Account, or Account 1508, Other Regulatory Assets, sub-account IFRS Transition Costs Variance Account.
A14: Nature of One-Time Incremental IFRS Transition Costs 1 | E14: Audited Actual | F14: Audited Actual | G14: Audited Actual | H14: Audited Carrying | I14: Total Audited | J14: RRR 2.1.7 | K14: Variance 2 | L14: Reasons why the costs recorded meet the criteria of one-time IFRS administrative incremental costs
E15: Costs Incurred | F15: Costs Incurred | G15: Costs Incurred | H15: Charges | I15: Actual Costs | J15: Balance
E16: 2009 | F16: 2010 | G16: 2011 | H16: to Dec 31, 2011 | I16: to Dec 31, 2011 | J16: 2011-12-31
A17: professional accounting fees | F17: 33585 | G17: 56566 | I17: 90151 | L17: Fees associated with the preparation of position papers and PP&E re-valuation for implementing
A18: professional legal fees | G18: 0 | I18: 0
A19: salaries, wages and benefits of staff added to support the transition to IFRS | G19: 20018 | I19: 20018 | L19: Incremental staff support in implementing the various changes required to apply IFRS rules.
A20: associated staff training and development costs | G20: 2800 | I20: 2800 | L20: Training for IFRS implementation
A21: costs related to system upgrades, or replacements or changes where IFRS was the major reason for conversion | G21: 278 | I21: 278 | L21: Project accounting update for IFRS needs.
A22: Carrying Charge Interest | H22: 1223 | I22: 1223 | L22: CC interest up to 2011. CC forecast through 2013 is $2,267
I23: 0
I24: 0
I25: 0
I26: 0
I27: 0
A28: Carrying charges estimated to August 31, 2013 | H28: 2775 | I28: 2775
A29: Insert description of additional item(s) and new rows if needed. | I29: 0
A30: Total | E30: 0 | F30: 33585 | G30: 79662 | H30: 3998 | I30: 117245 | K30: 117245
A33: Note:
A34: 1 | B34: The Deferred IFRS Transition Costs Account and the IFRS Transition Costs Variance Account are exclusively for necessary, incremental transition costs and shall not include ongoing IFRS compliance costs or impacts arising from adopting accounting policy changes that reflect changes in the timing of the recognition of income. The incremental costs in these accounts shall not include costs related to system upgrades, or replacements or changes where IFRS was not the major reason for conversion. In addition, incremental IFRS costs shall not include capital assets or expenditures.
A36: 2 | B36: Applicants are to provide an explanation of material variances in evidence

Sheet App.2-V_Rev_Reconciliation
O1: File Number: | P1: ='LDC Info'!$E$18 -> EB-2012-0116
O2: Exhibit:
O3: Tab:
O4: Schedule:
O5: Page:
O7: Date:
A9: Appendix 2-V
A10: Revenue Reconciliation
A12: Rate Class | B12: Customers/ Connections | C12: Number of Customers/Connections | F12: Test Year Consumption | H12: Proposed Rates | K12: Revenues at Proposed Rates | M12: Class Specific Revenue Requirement | N12: Transformer Allowance Credit | O12: Total | P12: Difference
C13: Start of Test Year | D13: End of Test Year | E13: Average | F13: kWh | G13: kW | H13: Monthly Service Charge | I13: Volumetric
I14: kWh | J14: kW
A16: Residential | B16: Customers | C16: 14082 | D16: 14383 | E16: =IF(SUM(C16:D16)=0,0,AVERAGE(C16:D16)) -> 14232.5 | F16: 117986753 | H16: 10.16 | I16: 0.022 | K16: =H16*E16*12+I16*F16+J16*G16 -> 4330934.966 | M16: 4341427 | O16: =SUM(M16:N16) -> 4341427 | P16: =O16-K16 -> 10492.034
A17: GS < 50 kW | B17: Customers | C17: 1705 | D17: 1729 | E17: 1717 | F17: 47186130 | H17: 20.3 | I17: 0.0153 | K17: 1140208.989 | M17: 1139253 | O17: 1139253 | P17: -955.989
A18: GS > 50 to 4,999 kW | B18: Customers | C18: 114 | D18: 114 | E18: 114 | G18: 337058 | H18: 114.02 | J18: 3.657 | K18: 1388600.466 | M18: 1268587 | N18: 120000 | O18: 1388587 | P18: -13.466
A19: Large Use | E19: 0 | K19: 0 | O19: 0 | P19: 0
A20: Streetlighting | B20: Connections | C20: 3026 | D20: 3063 | E20: 3044.5 | G20: 6228 | H20: 3.54 | J20: 15.7352 | K20: 227329.1856 | M20: 227343 | O20: 227343 | P20: 13.8144
A21: Sentinel Lighting | E21: 0 | K21: 0 | O21: 0 | P21: 0
A22: Unmetered Scattered Load | B22: Customers | C22: 30 | D22: 30 | E22: 30 | F22: 403608 | H22: 0 | I22: 0.0136 | K22: 5489.0688 | M22: 5484 | O22: 5484 | P22: -5.0688
A23: Standby Power | E23: 0 | K23: 0 | O23: 0 | P23: 0
A24: Embedded Distributor Class | E24: 0 | K24: 0 | O24: 0 | P24: 0
A25: etc. | E25: 0 | K25: 0 | O25: 0 | P25: 0
E26: 0 | K26: 0 | O26: 0 | P26: 0
E27: 0 | K27: 0 | O27: 0 | P27: 0
E28: 0 | K28: 0 | O28: 0 | P28: 0
A30: Total | K30: =SUM(K16:K28) -> 7092562.675 | M30: =SUM(M16:M28) -> 6982094 | N30: =SUM(N16:N28) -> 120000 | O30: =M30+N30 -> 7102094 | P30: =O30-K30 -> 9531.3246
A32: Note
A34: 1 The class specific revenue requirements in column N must be the amounts used in the final rate design process. The total of column N should equate to the proposed base revenue requirement

Sheet App.2-W_Bill Impact_Residential
N1: File Number: | O1: ='LDC Info'!$E$18 -> EB-2012-0116 | T1: 1
N2: Exhibit:
N3: Tab:
N4: Schedule:
N5: Page:
N7: Date: | O7: 2013-04-30
B10: Appendix 2-W
B11: Bill Impacts
B14: Customer Class: | D14: Residential
D16: Consumption | F16: 800 | G16: kWh
F18: Current Board-Approved | J18: Proposed | N18: Impact
D19: Charge Unit | F19: Rate | G19: Volume | H19: Charge | J19: Rate | K19: Volume | L19: Charge | N19: $ Change | O19: % Change
F20: ($) | H20: ($) | J20: ($) | L20: ($)
B21: Monthly Service Charge | D21: Monthly | F21: 9 | G21: 1 | H21: =G21*F21 -> 9 | J21: 10.16 | K21: 1 | L21: =K21*J21 -> 10.16 | N21: =L21-H21 -> 1.16 | O21: =IF((H21)=0,"",(N21/H21)) -> 0.1288888889
B22: Stranded Meter Rate Adder | D22: Monthly | G22: 1 | H22: =G22*F22 -> 0 | J22: 1.07 | K22: 1 | L22: =K22*J22 -> 1.07 | N22: =L22-H22 -> 1.07 | O22: =IF((H22)=0,"",(N22/H22)) -> 
G23: 1 | H23: 0 | K23: 1 | L23: =K23*J23 -> 0 | N23: =L23-H23 -> 0 | O23: =IF((H23)=0,"",(N23/H23)) -> 
G24: 1 | H24: 0 | K24: 1 | L24: 0 | N24: 0
G25: 1 | H25: 0 | K25: 1 | L25: 0 | N25: 0
G26: 1 | H26: 0 | K26: 1 | L26: 0 | N26: 0
B27: Distribution Volumetric Rate | D27: per kWh | F27: 0.017 | G27: =$F$16 -> 800 | H27: 13.6 | J27: 0.02034729838 | K27: =$F$16 -> 800 | L27: 16.2778387 | N27: 2.677838703 | O27: 0.1968999046
B28: Smart Meter Disposition Rider | D28: Monthly | F28: 3.59 | G28: 1 | H28: 3.59 | K28: 1 | L28: 0 | N28: -3.59 | O28: -1
B29: LRAM & SSM Rate Rider | D29: per kWh | G29: 800 | H29: 0 | K29: =$F$16 -> 800 | L29: 0 | N29: 0
D30: Monthly | G30: 800 | H30: =G30*F30 -> 0 | K30: 800 | L30: =K30*J30 -> 0 | N30: =L30-H30 -> 0 | O30: =IF((H30)=0,"",(N30/H30)) -> 
G31: 800 | H31: =G31*F31 -> 0 | K31: 800 | L31: =K31*J31 -> 0 | N31: =L31-H31 -> 0 | O31: =IF((H31)=0,"",(N31/H31)) -> 
G32: 800 | H32: =G32*F32 -> 0 | K32: 800 | L32: =K32*J32 -> 0 | N32: =L32-H32 -> 0 | O32: =IF((H32)=0,"",(N32/H32)) -> 
G33: 800 | H33: 0 | K33: 800 | L33: 0 | N33: 0
G34: 800 | H34: 0 | K34: 800 | L34: 0 | N34: 0
G35: 800 | H35: 0 | K35: 800 | L35: 0 | N35: 0
G36: 800 | H36: 0 | K36: 800 | L36: 0 | N36: 0
B37: Sub-Total A | H37: =SUM(H21:H36) -> 26.19 | L37: =SUM(L21:L36) -> 27.5078387 | N37: 1.317838703 | O37: 0.05031839263
B38: Deferral/Variance Account Disposition Rate Rider | D38: per kWh | F38: -0.0058 | G38: =$F$16 -> 800 | H38: =G38*F38 -> -4.64 | J38: -0.005734523562 | K38: =$F$16 -> 800 | L38: =K38*J38 -> -4.58761885 | N38: =L38-H38 -> 0.05238115045 | O38: =IF((H38)=0,"",(N38/H38)) -> -0.01128904105
B39: Stranded Meter Rate Rider | D39: Monthly | G39: 1 | H39: 0 | K39: 1 | L39: 0 | N39: 0 | O39: =IF((H39)=0,"",(N39/H39)) -> 
B40: PILs 1562 Disposition Rate Rider | D40: per kWh | G40: =$F$16 -> 800 | H40: 0 | J40: =+F40 -> 0 | K40: =$F$16 -> 800 | L40: 0 | N40: 0 | O40: =IF((H40)=0,"",(N40/H40)) -> 
B41: Incremental Capital Rate Rider | D41: per kWh | G41: =$F$16 -> 800 | H41: 0 | K41: =$F$16 -> 800 | L41: 0 | N41: 0 | O41: =IF((H41)=0,"",(N41/H41)) -> 
B42: Low Voltage Service Charge | D42: per kWh | F42: 0.0012 | G42: =$F$16 -> 800 | H42: 0.96 | J42: 0.0017 | K42: =$F$16 -> 800 | L42: 1.36 | N42: 0.4 | O42: =IF((H42)=0,"",(N42/H42)) -> 0.4166666667
B43: Smart Meter Entity Charge | D43: Monthly | F43: 0.79 | G43: 1 | H43: 0.79 | J43: 0.79 | K43: 1 | L43: 0.79 | N43: 0
B44: Sub-Total B - Distribution (includes Sub-Total A) | H44: =SUM(H38:H43)+H37 -> 23.3 | L44: =SUM(L38:L43)+L37 -> 25.07021985 | N44: 1.770219854 | O44: =IF((H44)=0,"",(N44/H44)) -> 0.07597510101
B45: RTSR - Network | D45: per kWh | F45: 0.0055 | G45: =F16*(1+F71) -> 860 | H45: =G45*F45 -> 4.73 | J45: 0.006662196366 | K45: =F16*(1+J71) -> 856.8 | L45: =K45*J45 -> 5.708169847 | N45: 0.9781698465 | O45: 0.2068012361
B46: RTSR - Line and Transformation Connection | D46: per kWh | F46: 0.0033 | G46: =G45 -> 860 | H46: =G46*F46 -> 2.838 | J46: 0.003711349513 | K46: =K45 -> 856.8 | L46: =K46*J46 -> 3.179884263 | N46: 0.3418842631 | O46: 0.1204666184
B47: Sub-Total C - Delivery (including Sub-Total B) | H47: =SUM(H44:H46) -> 30.868 | L47: =SUM(L44:L46) -> 33.95827396 | N47: 3.090273963 | O47: 0.1001125425
B48: Wholesale Market Service Charge (WMSC) | F48: 0.0044 | G48: =G46 -> 860 | H48: =G48*F48 -> 3.784 | J48: 0.0044 | K48: =K46 -> 856.8 | L48: =K48*J48 -> 3.76992 | N48: -0.01408 | O48: -0.003720930233
B49: Rural and Remote Rate Protection (RRRP) | F49: 0.0012 | G49: =G46 -> 860 | H49: 1.032 | J49: 0.0012 | K49: =K46 -> 856.8 | L49: 1.02816 | N49: -0.00384 | O49: -0.003720930233
B50: Standard Supply Service Charge | F50: 0.25 | G50: 1 | H50: 0.25 | J50: 0.25 | K50: 1 | L50: 0.25 | N50: 0 | O50: 0
B51: Debt Retirement Charge (DRC) | F51: 0.007 | G51: =F16 -> 800 | H51: 5.6 | J51: 0.007 | K51: =+F16 -> 800 | L51: 5.6 | N51: 0 | O51: 0
B52: Energy - RPP - Tier 1 | F52: 0.075 | G52: 600 | H52: =G52*F52 -> 45 | J52: =+F52 -> 0.075 | K52: 600 | L52: =K52*J52 -> 45 | N52: 0 | O52: 0
B53: Energy - RPP - Tier 2 | F53: 0.088 | G53: =+G48-G52 -> 260 | H53: =G53*F53 -> 22.88 | J53: =+F53 -> 0.088 | K53: =+K48-K52 -> 256.8 | L53: =K53*J53 -> 22.5984 | N53: -0.2816 | O53: -0.01230769231
B54: TOU - Off Peak | F54: 0.065 | G54: =0.64*$F$16*(1+$F$71) -> 550.4 | H54: 35.776 | J54: =+F54 -> 0.065 | K54: =0.64*$F$16*(1+$J$71) -> 548.352 | L54: 35.64288 | N54: -0.13312 | O54: -0.003720930233
B55: TOU - Mid Peak | F55: 0.1 | G55: =0.18*$F$16*(1+$F$71) -> 154.8 | H55: 15.48 | J55: =+F55 -> 0.1 | K55: =0.18*$F$16*(1+$J$71) -> 154.224 | L55: 15.4224 | N55: -0.0576 | O55: -0.003720930233
B56: TOU - On Peak | F56: 0.117 | G56: =0.18*$F$16*(1+$F$71) -> 154.8 | H56: 18.1116 | J56: =+F56 -> 0.117 | K56: =0.18*$F$16*(1+$J$71) -> 154.224 | L56: 18.044208 | N56: -0.067392 | O56: -0.003720930233
B58: Total Bill on RPP (before Taxes) | H58: =SUM(H47:H53) -> 109.414 | L58: =SUM(L47:L53) -> 112.204754 | N58: 2.790753963 | O58: 0.02550636996
B59: HST | F59: 0.13 | H59: =H58*F59 -> 14.22382 | J59: 0.13 | L59: =L58*J59 -> 14.58661802 | N59: =L59-H59 -> 0.3627980152 | O59: =IF((H59)=0,"",(N59/H59)) -> 0.02550636996
B60: Total Bill (including HST) | H60: =H58+H59 -> 123.63782 | L60: =L58+L59 -> 126.791372 | N60: =L60-H60 -> 3.153551978 | O60: =IF((H60)=0,"",(N60/H60)) -> 0.02550636996
B61: Ontario Clean Energy Benefit 1 | H61: =ROUND(-H60*10%,2) -> -12.36 | L61: =ROUND(-L60*10%,2) -> -12.68 | N61: =L61-H61 -> -0.32 | O61: =IF((H61)=0,"",(N61/H61)) -> 0.02588996764
B62: Total Bill on RPP (including OCEB) | H62: =SUM(H60:H61) -> 111.27782 | L62: =SUM(L60:L61) -> 114.111372 | N62: =L62-H62 -> 2.833551978 | O62: =IF((H62)=0,"",(N62/H62)) -> 0.02546376249
B64: Total Bill on TOU (before Taxes) | H64: =SUM(H47:H51,H54:H56) -> 110.9016 | L64: =SUM(L47:L51,L54:L56) -> 113.715842 | N64: =L64-H64 -> 2.814241963 | O64: =IF((H64)=0,"",(N64/H64)) -> 0.0253760267
B65: HST | F65: 0.13 | H65: =H64*F65 -> 14.417208 | J65: 0.13 | L65: =L64*J65 -> 14.78305946 | N65: 0.3658514552 | O65: 0.0253760267
B66: Total Bill (including HST) | H66: =H64+H65 -> 125.318808 | L66: =L64+L65 -> 128.4989014 | N66: 3.180093418 | O66: 0.0253760267
B67: Ontario Clean Energy Benefit 1 | H67: =ROUND(-H66*10%,2) -> -12.53 | L67: =ROUND(-L66*10%,2) -> -12.85 | N67: -0.32 | O67: 0.0255387071
B68: Total Bill on TOU (including OCEB) | H68: =H66+H67 -> 112.788808 | L68: =L66+L67 -> 115.6489014 | N68: 2.860093418 | O68: 0.02535795412
B71: Loss Factor (%) | F71: 0.075 | J71: 0.071
A73: 1 Applicable to eligible customers only. Refer to the Ontario Clean Energy Benefit Act, 2010.
A75: Note that the "Charge $" columns provide breakdowns of the amounts that each bill component contributes to the total monthly bill at the referenced
A76: consumption level at existing and proposed rates.
A78: Applicants must provide bill impacts for residential at 800 kWh and GS<50kW at 2000 kWh. In addition, their filing should cover the range that is relevant
A79: to their service territory, class by class. A general guideline of consumption levels follows:
A81: Residential (kWh) - 100, 250, 500, 800, 1000, 1500, 2000
A82: GS<50kW (kWh) - 1000, 2000, 5000, 10000, 15000
A83: GS>50kW (kW) - 60, 100, 500, 1000
A84: Large User - range appropriate for utility
A85: Lighting Classes and USL - 150 kWh and 1 kW, range appropriate for utility.

Sheet App.2-W_Bill Impact_GS<50kW
O1: File Number: | P1: ='LDC Info'!$E$18 -> EB-2012-0116
O2: Exhibit:
O3: Tab:
O4: Schedule:
O5: Page:
O7: Date: | P7: 2013-04-30
C10: Appendix 2-W
C11: Bill Impacts
B13: Customer Class: | D13: General Service Less Than 50KW
D15: Consumption | F15: 2000 | G15: kWh
F17: Current Board-Approved | J17: Proposed | N17: Impact
D18: Charge Unit | F18: Rate | G18: Volume | H18: Charge | J18: Rate | K18: Volume | L18: Charge | N18: $ Change | O18: % Change
F19: ($) | H19: ($) | J19: ($) | L19: ($)
B20: Monthly Service Charge | D20: Monthly | F20: 17.98 | G20: 1 | H20: =G20*F20 -> 17.98 | J20: 20.3 | K20: 1 | L20: =K20*J20 -> 20.3 | N20: =L20-H20 -> 2.32 | O20: =IF((H20)=0,"",(N20/H20)) -> 0.1290322581
B21: Stranded Meter Rate Adder | D21: Monthly | G21: 1 | H21: =G21*F21 -> 0 | J21: 2.95 | K21: 1 | L21: =K21*J21 -> 2.95 | N21: =L21-H21 -> 2.95 | O21: =IF((H21)=0,"",(N21/H21)) -> 
G22: 1 | H22: 0 | K22: 1 | L22: =K22*J22 -> 0 | N22: =L22-H22 -> 0 | O22: =IF((H22)=0,"",(N22/H22)) -> 
G23: 1 | H23: 0 | K23: 1 | L23: 0 | N23: 0
G24: 1 | H24: 0 | K24: 1 | L24: 0 | N24: 0
G25: 1 | H25: 0 | K25: 1 | L25: 0 | N25: 0
B26: Distribution Volumetric Rate | D26: per kWh | F26: 0.0113 | G26: =+F15 -> 2000 | H26: 22.6 | J26: 0.0138 | K26: =+F15 -> 2000 | L26: 27.6 | N26: 5 | O26: 0.2212389381
B27: Smart Meter Disposition Rider | D27: Monthly | F27: 7.29 | G27: 1 | H27: 7.29 | K27: 1 | L27: 0 | N27: -7.29 | O27: -1
B28: LRAM & SSM Rate Rider | D28: per kWh | G28: =+F15 -> 2000 | H28: 0 | K28: =+F15 -> 2000 | L28: 0 | N28: 0
D29: Monthly | H29: 0 | L29: 0 | N29: =L29-H29 -> 0 | O29: =IF((H29)=0,"",(N29/H29)) -> 
H30: 0 | L30: 0 | N30: =L30-H30 -> 0 | O30: =IF((H30)=0,"",(N30/H30)) -> 
H31: 0 | L31: 0 | N31: =L31-H31 -> 0 | O31: =IF((H31)=0,"",(N31/H31)) -> 
H32: 0 | L32: 0 | N32: 0
H33: 0 | L33: 0 | N33: 0
H34: 0 | L34: 0 | N34: 0
H35: 0 | L35: 0 | N35: 0
B36: Sub-Total A | H36: =SUM(H20:H35) -> 47.87 | L36: =SUM(L20:L35) -> 50.85 | N36: 2.98 | O36: 0.06225193232
B37: Deferral/Variance Account Disposition Rate Rider | D37: per kWh | F37: -0.0053 | G37: =+F15 -> 2000 | H37: =G37*F37 -> -10.6 | J37: -0.005636447016 | K37: =+F15 -> 2000 | L37: =K37*J37 -> -11.27289403 | N37: -0.6728940315 | O37: 0.06348056901
B38: Stranded Meter Rate Rider | D38: Monthly | G38: 1 | H38: 0 | K38: 1 | L38: 0 | N38: 0
B39: PILs 1562 Disposition Rate Rider | D39: per kWh | G39: =+F15 -> 2000 | H39: 0 | J39: =+F39 -> 0 | K39: =+F15 -> 2000 | L39: 0 | N39: 0
B40: Incremental Capital Rate Rider | D40: per kWh | G40: =+F15 -> 2000 | H40: 0 | L40: 0 | N40: 0
B41: Low Voltage Service Charge | D41: per kWh | F41: 0.0011 | G41: =+F15 -> 2000 | H41: 2.2 | J41: 0.0015 | K41: =+F15 -> 2000 | L41: 3 | N41: 0.8 | O41: 0.3636363636
B42: Smart Meter Entity Charge | D42: Monthly | F42: 0.79 | G42: 1 | H42: 0.79 | J42: 0.79 | K42: 1 | L42: 0.79 | N42: 0 | O42: 0
B43: Sub-Total B - Distribution (includes Sub-Total A) | H43: =SUM(H37:H42)+H36 -> 40.26 | L43: =SUM(L37:L42)+L36 -> 43.36710597 | N43: 3.107105969 | O43: 0.07717600518
B44: RTSR - Network | D44: per kWh | F44: 0.0051 | G44: =F15*(1+F70) -> 2150 | H44: =G44*F44 -> 10.965 | J44: 0.006177672994 | K44: =F15*(1+J70) -> 2142 | L44: =K44*J44 -> 13.23257555 | N44: 2.267575553 | O44: 0.2068012361
B45: RTSR - Line and Transformation Connection | D45: per kWh | F45: 0.0028 | G45: =G44 -> 2150 | H45: =G45*F45 -> 6.02 | J45: 0.00314902383 | K45: =K44 -> 2142 | L45: =K45*J45 -> 6.745209043 | N45: 0.7252090429 | O45: 0.1204666184
B46: Sub-Total C - Delivery (including Sub-Total B) | H46: =SUM(H43:H45) -> 57.245 | L46: =SUM(L43:L45) -> 63.34489056 | N46: 6.099890565 | O46: 0.1065576132
B47: Wholesale Market Service Charge (WMSC) | D47: 0.0044 | F47: 0.0044 | G47: =G45 -> 2150 | H47: =G47*F47 -> 9.46 | J47: 0.0044 | K47: =K45 -> 2142 | L47: =K47*J47 -> 9.4248 | N47: -0.0352 | O47: -0.003720930233
B48: Rural and Remote Rate Protection (RRRP) | D48: 0.0012 | F48: 0.0012 | G48: =G45 -> 2150 | H48: 2.58 | J48: 0.0012 | K48: =K45 -> 2142 | L48: 2.5704 | N48: -0.0096 | O48: -0.003720930233
B49: Standard Supply Service Charge | F49: 0.25 | G49: 1 | H49: 0.25 | J49: 0.25 | K49: 1 | L49: 0.25 | N49: 0 | O49: 0
B50: Debt Retirement Charge (DRC) | F50: 0.007 | G50: =F15 -> 2000 | H50: 14 | J50: 0.007 | K50: =F15 -> 2000 | L50: 14 | N50: 0 | O50: 0
B51: Energy - RPP - Tier 1 | F51: 0.075 | G51: 750 | H51: 56.25 | J51: 0.075 | K51: 750 | L51: 56.25 | N51: 0 | O51: 0
B52: Energy - RPP - Tier 2 | F52: 0.088 | G52: =+G48-G51 -> 1400 | H52: 123.2 | J52: 0.088 | K52: =+K47-K51 -> 1392 | L52: 122.496 | N52: -0.704 | O52: -0.005714285714
B53: TOU - Off Peak | F53: 0.065 | G53: =0.64*$G$26*(1+$F$70) -> 1376 | H53: 89.44 | J53: 0.065 | K53: =0.64*$F$15*(1+$J$70) -> 1370.88 | L53: 89.1072 | N53: -0.3328 | O53: -0.003720930233
B54: TOU - Mid Peak | F54: 0.1 | G54: =0.18*$G$26*(1+$F$70) -> 387 | H54: 38.7 | J54: 0.1 | K54: =0.18*$F$15*(1+$J$70) -> 385.56 | L54: 38.556 | N54: -0.144 | O54: -0.003720930233
B55: TOU - On Peak | F55: 0.117 | G55: =0.18*$G$26*(1+$F$70) -> 387 | H55: 45.279 | J55: 0.117 | K55: =0.18*$F$15*(1+$J$70) -> 385.56 | L55: 45.11052 | N55: -0.16848 | O55: -0.003720930233
B57: Total Bill on RPP (before Taxes) | H57: =SUM(H46:H52) -> 262.985 | L57: =SUM(L46:L52) -> 268.3360906 | N57: 5.351090565 | O57: 0.02034751246
B58: HST | F58: 0.13 | H58: =H57*F58 -> 34.18805 | J58: 0.13 | L58: =L57*J58 -> 34.88369177 | N58: =L58-H58 -> 0.6956417734 | O58: =IF((H58)=0,"",(N58/H58)) -> 0.02034751246
B59: Total Bill (including HST) | H59: =H57+H58 -> 297.17305 | L59: =L57+L58 -> 303.2197823 | N59: =L59-H59 -> 6.046732338 | O59: =IF((H59)=0,"",(N59/H59)) -> 0.02034751246
B60: Ontario Clean Energy Benefit 1 | H60: =ROUND(-H59*10%,2) -> -29.72 | L60: =ROUND(-L59*10%,2) -> -30.32 | N60: =L60-H60 -> -0.6 | O60: =IF((H60)=0,"",(N60/H60)) -> 0.0201884253
B61: Total Bill on RPP (including OCEB) | H61: =SUM(H59:H60) -> 267.45305 | L61: =SUM(L59:L60) -> 272.8997823 | N61: =L61-H61 -> 5.446732338 | O61: =IF((H61)=0,"",(N61/H61)) -> 0.02036519059
B63: Total Bill on TOU (before Taxes) | H63: =SUM(H46:H50,H53:H55) -> 256.954 | L63: =SUM(L46:L50,L53:L55) -> 262.3638106 | N63: =L63-H63 -> 5.409810565 | O63: =IF((H63)=0,"",(N63/H63)) -> 0.02105361491
B64: HST | F64: 0.13 | H64: =H63*F64 -> 33.40402 | J64: 0.13 | L64: =L63*J64 -> 34.10729537 | N64: 0.7032753734 | O64: 0.02105361491
B65: Total Bill (including HST) | H65: =H63+H64 -> 290.35802 | L65: =L63+L64 -> 296.4711059 | N65: 6.113085938 | O65: 0.02105361491
B66: Ontario Clean Energy Benefit 1 | H66: =ROUND(-H65*10%,2) -> -29.04 | L66: =ROUND(-L65*10%,2) -> -29.65 | N66: -0.61 | O66: 0.02100550964
B67: Total Bill on TOU (including OCEB) | H67: =H65+H66 -> 261.31802 | L67: =L65+L66 -> 266.8211059 | N67: 5.503085938 | O67: 0.0210589608
B70: Loss Factor (%) | F70: 0.075 | G70: =+F15*(1+F70) -> 2150 | J70: 0.071

Sheet App.2-W_Bill Impact_GS>50kW
O1: File Number: | P1: ='LDC Info'!$E$18 -> EB-2012-0116
O2: Exhibit:
O3: Tab:
O4: Schedule:
O5: Page:
O7: Date: | P7: 2013-04-30
C10: Appendix 2-W
C11: Bill Impacts
B13: Customer Class: | D13: General Service 50 to 4999 kW
D15: Consumption | F15: 86000 | G15: kWh | J15: Consumption | L15: 250 | M15: KW
F17: Current Board-Approved | J17: Proposed | N17: Impact
D18: Charge Unit | F18: Rate | G18: Volume | H18: Charge | J18: Rate | K18: Volume | L18: Charge | N18: $ Change | O18: % Change
F19: ($) | H19: ($) | J19: ($) | L19: ($)
B20: Monthly Service Charge | D20: Monthly | F20: 114.02 | G20: 1 | H20: =G20*F20 -> 114.02 | J20: 114.02 | K20: 1 | L20: =K20*J20 -> 114.02 | N20: =L20-H20 -> 0 | O20: =IF((H20)=0,"",(N20/H20)) -> 0
B21: Smart Meter Rate Adder | G21: 1 | H21: =G21*F21 -> 0 | K21: 1 | L21: =K21*J21 -> 0 | N21: =L21-H21 -> 0 | O21: =IF((H21)=0,"",(N21/H21)) -> 
G22: 1 | H22: 0 | K22: 1 | L22: =K22*J22 -> 0 | N22: =L22-H22 -> 0 | O22: =IF((H22)=0,"",(N22/H22)) -> 
G23: 1 | H23: 0 | K23: 1 | L23: 0 | N23: 0
G24: 1 | H24: 0 | K24: 1 | L24: 0 | N24: 0
G25: 1 | H25: 0 | K25: 1 | L25: 0 | N25: 0
B26: Distribution Volumetric Rate | D26: per kW | F26: 2.64 | G26: =+$L$15 -> 250 | H26: 660 | J26: 3.0998 | K26: =+$L$15 -> 250 | L26: 774.95 | N26: 114.95 | O26: 0.1741666667
G27: =+$L$16 -> 0 | H27: 0 | K27: =+$L$16 -> 0 | L27: 0 | N27: 0
B28: LRAM & SSM Rate Rider | D28: per kW | G28: 0 | H28: 0 | K28: 0 | L28: 0 | N28: 0
G29: 0 | H29: =G29*F29 -> 0 | K29: 0 | L29: =K29*J29 -> 0 | N29: =L29-H29 -> 0 | O29: =IF((H29)=0,"",(N29/H29)) -> 
G30: 0 | H30: =G30*F30 -> 0 | K30: 0 | L30: =K30*J30 -> 0 | N30: =L30-H30 -> 0 | O30: =IF((H30)=0,"",(N30/H30)) -> 
G31: 0 | H31: =G31*F31 -> 0 | K31: 0 | L31: =K31*J31 -> 0 | N31: =L31-H31 -> 0 | O31: =IF((H31)=0,"",(N31/H31)) -> 
G32: 0 | H32: 0 | K32: 0 | L32: 0 | N32: 0
G33: 0 | H33: 0 | K33: 0 | L33: 0 | N33: 0
G34: 0 | H34: 0 | K34: 0 | L34: 0 | N34: 0
G35: 0 | H35: 0 | K35: 0 | L35: 0 | N35: 0
B36: Sub-Total A | H36: =SUM(H20:H35) -> 774.02 | L36: =SUM(L20:L35) -> 888.97 | N36: 114.95 | O36: 0.1485103744
B37: Deferral/Variance Account Disposition Rate Rider | D37: per kW | F37: -2.118 | G37: =+$L$15 -> 250 | H37: =G37*F37 -> -529.5 | J37: -2.340437588 | K37: =+$L$15 -> 250 | L37: =K37*J37 -> -585.1093971 | N37: -55.60939706 | O37: =IF((H37)=0,"",(N37/H37)) -> 0.1050224685
B38: PILs 1562 Disposition Rate Rider | D38: per kW | G38: =+$L$16 -> 0 | H38: =G38*F38 -> 0 | J38: =+F38 -> 0 | K38: =+$L$16 -> 0 | L38: 0 | N38: 0 | O38: =IF((H38)=0,"",(N38/H38)) -> 
B39: Incremental Capital Rate Rider | D39: per kW | G39: =+$L$16 -> 0 | H39: =G39*F39 -> 0 | K39: =+$L$16 -> 0 | L39: 0 | N39: 0 | O39: =IF((H39)=0,"",(N39/H39)) -> 
B40: GA Variance Account Disposition Rate Rider (Non-RPP) | D40: per kW | F40: 0.8435 | G40: =+$L$15 -> 250 | H40: =G40*F40 -> 210.875 | J40: 1.614991207 | K40: =+$L$15 -> 250 | L40: 403.7478018 | N40: 192.8728018 | O40: =IF((H40)=0,"",(N40/H40)) -> 0.9146309508
B41: Low Voltage Service Charge | D41: per kW | F41: 0.4442 | G41: =+$L$15 -> 250 | H41: =G41*F41 -> 111.05 | J41: 0.5584 | K41: =+$L$15 -> 250 | L41: 139.6 | N41: 28.55 | O41: =IF((H41)=0,"",(N41/H41)) -> 0.2570914003
B42: Smart Meter Entity Charge | D42: Monthly | K42: 1 | L42: 0 | N42: 0
B43: Sub-Total B - Distribution (includes Sub-Total A) | H43: =SUM(H37:H41)+H36 -> 566.445 | L43: =SUM(L37:L41)+L36 -> 847.2084047 | N43: 280.7634047 | O43: =IF((H43)=0,"",(N43/H43)) -> 0.4956587218
B44: RTSR - Network | D44: per kW | F44: 2.0363 | G44: =+L15 -> 250 | H44: =G44*F44 -> 509.075 | J44: 2.466587356 | K44: =+L15 -> 250 | L44: =K44*J44 -> 616.6468391 | N44: 107.5718391 | O44: 0.2113084302
B45: RTSR - Line and Transformation Connection | D45: per kW | F45: 1.1349 | G45: =G44 -> 250 | H45: =G45*F45 -> 283.725 | J45: 1.276366837 | K45: =K44 -> 250 | L45: =K45*J45 -> 319.0917093 | N45: 35.3667093 | O45: 0.1246513677
B46: Sub-Total C - Delivery (including Sub-Total B) | H46: =SUM(H43:H45) -> 1359.245 | L46: =SUM(L43:L45) -> 1782.946953 | N46: 423.7019531 | O46: 0.3117186034
B47: Wholesale Market Service Charge (WMSC) | D47: per kWh | F47: 0.0044 | G47: =+$F$15*(1+$F$64) -> 92450 | H47: =G47*F47 -> 406.78 | J47: 0.0044 | K47: =+$F$15*(1+$J$64) -> 92106 | L47: =K47*J47 -> 405.2664 | N47: -1.5136 | O47: -0.003720930233
B48: Rural and Remote Rate Protection (RRRP) | D48: per kWh | F48: 0.0012 | G48: =+$F$15*(1+$F$64) -> 92450 | H48: =G48*F48 -> 110.94 | J48: 0.0012 | K48: =+$F$15*(1+$J$64) -> 92106 | L48: 110.5272 | N48: -0.4128 | O48: -0.003720930233
B49: Standard Supply Service Charge | D49: Monthly | F49: 0.25 | G49: 1 | H49: 0.25 | J49: 0.25 | K49: 1 | L49: 0.25 | N49: 0 | O49: 0
B50: Debt Retirement Charge (DRC) | D50: per kWh | F50: 0.007 | G50: =F15 -> 86000 | H50: 602 | J50: 0.007 | K50: =+F15 -> 86000 | L50: 602 | N50: 0 | O50: 0
B51: Energy - RPP - Tier 1 | F51: 0.075 | G51: 750 | H51: =G51*F51 -> 56.25 | J51: 0.075 | K51: 750 | L51: =K51*J51 -> 56.25 | N51: 0 | O51: 0
B52: Energy - RPP - Tier 2 | F52: 0.088 | G52: =+G47-G51 -> 91700 | H52: =G52*F52 -> 8069.6 | J52: 0.088 | K52: =+K47-K51 -> 91356 | L52: =K52*J52 -> 8039.328 | N52: -30.272 | O52: -0.003751363141
B53: Energy - Commodity COP | D53: per kWh | F53: 0.08069 | G53: =+($F$15*(1+$F$64)) -> 92450 | H53: 7459.7905 | J53: 0.08069 | K53: =+K47 -> 92106 | L53: 7432.03314 | N53: -27.75736 | O53: -0.003720930233
H54: 0 | J54: 0.1 | L54: 0 | N54: 0
H55: 0 | J55: 0.117 | L55: 0 | N55: 0
B57: Total Bill on Commodity COP | H57: =SUM(H46:H52) -> 10605.065 | L57: =SUM(L46:L52) -> 10996.56855 | N57: 391.5035531 | O57: 0.03691665757
B58: HST | F58: 0.13 | H58: =H57*F58 -> 1378.65845 | J58: 0.13 | L58: =L57*J58 -> 1429.553912 | N58: =L58-H58 -> 50.8954619 | O58: =IF((H58)=0,"",(N58/H58)) -> 0.03691665757
B59: Total Bill (including HST) | H59: =H57+H58 -> 11983.72345 | L59: =L57+L58 -> 12426.12247 | N59: =L59-H59 -> 442.399015 | O59: =IF((H59)=0,"",(N59/H59)) -> 0.03691665757
B60: Ontario Clean Energy Benefit 1 | H60: =ROUND(-H59*10%,2) -> -1198.37 | L60: =ROUND(-L59*10%,2) -> -1242.61 | N60: =L60-H60 -> -44.24 | O60: =IF((H60)=0,"",(N60/H60)) -> 0.036916812
B61: Total Bill on TOU (including OCEB) | H61: =SUM(H59:H60) -> 10785.35345 | L61: =SUM(L59:L60) -> 11183.51247 | N61: =L61-H61 -> 398.159015 | O61: =IF((H61)=0,"",(N61/H61)) -> 0.03691664041
B64: Loss Factor (%) | F64: 0.075 | J64: 0.071

Sheet App.2-W_Bill Impact_Unmetered
O1: File Number: | P1: ='LDC Info'!$E$18 -> EB-2012-0116
O2: Exhibit:
O3: Tab:
O4: Schedule:
O5: Page:
A6: Appendix 2-W
A7: Bill Impacts | O7: Date: | P7: 2013-04-30
B10: Customer Class: | D10: Unmetered Scattered Load
D16: Consumption | F16: 800 | G16: kWh
F18: Current Board-Approved | J18: Proposed | N18: Impact
D19: Charge Unit | F19: Rate | G19: Volume | H19: Charge | J19: Rate | K19: Volume | L19: Charge | N19: $ Change | O19: % Change
F20: ($) | H20: ($) | J20: ($) | L20: ($)
B21: Monthly Service Charge | D21: Monthly | F21: 0 | G21: 1 | H21: =G21*F21 -> 0 | J21: 0 | K21: 1 | L21: =K21*J21 -> 0 | N21: =L21-H21 -> 0 | O21: =IF((H21)=0,"",(N21/H21)) -> 
B22: Smart Meter Rate Adder | G22: 1 | H22: =G22*F22 -> 0 | K22: 1 | L22: =K22*J22 -> 0 | N22: =L22-H22 -> 0 | O22: =IF((H22)=0,"",(N22/H22)) -> 
G23: 1 | H23: 0 | K23: 1 | L23: =K23*J23 -> 0 | N23: =L23-H23 -> 0 | O23: =IF((H23)=0,"",(N23/H23)) -> 
G24: 1 | H24: 0 | K24: 1 | L24: 0 | N24: 0
G25: 1 | H25: 0 | K25: 1 | L25: 0 | N25: 0
G26: 1 | H26: 0 | K26: 1 | L26: 0 | N26: 0
B27: Distribution Volumetric Rate | D27: per kWh | F27: 0.0177 | G27: =+F16 -> 800 | H27: 14.16 | J27: 0.0125 | K27: =+F16 -> 800 | L27: 10 | N27: -4.16 | O27: -0.2937853107
H28: 0 | L28: 0 | N28: 0
H29: 0 | L29: 0 | N29: 0
H30: 0 | L30: 0 | N30: =L30-H30 -> 0 | O30: =IF((H30)=0,"",(N30/H30)) -> 
H31: 0 | L31: 0 | N31: =L31-H31 -> 0 | O31: =IF((H31)=0,"",(N31/H31)) -> 
H32: 0 | L32: 0 | N32: =L32-H32 -> 0 | O32: =IF((H32)=0,"",(N32/H32)) -> 
H33: 0 | L33: 0 | N33: 0
H34: 0 | L34: 0 | N34: 0
H35: 0 | L35: 0 | N35: 0
H36: 0 | L36: 0 | N36: 0
B37: Sub-Total A | H37: =SUM(H21:H36) -> 14.16 | L37: =SUM(L21:L36) -> 10 | N37: -4.16 | O37: -0.2937853107
B38: Deferral/Variance Account Disposition Rate Rider | D38: per kWh | F38: -0.0046 | G38: =+F16 -> 800 | H38: =G38*F38 -> -3.68 | J38: -0.004760496882 | K38: =+F16 -> 800 | L38: =K38*J38 -> -3.808397506 | N38: -0.1283975058 | O38: =IF((H38)=0,"",(N38/H38)) -> 0.03489062657
B39: PILs 1562 Disposition Rate Rider | D39: per kWh | G39: =+F16 -> 800 | H39: =G39*F39 -> 0 | J39: =+F39 -> 0 | K39: =+F16 -> 800 | L39: 0 | N39: 0 | O39: =IF((H39)=0,"",(N39/H39)) -> 
B40: Incremental Capital Rate Rider | D40: per kWh | G40: =+F16 -> 800 | H40: =G40*F40 -> 0 | L40: 0 | N40: 0 | O40: =IF((H40)=0,"",(N40/H40)) -> 
H41: =G41*F41 -> 0 | L41: 0 | N41: 0 | O41: =IF((H41)=0,"",(N41/H41)) -> 
B42: Low Voltage Service Charge | D42: per kWh | F42: 0.0011 | G42: =+F16 -> 800 | H42: =G42*F42 -> 0.88 | J42: 0.0015 | K42: =+F16 -> 800 | L42: 1.2 | N42: 0.32 | O42: =IF((H42)=0,"",(N42/H42)) -> 0.3636363636
B43: Smart Meter Entity Charge | D43: Monthly | L43: 0 | N43: 0
B44: Sub-Total B - Distribution (includes Sub-Total A) | H44: =SUM(H38:H42)+H37 -> 11.36 | L44: =SUM(L38:L42)+L37 -> 7.391602494 | N44: -3.968397506 | O44: =IF((H44)=0,"",(N44/H44)) -> -0.3493307664
B45: RTSR - Network | D45: per kWh | F45: 0.0051 | G45: =+$F$16*(1+$F$71) -> 860 | H45: =G45*F45 -> 4.386 | J45: 0.006177672994 | K45: =+$F$16*(1+$J$71) -> 856.8 | L45: =K45*J45 -> 5.293030221 | N45: 0.9070302213 | O45: 0.2068012361
B46: RTSR - Line and Transformation Connection | D46: per kWh | F46: 0.0028 | G46: =+$F$16*(1+$F$71) -> 860 | H46: =G46*F46 -> 2.408 | J46: 0.00314902383 | K46: =+$F$16*(1+$J$71) -> 856.8 | L46: =K46*J46 -> 2.698083617 | N46: 0.2900836172 | O46: 0.1204666184
B47: Sub-Total C - Delivery (including Sub-Total B) | H47: =SUM(H44:H46) -> 18.154 | L47: =SUM(L44:L46) -> 15.38271633 | N47: -2.771283667 | O47: -0.1526541626
B48: Wholesale Market Service Charge (WMSC) | F48: 0.0044 | G48: =G46 -> 860 | H48: =G48*F48 -> 3.784 | J48: 0.0044 | K48: =K46 -> 856.8 | L48: =K48*J48 -> 3.76992 | N48: -0.01408 | O48: -0.003720930233
B49: Rural and Remote Rate Protection (RRRP) | F49: 0.0012 | G49: =G46 -> 860 | H49: 1.032 | J49: 0.0012 | K49: =K46 -> 856.8 | L49: 1.02816 | N49: -0.00384 | O49: -0.003720930233
B50: Standard Supply Service Charge | F50: 0.25 | G50: 1 | H50: 0.25 | J50: 0.25 | K50: 1 | L50: 0.25 | N50: 0 | O50: 0
B51: Debt Retirement Charge (DRC) | F51: 0.007 | G51: =F16 -> 800 | H51: 5.6 | J51: 0.007 | K51: =F16 -> 800 | L51: 5.6 | N51: 0 | O51: 0
B52: Energy - RPP - Tier 1 | F52: 0.075 | G52: =IF(G48>750,750,G48) -> 750 | H52: 56.25 | J52: 0.075 | K52: =IF(K48>750,750,K48) -> 750 | L52: 56.25 | N52: 0 | O52: 0
B53: Energy - RPP - Tier 2 | F53: 0.088 | G53: =IF(G48>750,G48-G52,0) -> 110 | H53: 9.68 | J53: 0.088 | K53: =IF(K48>750,K48-K52,0) -> 106.8 | L53: 9.3984 | N53: -0.2816 | O53: -0.02909090909
B54: TOU - Off Peak | F54: 0.065 | G54: =0.64*$F$16*(1+$F$71) -> 550.4 | H54: 35.776 | J54: 0.065 | K54: =0.64*$F$16*(1+$J$71) -> 548.352 | L54: 35.64288 | N54: -0.13312 | O54: -0.003720930233
B55: TOU - Mid Peak | F55: 0.1 | G55: =0.18*$F$16*(1+$F$71) -> 154.8 | H55: 15.48 | J55: 0.1 | K55: =0.18*$F$16*(1+$J$71) -> 154.224 | L55: 15.4224 | N55: -0.0576 | O55: -0.003720930233
B56: TOU - On Peak | F56: 0.117 | G56: =0.18*$F$16*(1+$F$71) -> 154.8 | H56: 18.1116 | J56: 0.117 | K56: =0.18*$F$16*(1+$J$71) -> 154.224 | L56: 18.044208 | N56: -0.067392 | O56: -0.003720930233
B58: Total Bill on RPP (before Taxes) | H58: =SUM(H47:H53) -> 94.75 | L58: =SUM(L47:L53) -> 91.67919633 | N58: -3.070803667 | O58: -0.03240953739
B59: HST | F59: 0.13 | H59: =H58*F59 -> 12.3175 | J59: 0.13 | L59: =L58*J59 -> 11.91829552 | N59: =L59-H59 -> -0.3992044767 | O59: =IF((H59)=0,"",(N59/H59)) -> -0.03240953739
B60: Total Bill (including HST) | H60: =H58+H59 -> 107.0675 | L60: =L58+L59 -> 103.5974919 | N60: =L60-H60 -> -3.470008144 | O60: =IF((H60)=0,"",(N60/H60)) -> -0.03240953739
B61: Ontario Clean Energy Benefit 1 | H61: =ROUND(-H60*10%,2) -> -10.71 | L61: =ROUND(-L60*10%,2) -> -10.36 | N61: =L61-H61 -> 0.35 | O61: =IF((H61)=0,"",(N61/H61)) -> -0.03267973856
B62: Total Bill on RPP (including OCEB) | H62: =SUM(H60:H61) -> 96.3575 | L62: =SUM(L60:L61) -> 93.23749186 | N62: =L62-H62 -> -3.120008144 | O62: =IF((H62)=0,"",(N62/H62)) -> -0.03237950491
B64: Total Bill on TOU (before Taxes) | H64: =SUM(H47:H51,H54:H56) -> 98.1876 | L64: =SUM(L47:L51,L54:L56) -> 95.14028433 | N64: =L64-H64 -> -3.047315667 | O64: =IF((H64)=0,"",(N64/H64)) -> -0.03103564673
B65: HST | F65: 0.13 | H65: =H64*F65 -> 12.764388 | J65: 0.13 | L65: =L64*J65 -> 12.36823696 | N65: -0.3961510367 | O65: -0.03103564673
B66: Total Bill (including HST) | H66: =H64+H65 -> 110.951988 | L66: =L64+L65 -> 107.5085213 | N66: -3.443466704 | O66: -0.03103564673
B67: Ontario Clean Energy Benefit 1 | H67: =ROUND(-H66*10%,2) -> -11.1 | L67: =ROUND(-L66*10%,2) -> -10.75 | N67: 0.35 | O67: -0.03153153153
B68: Total Bill on TOU (including OCEB) | H68: =H66+H67 -> 99.851988 | L68: =L66+L67 -> 96.7585213 | N68: -3.093466704 | O68: -0.03098052193
B71: Loss Factor (%) | F71: 0.075 | J71: 0.071

Sheet App.2-W_Bill Impact_Streetlight
O1: File Number: | P1: ='LDC Info'!$E$18 -> EB-2012-0116
O2: Exhibit:
O3: Tab:
O4: Schedule:
O5: Page:
A6: Appendix 2-W
A7: Bill Impacts | O7: Date: | P7: 2013-04-30
B10: Customer Class: | D10: Streetlights
D12: Consumption | F12: 280 | G12: kWh | J12: Consumption | L12: 1 | M12: KW
F14: Current Board-Approved | J14: Proposed | N14: Impact
D15: Charge Unit | F15: Rate | G15: Volume | H15: Charge | J15: Rate | K15: Volume | L15: Charge | N15: $ Change | O15: % Change
F16: ($) | H16: ($) | J16: ($) | L16: ($)
B17: Monthly Service Charge | D17: Monthly | F17: 3.14 | G17: =+L12 -> 1 | H17: =+F17*G17 -> 3.14 | J17: 3.54 | K17: =+L12 -> 1 | L17: =+J17*K17 -> 3.54 | N17: =L17-H17 -> 0.4 | O17: =IF((H17)=0,"",(N17/H17)) -> 0.127388535
B18: Smart Meter Rate Adder | G18: 1 | H18: =+F18*G18 -> 0 | K18: 1 | L18: =+J18*K18 -> 0 | N18: =L18-H18 -> 0 | O18: =IF((H18)=0,"",(N18/H18)) -> 
G19: 1 | H19: 0 | K19: 1 | L19: 0 | N19: =L19-H19 -> 0 | O19: =IF((H19)=0,"",(N19/H19)) -> 
G20: 1 | H20: 0 | K20: 1 | L20: 0 | N20: 0
G21: 1 | H21: 0 | K21: 1 | L21: 0 | N21: 0
G22: 1 | H22: 0 | K22: 1 | L22: 0 | N22: 0
B23: Distribution Volumetric Rate | D23: per kW | F23: 14.0054 | G23: =L12 -> 1 | H23: 14.0054 | J23: 15.3221 | K23: =L12 -> 1 | L23: 15.3221 | N23: 1.3167 | O23: 0.09401373756
G24: 1 | H24: 0 | K24: 1 | L24: 0 | N24: 0
G25: 295 | H25: 0 | K25: 295 | L25: 0 | N25: 0
G26: 1 | H26: 0 | K26: 1 | L26: 0 | N26: =L26-H26 -> 0 | O26: =IF((H26)=0,"",(N26/H26)) -> 
H27: 0 | L27: 0 | N27: =L27-H27 -> 0 | O27: =IF((H27)=0,"",(N27/H27)) -> 
H28: 0 | L28: 0 | N28: =L28-H28 -> 0 | O28: =IF((H28)=0,"",(N28/H28)) -> 
H29: 0 | L29: 0 | N29: 0
H30: 0 | L30: 0 | N30: 0
H31: 0 | L31: 0 | N31: 0
H32: 0 | L32: 0 | N32: 0
B33: Sub-Total A | H33: =SUM(H17:H32) -> 17.1454 | L33: =SUM(L17:L32) -> 18.8621 | N33: 1.7167 | O33: 0.1001259813
B34: Deferral/Variance Account Disposition Rate Rider | D34: per kW | F34: -2.2231 | G34: =L12 -> 1 | H34: =+F34*G34 -> -2.2231 | J34: -2.399713732 | K34: =L12 -> 1 | L34: =+J34*K34 -> -2.399713732 | N34: -0.176613732 | O34: =IF((H34)=0,"",(N34/H34)) -> 0.07944479868
B35: PILs 1562 Disposition Rate Rider | D35: per kW | G35: =+L12 -> 1 | H35: =+F35*G35 -> 0 | J35: =+F35 -> 0 | K35: =+L12 -> 1 | L35: 0 | N35: 0 | O35: =IF((H35)=0,"",(N35/H35)) -> 
B36: Incremental Capital Rate Rider | D36: per kW | G36: =L12 -> 1 | H36: =+F36*G36 -> 0 | K36: 295 | L36: 0 | N36: 0 | O36: =IF((H36)=0,"",(N36/H36)) -> 
B37: GA Rate Rider | G37: 295 | H37: =+F37*G37 -> 0 | J37: 0.6161785327 | K37: =L12 -> 1 | L37: 0.6161785327 | N37: 0.6161785327 | O37: =IF((H37)=0,"",(N37/H37)) -> 
B38: Low Voltage Service Charge | D38: per kW | F38: 0.3434 | G38: =L12 -> 1 | H38: =+F38*G38 -> 0.3434 | J38: 0.4317 | K38: =L12 -> 1 | L38: 0.4317 | N38: 0.0883 | O38: =IF((H38)=0,"",(N38/H38)) -> 0.257134537
B39: Smart Meter Entity Charge | D39: Monthly | K39: 1 | L39: 0 | N39: 0
B40: Sub-Total B - Distribution (includes Sub-Total A) | H40: =SUM(H33:H39) -> 15.2657 | L40: =SUM(L33:L39) -> 17.5102648 | N40: =L40-H40 -> 2.244564801 | O40: =IF((H40)=0,"",(N40/H40)) -> 0.1470332052
B41: RTSR - Network | D41: per kW | F41: 1.5357 | G41: =L12 -> 1 | H41: =+F41*G41 -> 1.5357 | J41: 1.860206356 | K41: =L12 -> 1 | L41: =+J41*K41 -> 1.860206356 | N41: 0.3245063563 | O41: =IF((H41)=0,"",(N41/H41)) -> 0.2113084302
B42: RTSR - Line and Transformation Connection | D42: per kW | F42: 0.8773 | G42: =L12 -> 1 | H42: =+F42*G42 -> 0.8773 | J42: 0.9866566449 | K42: =L12 -> 1 | L42: =+J42*K42 -> 0.9866566449 | N42: 0.1093566449 | O42: 0.1246513677
B43: Sub-Total C - Delivery (including Sub-Total B) | H43: =SUM(H40:H42) -> 17.6787 | L43: =SUM(L40:L42) -> 20.3571278 | N43: 2.678427802 | O43: 0.1515059253
B44: Wholesale Market Service Charge (WMSC) | D44: per kWh | F44: 0.0044 | G44: =+$F$12*(1+$F$61) -> 301 | H44: =+F44*G44 -> 1.3244 | J44: 0.0044 | K44: =+$F$12*(1+$J$61) -> 299.88 | L44: =J44*K44 -> 1.319472 | N44: -0.004928 | O44: -0.003720930233
B45: Rural and Remote Rate Protection (RRRP) | D45: per kWh | F45: 0.0012 | G45: =+$F$12*(1+$F$61) -> 301 | H45: =+F45*G45 -> 0.3612 | J45: 0.0012 | K45: =+$F$12*(1+$J$61) -> 299.88 | L45: =J45*K45 -> 0.359856 | N45: -0.001344 | O45: -0.003720930233
B46: Standard Supply Service Charge | D46: Monthly | F46: 0.25 | G46: 1 | H46: 0.25 | J46: 0.25 | K46: 1 | L46: 0.25 | N46: 0 | O46: 0
B47: Debt Retirement Charge (DRC) | D47: per kWh | F47: 0.007 | G47: =F12 -> 280 | H47: 1.96 | J47: 0.007 | K47: =+$F$12 -> 280 | L47: 1.96 | N47: 0 | O47: 0
B48: Energy - RPP - Tier 1 | F48: 0.075 | H48: 0 | J48: 0.075 | L48: 0 | N48: 0
B49: Energy - RPP - Tier 2 | F49: 0.088 | H49: 0 | J49: 0.088 | L49: 0 | N49: 0
B50: Energy - Commodity COP | D50: per kWh | F50: 0.08069 | G50: =+F12*(1+F61) -> 301 | H50: =+F50*G50 -> 24.28769 | J50: 0.08069 | K50: =+F12*(1+J61) -> 299.88 | L50: 24.1973172 | N50: -0.0903728 | O50: -0.003720930233
H51: 0 | L51: 0 | N51: 0
H52: 0 | L52: 0 | N52: 0
B54: Total Bill on Commodity COP | H54: =SUM(H43:H53) -> 45.86199 | L54: =SUM(L43:L53) -> 48.443773 | N54: 2.581783002 | O54: 0.05629461351
B55: HST | F55: 0.13 | H55: =+F55*H54 -> 5.9620587 | J55: 0.13 | L55: =+J55*L54 -> 6.29769049 | N55: =L55-H55 -> 0.3356317902 | O55: =IF((H55)=0,"",(N55/H55)) -> 0.05629461351
B56: Total Bill (including HST) | H56: =+H54+H55 -> 51.8240487 | L56: =+L54+L55 -> 54.74146349 | N56: =L56-H56 -> 2.917414792 | O56: =IF((H56)=0,"",(N56/H56)) -> 0.05629461351
B57: Ontario Clean Energy Benefit 1 | H57: =+H56*-0.1 -> -5.18240487 | L57: =+L56*-0.1 -> -5.474146349 | N57: =L57-H57 -> -0.2917414792 | O57: =IF((H57)=0,"",(N57/H57)) -> 0.05629461351
B58: Total Bill on TOU (including OCEB) | H58: =+H56+H57 -> 46.64164383 | L58: =+L56+L57 -> 49.26731714 | N58: =L58-H58 -> 2.625673313 | O58: =IF((H58)=0,"",(N58/H58)) -> 0.05629461351
B61: Loss Factor (%) | F61: 0.075 | J61: 0.071

Sheet App.2-X_CoS_Flowchart
F1: File Number: | G1: ='LDC Info'!$E$18 -> EB-2012-0116
F2: Exhibit:
F3: Tab:
F4: Schedule:
F5: Page:
F7: Date:
B13: Appendix 2-X
B14: Cost of Service Rate Application Schematic
B16: The Cost of Service Rate Application Schematic is a flowchart appended to Chapter 2 of the Filing Requirements as a guide for the components of an application and how demand and costs interrelate to derive the revenue requirement and then how the revenue requirement is allocated between classes and through fixed/variable splits to derive rates that will be compensatory for the annual revenue requirement, based on the the forecasted demand. There is no form to be filled out; therefore, this Schedule is not required to be filed.

Sheet Sheet2
